﻿Directorate,Sub Directorate,Accounting Date,COST CENTRE,Supplier Name,Net Amount,Type, 
DIRECT LEARNING AND SKILLS,SCHOOLS DELEGATED,01-Mar-18,101171,Inclusive Technology Limited,1670.5,Revenue,
DIRECT LEARNING AND SKILLS,SCHOOLS DELEGATED,01-Mar-18,101171,Legacy Leisure Limited,924,Revenue,
DIRECT LEARNING AND SKILLS,SCHOOLS DELEGATED,01-Mar-18,101171,TN Water Limited T/A Aquaid (Midlands & South Wales),970.2,Revenue,
DIRECT LEARNING AND SKILLS,SCHOOLS DELEGATED,01-Mar-18,101229,PAT South Wales Limited t/a PSW Services,546,Revenue,
DIRECT LEARNING AND SKILLS,SCHOOLS DELEGATED,01-Mar-18,101241,Ignite & Inspire Limited,978,Revenue,
DIRECT LEARNING AND SKILLS,SCHOOLS DELEGATED,01-Mar-18,101241,Ignite & Inspire Limited,5074,Revenue,
DIRECT LEARNING AND SKILLS,SCHOOLS DELEGATED,01-Mar-18,101285,Cooke and Arkwright Limited,22552.45,Revenue,
DIRECT MANAGING DIRECTOR AND RESOURCES,GF HUMAN RESOURCES,01-Mar-18,140122,Childcare Vouchers Limited,30373.6,Revenue,
DIRECT LEARNING AND SKILLS,ACHIEVEMENT FOR ALL,01-Mar-18,190056,Gibbonsdown Childrens Centre Limited,800,Revenue,
DIRECT SOCIAL SERVICES,GF CHILDREN SERVICES,01-Mar-18,209151,Jacqueline Hewitson t/a Ladybird Childcare,505.5,Revenue,
DIRECT SOCIAL SERVICES,GF ADULT SERVICES,01-Mar-18,212731,Elliott Electrical Limited,1520,Revenue,
DIRECT SOCIAL SERVICES,GF BUSINESS MANAGEMENT & INOVATION,01-Mar-18,239011,Computacenter (UK) Limited,833.59,Revenue,
DIRECT SOCIAL SERVICES,GF CHILDREN SERVICES,01-Mar-18,260060,Prospects for Young People Limited t/a Keys Group,8485.73,Revenue,
DIRECT ENVIRONMENT AND HOUSING,GF ENV AND VISIBLE,01-Mar-18,325325,Calibre Contracting Limited,2050.2,Revenue,
DIRECT ENVIRONMENT AND HOUSING,GF ENV AND VISIBLE,01-Mar-18,325325,Calibre Contracting Limited,2050.2,Revenue,
DIRECT ENVIRONMENT AND HOUSING,GF ENV AND VISIBLE,01-Mar-18,325325,Garth Plant Hire Limited,1106.25,Revenue,
DIRECT ENVIRONMENT AND HOUSING,GF ENV AND VISIBLE,01-Mar-18,325325,Garth Plant Hire Limited,1236.25,Revenue,
DIRECT ENVIRONMENT AND HOUSING,GF ENV AND VISIBLE,01-Mar-18,325338,Calibre Contracting Limited,1847.22,Revenue,
DIRECT ENVIRONMENT AND HOUSING,GF ENV AND VISIBLE,01-Mar-18,325338,Garth Plant Hire Limited,1106.25,Revenue,
DIRECT ENVIRONMENT AND HOUSING,GF ENV AND VISIBLE,01-Mar-18,325340,Calibre Contracting Limited,2050.2,Revenue,
DIRECT ENVIRONMENT AND HOUSING,GF ENV AND VISIBLE,01-Mar-18,325340,Garth Plant Hire Limited,1301.25,Revenue,
DIRECT ENVIRONMENT AND HOUSING,GF ENV AND VISIBLE,01-Mar-18,325600,Calibre Contracting Limited,671.55,Revenue,
DIRECT ENVIRONMENT AND HOUSING,GF ENV AND VISIBLE,01-Mar-18,325790,Calibre Contracting Limited,1143.25,Revenue,
DIRECT ENVIRONMENT AND HOUSING,GF PARKS AND GROUNDS,01-Mar-18,333037,HAGS-SMP Limited,1350,Revenue,
DIRECT ENVIRONMENT AND HOUSING,VISIBLE SERVICES,01-Mar-18,359330,Motion Control Dance,570,Revenue,
DIRECT ENVIRONMENT AND HOUSING,VISIBLE SERVICES,01-Mar-18,365769,Wayne Davies t/a Denway Travel,1275,Revenue,
DIRECT ENVIRONMENT AND HOUSING,VISIBLE SERVICES,01-Mar-18,365789,Ceri Slade,2146,Revenue,
DIRECT ENVIRONMENT AND HOUSING,VISIBLE SERVICES,01-Mar-18,365803,Apollo Minibus & Coach Hire Limited,1417.5,Revenue,
DIRECT ENVIRONMENT AND HOUSING,VISIBLE SERVICES,01-Mar-18,365803,CJ Contract Travel Services Limited,510,Revenue,
DIRECT ENVIRONMENT AND HOUSING,VISIBLE SERVICES,01-Mar-18,365803,CJ Contract Travel Services Limited,10865.68,Revenue,
DIRECT ENVIRONMENT AND HOUSING,VISIBLE SERVICES,01-Mar-18,365803,Merricks Private Transport Contractors Limited,18715,Revenue,
DIRECT ENVIRONMENT AND HOUSING,VISIBLE SERVICES,01-Mar-18,365803,Merricks Private Transport Contractors Limited,11783,Revenue,
DIRECT ENVIRONMENT AND HOUSING,VISIBLE SERVICES,01-Mar-18,365803,Tasmim Limited,9552.45,Revenue,
DIRECT ENVIRONMENT AND HOUSING,VISIBLE SERVICES,01-Mar-18,365803,Andrew Barnes,1782,Revenue,
DIRECT ENVIRONMENT AND HOUSING,VISIBLE SERVICES,01-Mar-18,365803,Andrew Barnes,1485,Revenue,
DIRECT ENVIRONMENT AND HOUSING,VISIBLE SERVICES,01-Mar-18,365803,Peter Harris,945,Revenue,
DIRECT ENVIRONMENT AND HOUSING,VISIBLE SERVICES,01-Mar-18,365803,Gary P Shaw t/a GP Shaw Taxis,2624,Revenue,
DIRECT ENVIRONMENT AND HOUSING,VISIBLE SERVICES,01-Mar-18,365803,Rhys VJ Morgan t/a Windsor Cars,1236,Revenue,
DIRECT ENVIRONMENT AND HOUSING,VISIBLE SERVICES,01-Mar-18,365803,Rhys VJ Morgan t/a Windsor Cars,510,Revenue,
DIRECT ENVIRONMENT AND HOUSING,VISIBLE SERVICES,01-Mar-18,365803,Rhys VJ Morgan t/a Windsor Cars,780,Revenue,
DIRECT ENVIRONMENT AND HOUSING,VISIBLE SERVICES,01-Mar-18,365803,Rhys VJ Morgan t/a Windsor Cars,600,Revenue,
DIRECT ENVIRONMENT AND HOUSING,GF LEGAL AND DEMOCRATIC,01-Mar-18,400050,Laura Beattie,1550,Revenue,
DIRECT ENVIRONMENT AND HOUSING,GF HOUSING SERVICES,01-Mar-18,402450,Computacenter (UK) Limited,833.59,Revenue,
DIRECT ENVIRONMENT AND HOUSING,REGULATORY SHARED SERVICES,01-Mar-18,403228,Hamilton Laboratory Glass Limited,1004.96,Revenue,
DIRECT ENVIRONMENT AND HOUSING,REGULATORY SHARED SERVICES,01-Mar-18,403346,Harcourt Litho Limited,1000,Revenue,
DIRECT SOCIAL SERVICES,REGIONAL ADOPTION SERVICE,04-Mar-18,260500,Trivallis Limited,3226.19,Revenue,
DIRECT LEARNING AND SKILLS,SCHOOLS DELEGATED,05-Mar-18,100805,New Directions (Education) Limited,650,Revenue,
DIRECT LEARNING AND SKILLS,SCHOOLS DELEGATED,05-Mar-18,101013,Corona Energy Retail 4 Limited,925.27,Revenue,
DIRECT LEARNING AND SKILLS,SCHOOLS DELEGATED,05-Mar-18,101013,Legacy Leisure Limited,957,Revenue,
DIRECT LEARNING AND SKILLS,SCHOOLS DELEGATED,05-Mar-18,101032,Superstars School Services Limited,1400,Revenue,
DIRECT LEARNING AND SKILLS,SCHOOLS DELEGATED,05-Mar-18,101032,The Consortium for Purchasing and Distribution Limited,836.15,Revenue,
DIRECT LEARNING AND SKILLS,SCHOOLS DELEGATED,05-Mar-18,101140,Ikea Limited T/A Ikea Business,669.77,Revenue,
DIRECT LEARNING AND SKILLS,SCHOOLS DELEGATED,05-Mar-18,101140,Millennium Personnel Services (Education) Limited,500,Revenue,
DIRECT LEARNING AND SKILLS,SCHOOLS DELEGATED,05-Mar-18,101141,BT Business Direct Limited,784.3,Revenue,
DIRECT LEARNING AND SKILLS,SCHOOLS DELEGATED,05-Mar-18,101141,Celtic Teachers Limited,750,Revenue,
DIRECT LEARNING AND SKILLS,SCHOOLS DELEGATED,05-Mar-18,101171,Roscoe Tree Services Limited,500,Revenue,
DIRECT LEARNING AND SKILLS,SCHOOLS DELEGATED,05-Mar-18,101195,Superstars School Services Limited,1785,Revenue,
DIRECT LEARNING AND SKILLS,SCHOOLS DELEGATED,05-Mar-18,101202,Empowering Learning Limited,650,Revenue,
DIRECT LEARNING AND SKILLS,SCHOOLS DELEGATED,05-Mar-18,101202,Lucy Bateman,896.7,Revenue,
DIRECT LEARNING AND SKILLS,SCHOOLS DELEGATED,05-Mar-18,101202,Michael Norman t/a 1st Choice Cleaning Services,2080,Revenue,
DIRECT LEARNING AND SKILLS,SCHOOLS DELEGATED,05-Mar-18,101285,Burner Efficiency Services Limited,3212.59,Revenue,
DIRECT LEARNING AND SKILLS,SCHOOLS DELEGATED,05-Mar-18,101317,Sprinkler Protection UK Limited,785,Revenue,
DIRECT LEARNING AND SKILLS,ACHIEVEMENT FOR ALL,05-Mar-18,102672,Gibbonsdown Childrens Centre Limited,2229.92,Revenue,
DIRECT LEARNING AND SKILLS,ACHIEVEMENT FOR ALL,05-Mar-18,102801,CJ Contract Travel Services Limited,688.5,Revenue,
DIRECT LEARNING AND SKILLS,SCHOOLS NON DELEGATED,05-Mar-18,103003,New Directions (Education) Limited,630,Revenue,
DIRECT LEARNING AND SKILLS,SCHOOLS NON DELEGATED,05-Mar-18,103095,New Directions (Education) Limited,667.5,Revenue,
DIRECT LEARNING AND SKILLS,SCHOOLS NON DELEGATED,05-Mar-18,103095,New Directions (Education) Limited,534,Revenue,
DIRECT LEARNING AND SKILLS,SCHOOLS NON DELEGATED,05-Mar-18,103412,Apollo Teaching Services Limited,620,Revenue,
DIRECT LEARNING AND SKILLS,SCHOOLS NON DELEGATED,05-Mar-18,103412,Apollo Teaching Services Limited,750,Revenue,
DIRECT LEARNING AND SKILLS,SCHOOLS NON DELEGATED,05-Mar-18,103412,Apollo Teaching Services Limited,620,Revenue,
DIRECT LEARNING AND SKILLS,SCHOOLS NON DELEGATED,05-Mar-18,103412,Apollo Teaching Services Limited,600,Revenue,
DIRECT LEARNING AND SKILLS,SCHOOLS NON DELEGATED,05-Mar-18,103593,Reed Specialist Recruitment Limited,700,Revenue,
DIRECT LEARNING AND SKILLS,SCHOOLS NON DELEGATED,05-Mar-18,103593,Reed Specialist Recruitment Limited,700,Revenue,
DIRECT LEARNING AND SKILLS,SCHOOLS NON DELEGATED,05-Mar-18,103593,New Directions (Education) Limited,674.9,Revenue,
DIRECT ENVIRONMENT AND HOUSING,REGENERATION & PLANNING,05-Mar-18,130512,Lyreco UK Limited,1332.11,Revenue,
DIRECT LEARNING AND SKILLS,GF CATERING,05-Mar-18,157800,Castell Howell Foods Limited,852.34,Revenue,
DIRECT SOCIAL SERVICES,GF ADULT SERVICES,05-Mar-18,212741,PHS Group Plc,561.65,Revenue,
DIRECT SOCIAL SERVICES,GF ADULT SERVICES,05-Mar-18,212741,Glyn Mcguire & Partners T/A G K The Flooring Specialists,590,Revenue,
DIRECT SOCIAL SERVICES,GF ADULT SERVICES,05-Mar-18,215121,Tunstall Healthcare (UK) Limited,795.4,Revenue,
DIRECT SOCIAL SERVICES,GF ADULT SERVICES,05-Mar-18,215489,1st Grade Care Limited,593.18,Revenue,
DIRECT SOCIAL SERVICES,GF ADULT SERVICES,05-Mar-18,215489,1st Grade Care Limited,562.8,Revenue,
DIRECT SOCIAL SERVICES,GF ADULT SERVICES,05-Mar-18,215489,1st Grade Care Limited,600.6,Revenue,
DIRECT SOCIAL SERVICES,GF ADULT SERVICES,05-Mar-18,215489,1st Grade Care Limited,593.18,Revenue,
DIRECT SOCIAL SERVICES,GF ADULT SERVICES,05-Mar-18,215489,Cherish Cymru Limited,596.91,Revenue,
DIRECT SOCIAL SERVICES,GF ADULT SERVICES,05-Mar-18,215489,Cherish Cymru Limited,516.75,Revenue,
DIRECT SOCIAL SERVICES,GF ADULT SERVICES,05-Mar-18,215489,Cherish Cymru Limited,568.96,Revenue,
DIRECT SOCIAL SERVICES,GF ADULT SERVICES,05-Mar-18,215489,Cherish Cymru Limited,520.18,Revenue,
DIRECT SOCIAL SERVICES,GF ADULT SERVICES,05-Mar-18,215489,Cherish Cymru Limited,561.51,Revenue,
DIRECT SOCIAL SERVICES,GF ADULT SERVICES,05-Mar-18,215489,Cherish Cymru Limited,515.58,Revenue,
DIRECT SOCIAL SERVICES,GF ADULT SERVICES,05-Mar-18,215489,GJ Care & Training Limited,601.71,Revenue,
DIRECT SOCIAL SERVICES,GF ADULT SERVICES,05-Mar-18,215489,GJ Care & Training Limited,561.58,Revenue,
DIRECT SOCIAL SERVICES,GF ADULT SERVICES,05-Mar-18,215489,GJ Care & Training Limited,561.58,Revenue,
DIRECT SOCIAL SERVICES,GF ADULT SERVICES,05-Mar-18,215489,Hallows Care Limited T/A Hallows Care,682.08,Revenue,
DIRECT SOCIAL SERVICES,GF ADULT SERVICES,05-Mar-18,215489,Hallows Care Limited T/A Hallows Care,590.12,Revenue,
DIRECT SOCIAL SERVICES,GF ADULT SERVICES,05-Mar-18,215489,Hallows Care Limited T/A Hallows Care,586.88,Revenue,
DIRECT SOCIAL SERVICES,GF ADULT SERVICES,05-Mar-18,215489,Hallows Care Limited T/A Hallows Care,600.6,Revenue,
DIRECT SOCIAL SERVICES,GF ADULT SERVICES,05-Mar-18,215489,Nestor Primecare Services Limited t/a Allied Healthcare,517.4,Revenue,
DIRECT SOCIAL SERVICES,GF ADULT SERVICES,05-Mar-18,215489,Nestor Primecare Services Limited t/a Allied Healthcare,564.61,Revenue,
DIRECT SOCIAL SERVICES,GF ADULT SERVICES,05-Mar-18,215489,Nestor Primecare Services Limited t/a Allied Healthcare,569.52,Revenue,
DIRECT SOCIAL SERVICES,GF ADULT SERVICES,05-Mar-18,215489,Nestor Primecare Services Limited t/a Allied Healthcare,569.52,Revenue,
DIRECT SOCIAL SERVICES,GF ADULT SERVICES,05-Mar-18,215489,Nestor Primecare Services Limited t/a Allied Healthcare,514.03,Revenue,
DIRECT SOCIAL SERVICES,GF ADULT SERVICES,05-Mar-18,215489,Susan Barrett t/a All Saints Domiciliary Care Agency,620,Revenue,
DIRECT SOCIAL SERVICES,GF ADULT SERVICES,05-Mar-18,215489,Susan Barrett t/a All Saints Domiciliary Care Agency,629.25,Revenue,
DIRECT SOCIAL SERVICES,GF ADULT SERVICES,05-Mar-18,215489,Susan Barrett t/a All Saints Domiciliary Care Agency,611.35,Revenue,
DIRECT SOCIAL SERVICES,GF ADULT SERVICES,05-Mar-18,215489,Susan Barrett t/a All Saints Domiciliary Care Agency,568.9,Revenue,
DIRECT SOCIAL SERVICES,GF ADULT SERVICES,05-Mar-18,215489,Susan Barrett t/a All Saints Domiciliary Care Agency,675.6,Revenue,
DIRECT SOCIAL SERVICES,GF ADULT SERVICES,05-Mar-18,215489,Pobl Group Limited T/A Reach Supported Living,552.84,Revenue,
DIRECT SOCIAL SERVICES,GF ADULT SERVICES,05-Mar-18,215489,Pobl Group Limited T/A Reach Supported Living,773.5,Revenue,
DIRECT SOCIAL SERVICES,GF ADULT SERVICES,05-Mar-18,215489,Willowmere Home Care Agency Limited,647.13,Revenue,
DIRECT SOCIAL SERVICES,GF ADULT SERVICES,05-Mar-18,215489,Willowmere Home Care Agency Limited,738.65,Revenue,
DIRECT SOCIAL SERVICES,GF ADULT SERVICES,05-Mar-18,215489,Willowmere Home Care Agency Limited,604.1,Revenue,
DIRECT SOCIAL SERVICES,GF ADULT SERVICES,05-Mar-18,215489,Willowmere Home Care Agency Limited,523.89,Revenue,
DIRECT SOCIAL SERVICES,GF ADULT SERVICES,05-Mar-18,215489,Willowmere Home Care Agency Limited,659.29,Revenue,
DIRECT SOCIAL SERVICES,GF ADULT SERVICES,05-Mar-18,215489,Willowmere Home Care Agency Limited,527.73,Revenue,
DIRECT SOCIAL SERVICES,GF ADULT SERVICES,05-Mar-18,215489,Willowmere Home Care Agency Limited,636.86,Revenue,
DIRECT SOCIAL SERVICES,GF ADULT SERVICES,05-Mar-18,215489,Willowmere Home Care Agency Limited,586.15,Revenue,
DIRECT SOCIAL SERVICES,GF ADULT SERVICES,05-Mar-18,215489,Willowmere Home Care Agency Limited,796.45,Revenue,
DIRECT SOCIAL SERVICES,GF ADULT SERVICES,05-Mar-18,215489,Willowmere Home Care Agency Limited,644.83,Revenue,
DIRECT SOCIAL SERVICES,GF ADULT SERVICES,05-Mar-18,215489,Willowmere Home Care Agency Limited,570.08,Revenue,
DIRECT SOCIAL SERVICES,GF ADULT SERVICES,05-Mar-18,215489,Willowmere Home Care Agency Limited,604.1,Revenue,
DIRECT SOCIAL SERVICES,GF ADULT SERVICES,05-Mar-18,215489,Willowmere Home Care Agency Limited,651.81,Revenue,
DIRECT SOCIAL SERVICES,GF ADULT SERVICES,05-Mar-18,215489,Willowmere Home Care Agency Limited,678.85,Revenue,
DIRECT SOCIAL SERVICES,GF ADULT SERVICES,05-Mar-18,215489,Willowmere Home Care Agency Limited,604.1,Revenue,
DIRECT SOCIAL SERVICES,GF ADULT SERVICES,05-Mar-18,216179,Hallows Care Limited T/A Hallows Care,575.6,Revenue,
DIRECT SOCIAL SERVICES,GF ADULT SERVICES,05-Mar-18,216179,Nestor Primecare Services Limited t/a Allied Healthcare,599.58,Revenue,
DIRECT SOCIAL SERVICES,GF ADULT SERVICES,05-Mar-18,216181,Handicare Accessibility Limited,640.5,Revenue,
DIRECT SOCIAL SERVICES,GF ADULT SERVICES,05-Mar-18,216181,R & M Williams Limited,3095.6,Revenue,
DIRECT SOCIAL SERVICES,GF ADULT SERVICES,05-Mar-18,217909,1st Grade Care Limited,653.78,Revenue,
DIRECT SOCIAL SERVICES,GF ADULT SERVICES,05-Mar-18,217909,Cherish Cymru Limited,568.26,Revenue,
DIRECT SOCIAL SERVICES,GF ADULT SERVICES,05-Mar-18,217909,GJ Care & Training Limited,704.08,Revenue,
DIRECT SOCIAL SERVICES,GF ADULT SERVICES,05-Mar-18,218321,GJ Care & Training Limited,551.32,Revenue,
DIRECT SOCIAL SERVICES,GF BUSINESS MANAGEMENT & INOVATION,05-Mar-18,239016,Melanie Griffin t/a Griffin Books,1335.32,Revenue,
DIRECT SOCIAL SERVICES,GF CHILDREN SERVICES,05-Mar-18,260060,Foster Care Associates Limited,2688.24,Revenue,
DIRECT SOCIAL SERVICES,GF CHILDREN SERVICES,05-Mar-18,260060,Foster Care Associates Limited,2771.5,Revenue,
DIRECT SOCIAL SERVICES,GF CHILDREN SERVICES,05-Mar-18,260060,Foster Care Associates Limited,3623.28,Revenue,
DIRECT SOCIAL SERVICES,GF CHILDREN SERVICES,05-Mar-18,260060,Foster Care Associates Limited,3735.5,Revenue,
DIRECT SOCIAL SERVICES,GF CHILDREN SERVICES,05-Mar-18,260060,Foster Care Associates Limited,3505.5,Revenue,
DIRECT SOCIAL SERVICES,GF CHILDREN SERVICES,05-Mar-18,260060,Foster Care Group Wales Cyf,5264,Revenue,
DIRECT SOCIAL SERVICES,GF CHILDREN SERVICES,05-Mar-18,260060,Priory Healthcare Limited t/a Eastwood Grange Priory,49505,Revenue,
DIRECT SOCIAL SERVICES,GF CHILDREN SERVICES,05-Mar-18,260060,Durham County Council,27745,Revenue,
DIRECT SOCIAL SERVICES,GF CHILDREN SERVICES,05-Mar-18,260060,Durham County Council,12400,Revenue,
DIRECT SOCIAL SERVICES,GF CHILDREN SERVICES,05-Mar-18,260060,Action for Children,1328.7,Revenue,
DIRECT SOCIAL SERVICES,GF CHILDREN SERVICES,05-Mar-18,260060,Dudley Lodge,6377.14,Revenue,
DIRECT ENVIRONMENT AND HOUSING,GF ENV AND VISIBLE,05-Mar-18,325340,G.P.H.I.T (Integrated Services) Limited,552,Revenue,
DIRECT ENVIRONMENT AND HOUSING,GF PARKS AND GROUNDS,05-Mar-18,333154,The Firewood Company (UK) Limited T/A Esa Tree Care,1680,Revenue,
DIRECT ENVIRONMENT AND HOUSING,GF ENV AND VISIBLE,05-Mar-18,341220,Plan B Management Solutions Limited,8500,Revenue,
DIRECT ENVIRONMENT AND HOUSING,REGENERATION & PLANNING,05-Mar-18,355716,Seer Design Services Limited,1500,Revenue,
DIRECT ENVIRONMENT AND HOUSING,VISIBLE SERVICES,05-Mar-18,359330,Motion Control Dance,1500,Revenue,
DIRECT ENVIRONMENT AND HOUSING,VISIBLE SERVICES,05-Mar-18,365786,New Adventure Travel Limited,18855.56,Revenue,
DIRECT ENVIRONMENT AND HOUSING,VISIBLE SERVICES,05-Mar-18,365789,New Adventure Travel Limited,4876.9,Revenue,
DIRECT ENVIRONMENT AND HOUSING,VISIBLE SERVICES,05-Mar-18,365794,New Adventure Travel Limited,1889.1,Revenue,
DIRECT ENVIRONMENT AND HOUSING,VISIBLE SERVICES,05-Mar-18,365803,CJ Contract Travel Services Limited,21859.05,Revenue,
DIRECT ENVIRONMENT AND HOUSING,VISIBLE SERVICES,05-Mar-18,365803,K-Tax Limited,4005,Revenue,
DIRECT ENVIRONMENT AND HOUSING,VISIBLE SERVICES,05-Mar-18,365803,Travellink Solutions Limited,1035,Revenue,
DIRECT ENVIRONMENT AND HOUSING,VISIBLE SERVICES,05-Mar-18,365803,Andrew Maker,910,Revenue,
DIRECT ENVIRONMENT AND HOUSING,VISIBLE SERVICES,05-Mar-18,365803,Wayne Davies t/a Denway Travel,750,Revenue,
DIRECT ENVIRONMENT AND HOUSING,REGULATORY SHARED SERVICES,05-Mar-18,403135,Disclosure and Barring Service,792,Revenue,
DIRECT ENVIRONMENT AND HOUSING,REGULATORY SHARED SERVICES,05-Mar-18,403221,Royal Society For Public Health,600,Revenue,
DIRECT ENVIRONMENT AND HOUSING,GF HOUSING SERVICES,05-Mar-18,405100,ACTL Limited,1617.2,Revenue,
DIRECT ENVIRONMENT AND HOUSING,HOUSING,05-Mar-18,407100,Northgate Public Services (UK) Limited,4100,Revenue,
DIRECT MANAGING DIRECTOR AND RESOURCES,GF RESOURCES,05-Mar-18,420220,Northgate Public Services (UK) Limited,7670.96,Revenue,
DIRECT MANAGING DIRECTOR AND RESOURCES,GF RESOURCES,05-Mar-18,420221,JC Applications Development Limited,4333,Revenue,
DIRECT MANAGING DIRECTOR AND RESOURCES,GF CORPORATE AND CUSTOMER SERVICES,05-Mar-18,440530,Northgate Public Services (UK) Limited,943.7,Revenue,
DIRECT MANAGING DIRECTOR AND RESOURCES,GF GENERAL EXPENDITURE POLICY,05-Mar-18,471901,South Wales Fire and Rescue Service,494925,Revenue,
DIRECT MANAGING DIRECTOR AND RESOURCES,GF SWPA PRECEPTS,05-Mar-18,475970,The Police and Crime Commissioner for South Wales,1053392,Revenue,
DIRECT CAPITAL LEARN AND SKILLS,CAPITAL SCHOOLS,05-Mar-18,810067,Ove Arup & Partners Limited,5900,Capital,
DIRECT CAPITAL SOCIAL SERVICES,CAPITAL COMM CARE & HEALTH,05-Mar-18,821055,Pinit Building & Civil Engineering Limited,-4980,Capital,
DIRECT CAPITAL SOCIAL SERVICES,CAPITAL COMM CARE & HEALTH,05-Mar-18,821055,Pinit Building & Civil Engineering Limited,3230,Capital,
DIRECT CAPITAL VISIBLE AND HOUSING SERVICES,CAPITAL HIGHWAYS,05-Mar-18,831528,Urbis Schreder Limited,57956,Capital,
DIRECT LEARNING AND SKILLS,SCHOOLS DELEGATED,06-Mar-18,101134,RTD Electrical Limited,1600,Revenue,
DIRECT LEARNING AND SKILLS,SCHOOLS DELEGATED,06-Mar-18,101134,Rapid Electronics Limited,1237,Revenue,
DIRECT LEARNING AND SKILLS,SCHOOLS DELEGATED,06-Mar-18,101134,Ricoh UK Limited,523.97,Revenue,
DIRECT LEARNING AND SKILLS,SCHOOLS NON DELEGATED,06-Mar-18,103006,New Directions (Education) Limited,657.5,Revenue,
DIRECT LEARNING AND SKILLS,STRATEGY COMMUNITY LEARNING & RESOURCES,06-Mar-18,120080,Bristol Microfilm & Imaging Limited,891.25,Revenue,
DIRECT LEARNING AND SKILLS,STRATEGY COMMUNITY LEARNING & RESOURCES,06-Mar-18,120080,Oxford University Press,4711.04,Revenue,
DIRECT LEARNING AND SKILLS,STRATEGY COMMUNITY LEARNING & RESOURCES,06-Mar-18,130030,Wenvoe Community Council,561,Revenue,
DIRECT LEARNING AND SKILLS,ACHIEVEMENT FOR ALL,06-Mar-18,130266,Bryn Hafren Comprehensive School,4000,Revenue,
DIRECT LEARNING AND SKILLS,ACHIEVEMENT FOR ALL,06-Mar-18,130266,St Cyres Comprehensive School,730,Revenue,
DIRECT MANAGING DIRECTOR AND RESOURCES,GF HUMAN RESOURCES,06-Mar-18,140131,Randstad Solutions Limited,108744.03,Revenue,
DIRECT MANAGING DIRECTOR AND RESOURCES,GF HUMAN RESOURCES,06-Mar-18,140131,Randstad Solutions Limited,110410.12,Revenue,
DIRECT LEARNING AND SKILLS,CATERING,06-Mar-18,150401,Brake Bros Limited,4214.3,Revenue,
DIRECT LEARNING AND SKILLS,CATERING,06-Mar-18,150401,Castell Howell Foods Limited,5695.51,Revenue,
DIRECT LEARNING AND SKILLS,CATERING,06-Mar-18,150401,Russel Bishop t/a WR Bishop & Co,1307.39,Revenue,
DIRECT LEARNING AND SKILLS,CATERING,06-Mar-18,150671,Brake Bros Limited,3987.26,Revenue,
DIRECT LEARNING AND SKILLS,CATERING,06-Mar-18,150671,Castell Howell Foods Limited,2974.02,Revenue,
DIRECT LEARNING AND SKILLS,CATERING,06-Mar-18,150671,Chapple & Jenkins Limited,1547.64,Revenue,
DIRECT LEARNING AND SKILLS,CATERING,06-Mar-18,150671,The Real Wrap Co. Limited,1391.88,Revenue,
DIRECT LEARNING AND SKILLS,CATERING,06-Mar-18,151360,The Real Wrap Co. Limited,671.29,Revenue,
DIRECT SOCIAL SERVICES,GF ADULT SERVICES,06-Mar-18,212731,Glyn Mcguire & Partners T/A G K The Flooring Specialists,840,Revenue,
DIRECT SOCIAL SERVICES,GF ADULT SERVICES,06-Mar-18,215489,Baltimore Care Limited,635,Revenue,
DIRECT SOCIAL SERVICES,GF ADULT SERVICES,06-Mar-18,215489,Baltimore Care Limited,503.15,Revenue,
DIRECT SOCIAL SERVICES,GF ADULT SERVICES,06-Mar-18,215489,Baltimore Care Limited,503.15,Revenue,
DIRECT SOCIAL SERVICES,GF ADULT SERVICES,06-Mar-18,215489,Baltimore Care Limited,513.15,Revenue,
DIRECT SOCIAL SERVICES,GF ADULT SERVICES,06-Mar-18,215489,Bellavista Nursing Homes (Wales) Limited t/a Bellavista Care Home,574,Revenue,
DIRECT SOCIAL SERVICES,GF ADULT SERVICES,06-Mar-18,215489,Bellavista Nursing Homes (Wales) Limited t/a Bellavista Care Home,685.51,Revenue,
DIRECT SOCIAL SERVICES,GF ADULT SERVICES,06-Mar-18,215489,Broadway Care Centre Limited T/A Hazelhurst Nursing Home,503.15,Revenue,
DIRECT SOCIAL SERVICES,GF ADULT SERVICES,06-Mar-18,215489,Broadway Care Centre Limited T/A Hazelhurst Nursing Home,574,Revenue,
DIRECT SOCIAL SERVICES,GF ADULT SERVICES,06-Mar-18,215489,Duffryn Ffrwd Manor Limited,552.14,Revenue,
DIRECT SOCIAL SERVICES,GF ADULT SERVICES,06-Mar-18,215489,E & E Homes Limited T/A Cliffhaven Residential Home,635,Revenue,
DIRECT SOCIAL SERVICES,GF ADULT SERVICES,06-Mar-18,215489,Forge Care Homes Limited t/a The Forge Care Centre,925,Revenue,
DIRECT SOCIAL SERVICES,GF ADULT SERVICES,06-Mar-18,215489,Forge Care Homes Limited t/a The Forge Care Centre,676.33,Revenue,
DIRECT SOCIAL SERVICES,GF ADULT SERVICES,06-Mar-18,215489,HC-One Oval Limited t/a Wombwell Hall Care Home,4924.64,Revenue,
DIRECT SOCIAL SERVICES,GF ADULT SERVICES,06-Mar-18,215489,Harrison Care Enterprises Barry Limited t/a Island View,503.15,Revenue,
DIRECT SOCIAL SERVICES,GF ADULT SERVICES,06-Mar-18,215489,Hebron Hall Limited,574,Revenue,
DIRECT SOCIAL SERVICES,GF ADULT SERVICES,06-Mar-18,215489,June Zehetmayr t/a Tower Hill Residential Home,538.95,Revenue,
DIRECT SOCIAL SERVICES,GF ADULT SERVICES,06-Mar-18,215489,June Zehetmayr t/a Tower Hill Residential Home,503.15,Revenue,
DIRECT SOCIAL SERVICES,GF ADULT SERVICES,06-Mar-18,215489,Lakeside Homes Limited T/A Lakeside House,551.98,Revenue,
DIRECT SOCIAL SERVICES,GF ADULT SERVICES,06-Mar-18,215489,Llangoedmor Properties Limited T/A Parkside Residential Home,506.15,Revenue,
DIRECT SOCIAL SERVICES,GF ADULT SERVICES,06-Mar-18,215489,Llangoedmor Properties Limited T/A Parkside Residential Home,528.94,Revenue,
DIRECT SOCIAL SERVICES,GF ADULT SERVICES,06-Mar-18,215489,Llangoedmor Properties Limited T/A Parkside Residential Home,502.55,Revenue,
DIRECT SOCIAL SERVICES,GF ADULT SERVICES,06-Mar-18,215489,Llangoedmor Properties Limited T/A Parkside Residential Home,503.15,Revenue,
DIRECT SOCIAL SERVICES,GF ADULT SERVICES,06-Mar-18,215489,MHA Care Group t/a Morel Court,518.24,Revenue,
DIRECT SOCIAL SERVICES,GF ADULT SERVICES,06-Mar-18,215489,MHA Care Group t/a Ty Gwyn Private Nursing Home,557.25,Revenue,
DIRECT SOCIAL SERVICES,GF ADULT SERVICES,06-Mar-18,215489,Middlepatch Limited T/A College Fields Nursing Home,579.07,Revenue,
DIRECT SOCIAL SERVICES,GF ADULT SERVICES,06-Mar-18,215489,Middlepatch Limited T/A College Fields Nursing Home,606.25,Revenue,
DIRECT SOCIAL SERVICES,GF ADULT SERVICES,06-Mar-18,215489,Middlepatch Limited T/A College Fields Nursing Home,585.62,Revenue,
DIRECT SOCIAL SERVICES,GF ADULT SERVICES,06-Mar-18,215489,Middlepatch Limited T/A College Fields Nursing Home,589.85,Revenue,
DIRECT SOCIAL SERVICES,GF ADULT SERVICES,06-Mar-18,215489,Middlepatch Limited T/A College Fields Nursing Home,532.31,Revenue,
DIRECT SOCIAL SERVICES,GF ADULT SERVICES,06-Mar-18,215489,Middlepatch Limited T/A College Fields Nursing Home,543.65,Revenue,
DIRECT SOCIAL SERVICES,GF ADULT SERVICES,06-Mar-18,215489,Middlepatch Limited T/A College Fields Nursing Home,589.85,Revenue,
DIRECT SOCIAL SERVICES,GF ADULT SERVICES,06-Mar-18,215489,Middlepatch Limited T/A College Fields Nursing Home,625.33,Revenue,
DIRECT SOCIAL SERVICES,GF ADULT SERVICES,06-Mar-18,215489,Middlepatch Limited T/A College Fields Nursing Home,555.15,Revenue,
DIRECT SOCIAL SERVICES,GF ADULT SERVICES,06-Mar-18,215489,Middlepatch Limited T/A College Fields Nursing Home,538.81,Revenue,
DIRECT SOCIAL SERVICES,GF ADULT SERVICES,06-Mar-18,215489,Middlepatch Limited T/A College Fields Nursing Home,721.7,Revenue,
DIRECT SOCIAL SERVICES,GF ADULT SERVICES,06-Mar-18,215489,Middlepatch Limited T/A College Fields Nursing Home,589.85,Revenue,
DIRECT SOCIAL SERVICES,GF ADULT SERVICES,06-Mar-18,215489,Middlepatch Limited T/A College Fields Nursing Home,589.85,Revenue,
DIRECT SOCIAL SERVICES,GF ADULT SERVICES,06-Mar-18,215489,Middlepatch Limited T/A College Fields Nursing Home,589.85,Revenue,
DIRECT SOCIAL SERVICES,GF ADULT SERVICES,06-Mar-18,215489,Northcote Developments Limited,509.51,Revenue,
DIRECT SOCIAL SERVICES,GF ADULT SERVICES,06-Mar-18,215489,Northcote Developments Limited,500.49,Revenue,
DIRECT SOCIAL SERVICES,GF ADULT SERVICES,06-Mar-18,215489,Northcote Developments Limited,508.15,Revenue,
DIRECT SOCIAL SERVICES,GF ADULT SERVICES,06-Mar-18,215489,Northcote Developments Limited,534.15,Revenue,
DIRECT SOCIAL SERVICES,GF ADULT SERVICES,06-Mar-18,215489,Northcote Developments Limited,503.14,Revenue,
DIRECT SOCIAL SERVICES,GF ADULT SERVICES,06-Mar-18,215489,Oakville Care Limited t/a Romilly Nursing Home,900,Revenue,
DIRECT SOCIAL SERVICES,GF ADULT SERVICES,06-Mar-18,215489,Springbank Care Home Limited T/A Springbank Nursing Home,576.95,Revenue,
DIRECT SOCIAL SERVICES,GF ADULT SERVICES,06-Mar-18,215489,Springbank Care Home Limited T/A Springbank Nursing Home,614,Revenue,
DIRECT SOCIAL SERVICES,GF ADULT SERVICES,06-Mar-18,215489,Springbank Care Home Limited T/A Springbank Nursing Home,543.15,Revenue,
DIRECT SOCIAL SERVICES,GF ADULT SERVICES,06-Mar-18,215489,Springbank Care Home Limited T/A Springbank Nursing Home,512.1,Revenue,
DIRECT SOCIAL SERVICES,GF ADULT SERVICES,06-Mar-18,215489,The Manor House St Hilary Limited T/A Milsom House,642.99,Revenue,
DIRECT SOCIAL SERVICES,GF ADULT SERVICES,06-Mar-18,215489,The Manor House St Hilary Limited T/A Milsom House,508.42,Revenue,
DIRECT SOCIAL SERVICES,GF ADULT SERVICES,06-Mar-18,215489,The Manor House St Hilary Limited T/A Milsom House,523.55,Revenue,
DIRECT SOCIAL SERVICES,GF ADULT SERVICES,06-Mar-18,215489,Waverley Care Centre Limited,505.25,Revenue,
DIRECT SOCIAL SERVICES,GF ADULT SERVICES,06-Mar-18,215489,Waverley Care Centre Limited,590.32,Revenue,
DIRECT SOCIAL SERVICES,GF ADULT SERVICES,06-Mar-18,215489,Waverley Care Centre Limited,558.56,Revenue,
DIRECT SOCIAL SERVICES,GF ADULT SERVICES,06-Mar-18,215489,Waverley Care Centre Limited,541.69,Revenue,
DIRECT SOCIAL SERVICES,GF ADULT SERVICES,06-Mar-18,215489,Waverley Care Centre Limited,599.15,Revenue,
DIRECT SOCIAL SERVICES,GF ADULT SERVICES,06-Mar-18,216179,Accomplish Group Limited t/a Cedar House,1381.33,Revenue,
DIRECT SOCIAL SERVICES,GF ADULT SERVICES,06-Mar-18,216179,Amethyst Healthcare Limited t/a Hillstone House,1770.83,Revenue,
DIRECT SOCIAL SERVICES,GF ADULT SERVICES,06-Mar-18,216179,Bellavista Nursing Homes (Wales) Limited t/a Bellavista Care Home,536.95,Revenue,
DIRECT SOCIAL SERVICES,GF ADULT SERVICES,06-Mar-18,216179,Care 4 U (Neath) Limited,1754.28,Revenue,
DIRECT SOCIAL SERVICES,GF ADULT SERVICES,06-Mar-18,216179,Crusader Medical Care Limited T/A St Saviours Nursing Home,551.95,Revenue,
DIRECT SOCIAL SERVICES,GF ADULT SERVICES,06-Mar-18,216179,Leonard Cheshire Disability,970.98,Revenue,
DIRECT SOCIAL SERVICES,GF ADULT SERVICES,06-Mar-18,216179,Middlepatch Limited T/A College Fields Nursing Home,721.7,Revenue,
DIRECT SOCIAL SERVICES,GF ADULT SERVICES,06-Mar-18,216179,Pontcanna Care Limited T/A Ty Llandaff Care Home,795.32,Revenue,
DIRECT SOCIAL SERVICES,GF ADULT SERVICES,06-Mar-18,216179,Valebrook Care Homes Limited,1851.95,Revenue,
DIRECT SOCIAL SERVICES,GF ADULT SERVICES,06-Mar-18,216179,Voyage 1 Limited t/a Brook Lodge,2626.85,Revenue,
DIRECT SOCIAL SERVICES,GF ADULT SERVICES,06-Mar-18,216179,Voyage 1 Limited t/a Falcons Rest & Poachers Cottage,1729.64,Revenue,
DIRECT SOCIAL SERVICES,GF ADULT SERVICES,06-Mar-18,216181,Handicare Accessibility Limited,1200,Revenue,
DIRECT SOCIAL SERVICES,GF ADULT SERVICES,06-Mar-18,217909,Consensus Support Services Limited t/a Ty Machen,2285.13,Revenue,
DIRECT SOCIAL SERVICES,GF ADULT SERVICES,06-Mar-18,217909,Accomplish Group Limited,1822.08,Revenue,
DIRECT SOCIAL SERVICES,GF ADULT SERVICES,06-Mar-18,217909,Accomplish Group Limited,2147.07,Revenue,
DIRECT SOCIAL SERVICES,GF ADULT SERVICES,06-Mar-18,217909,Accomplish Group Limited t/a Cedar House,1585.35,Revenue,
DIRECT SOCIAL SERVICES,GF ADULT SERVICES,06-Mar-18,217909,Amethyst Healthcare Limited t/a Hillstone House,1681.46,Revenue,
DIRECT SOCIAL SERVICES,GF ADULT SERVICES,06-Mar-18,217909,Amethyst Healthcare Limited t/a Hillstone House,1462.73,Revenue,
DIRECT SOCIAL SERVICES,GF ADULT SERVICES,06-Mar-18,217909,Glasallt Fawr Camphill Centre,999.82,Revenue,
DIRECT SOCIAL SERVICES,GF ADULT SERVICES,06-Mar-18,217909,Glasallt Fawr Camphill Centre,1560.05,Revenue,
DIRECT SOCIAL SERVICES,GF ADULT SERVICES,06-Mar-18,217909,Heatherleigh Care Limited t/a 106 Splott Road,1562.71,Revenue,
DIRECT SOCIAL SERVICES,GF ADULT SERVICES,06-Mar-18,217909,Heatherleigh Care Limited t/a 106 Splott Road,1223.74,Revenue,
DIRECT SOCIAL SERVICES,GF ADULT SERVICES,06-Mar-18,217909,Llysywaun Limited t/a Bayview Lodge Nursing Home,1579.54,Revenue,
DIRECT SOCIAL SERVICES,GF ADULT SERVICES,06-Mar-18,217909,Ocean Community Services Limited t/a Westminster Court Care Home,1116.87,Revenue,
DIRECT SOCIAL SERVICES,GF ADULT SERVICES,06-Mar-18,217909,The Cedars Care Services Limited T/A Ashgrove Care Home,2112.95,Revenue,
DIRECT SOCIAL SERVICES,GF ADULT SERVICES,06-Mar-18,217909,The Cedars Care Services Limited T/A Ashgrove Care Home,992.95,Revenue,
DIRECT SOCIAL SERVICES,GF ADULT SERVICES,06-Mar-18,217909,The Cedars Care Services Limited T/A Oaklands,1030.95,Revenue,
DIRECT SOCIAL SERVICES,GF ADULT SERVICES,06-Mar-18,217909,The Cedars Care Services Limited t/a Sycamore House,2026.95,Revenue,
DIRECT SOCIAL SERVICES,GF ADULT SERVICES,06-Mar-18,217909,The Cedars Care Services Limited t/a Sycamore House,1809.95,Revenue,
DIRECT SOCIAL SERVICES,GF ADULT SERVICES,06-Mar-18,217909,The Cedars Care Services Limited t/a The Cedars,1576.66,Revenue,
DIRECT SOCIAL SERVICES,GF ADULT SERVICES,06-Mar-18,217909,The Cedars Care Services Limited t/a The Cedars,1365.65,Revenue,
DIRECT SOCIAL SERVICES,GF ADULT SERVICES,06-Mar-18,217909,Vale Phoenix Limited,1080.33,Revenue,
DIRECT SOCIAL SERVICES,GF ADULT SERVICES,06-Mar-18,217909,Vale Phoenix Limited,1117.54,Revenue,
DIRECT SOCIAL SERVICES,GF ADULT SERVICES,06-Mar-18,217909,Valebrook Care Homes Limited,1657.04,Revenue,
DIRECT SOCIAL SERVICES,GF ADULT SERVICES,06-Mar-18,217909,Valebrook Care Homes Limited,2000.1,Revenue,
DIRECT SOCIAL SERVICES,GF ADULT SERVICES,06-Mar-18,217909,Valebrook Care Homes Limited,1421.34,Revenue,
DIRECT SOCIAL SERVICES,GF ADULT SERVICES,06-Mar-18,217909,Valebrook Care Homes Limited,1765.95,Revenue,
DIRECT SOCIAL SERVICES,GF ADULT SERVICES,06-Mar-18,217909,Valebrook Care Homes Limited,1861.95,Revenue,
DIRECT SOCIAL SERVICES,GF ADULT SERVICES,06-Mar-18,217909,Valebrook Care Homes Limited,1390.84,Revenue,
DIRECT SOCIAL SERVICES,GF ADULT SERVICES,06-Mar-18,218321,Adriana Limited T/A The Priory Nursing Home,536,Revenue,
DIRECT SOCIAL SERVICES,GF ADULT SERVICES,06-Mar-18,218321,Broadway Care Centre Limited T/A Hazelhurst Nursing Home,708.67,Revenue,
DIRECT SOCIAL SERVICES,GF ADULT SERVICES,06-Mar-18,218321,Hafod Care Association Limited,619.96,Revenue,
DIRECT SOCIAL SERVICES,GF ADULT SERVICES,06-Mar-18,218321,Harrison Care Enterprises Barry Limited t/a Island View,508.27,Revenue,
DIRECT SOCIAL SERVICES,GF ADULT SERVICES,06-Mar-18,218321,Isman & Kinze Nessa T/A Haven House,503.15,Revenue,
DIRECT SOCIAL SERVICES,GF ADULT SERVICES,06-Mar-18,218321,J and P Residential Homes Limited T/A Monkstone House,578,Revenue,
DIRECT SOCIAL SERVICES,GF ADULT SERVICES,06-Mar-18,218321,Sanda Mitchel & Ptn t/a Canola House Residential Home,578,Revenue,
DIRECT SOCIAL SERVICES,GF ADULT SERVICES,06-Mar-18,218321,Waverley Care Centre Limited,909.98,Revenue,
DIRECT SOCIAL SERVICES,GF ADULT SERVICES,06-Mar-18,218419,Anwen Care Limited t/a Anwen Care Home,664,Revenue,
DIRECT SOCIAL SERVICES,GF ADULT SERVICES,06-Mar-18,218419,Baltimore Care Limited,500.06,Revenue,
DIRECT SOCIAL SERVICES,GF ADULT SERVICES,06-Mar-18,218419,Baltimore Care Limited,514.15,Revenue,
DIRECT SOCIAL SERVICES,GF ADULT SERVICES,06-Mar-18,218419,Baltimore Care Limited,1028.3,Revenue,
DIRECT SOCIAL SERVICES,GF ADULT SERVICES,06-Mar-18,218419,Barchester Healthcare Homes Limited T/A Bushey House Beaumont,1400,Revenue,
DIRECT SOCIAL SERVICES,GF ADULT SERVICES,06-Mar-18,218419,Bellavista Care (Cardiff) Limited T/A Bellavista Nursing Home Cardiff,697.45,Revenue,
DIRECT SOCIAL SERVICES,GF ADULT SERVICES,06-Mar-18,218419,Bellavista Care (Cardiff) Limited T/A Bellavista Nursing Home Cardiff,670.14,Revenue,
DIRECT SOCIAL SERVICES,GF ADULT SERVICES,06-Mar-18,218419,Broadway Care Centre Limited T/A Hazelhurst Nursing Home,503.15,Revenue,
DIRECT SOCIAL SERVICES,GF ADULT SERVICES,06-Mar-18,218419,David Austin t/a Silverdale,669.15,Revenue,
DIRECT SOCIAL SERVICES,GF ADULT SERVICES,06-Mar-18,218419,E & E Homes Limited T/A Cliffhaven Residential Home,503.15,Revenue,
DIRECT SOCIAL SERVICES,GF ADULT SERVICES,06-Mar-18,218419,Forge Care Homes Limited t/a The Forge Care Centre,703.44,Revenue,
DIRECT SOCIAL SERVICES,GF ADULT SERVICES,06-Mar-18,218419,Forge Care Homes Limited t/a The Forge Care Centre,644.7,Revenue,
DIRECT SOCIAL SERVICES,GF ADULT SERVICES,06-Mar-18,218419,Hallmark Care Homes (Bute Town) Limited t/a Shire Hall Care Home,1218.15,Revenue,
DIRECT SOCIAL SERVICES,GF ADULT SERVICES,06-Mar-18,218419,Harrison Care Enterprises Barry Limited t/a Island View,503.15,Revenue,
DIRECT SOCIAL SERVICES,GF ADULT SERVICES,06-Mar-18,218419,Harrison Care Enterprises Barry Limited t/a Island View,635,Revenue,
DIRECT SOCIAL SERVICES,GF ADULT SERVICES,06-Mar-18,218419,Harrison Care Enterprises Barry Limited t/a Island View,502.53,Revenue,
DIRECT SOCIAL SERVICES,GF ADULT SERVICES,06-Mar-18,218419,Harrison Care Enterprises Barry Limited t/a Island View,530.99,Revenue,
DIRECT SOCIAL SERVICES,GF ADULT SERVICES,06-Mar-18,218419,Harrison Care Enterprises Barry Limited t/a Island View,503.15,Revenue,
DIRECT SOCIAL SERVICES,GF ADULT SERVICES,06-Mar-18,218419,Harrison Care Enterprises Barry Limited t/a Island View,503.15,Revenue,
DIRECT SOCIAL SERVICES,GF ADULT SERVICES,06-Mar-18,218419,Harrison Care Enterprises Barry Limited t/a Island View,503.15,Revenue,
DIRECT SOCIAL SERVICES,GF ADULT SERVICES,06-Mar-18,218419,Harrison Care Enterprises Barry Limited t/a Island View,503.15,Revenue,
DIRECT SOCIAL SERVICES,GF ADULT SERVICES,06-Mar-18,218419,June Zehetmayr t/a Tower Hill Residential Home,635,Revenue,
DIRECT SOCIAL SERVICES,GF ADULT SERVICES,06-Mar-18,218419,June Zehetmayr t/a Tower Hill Residential Home,503.15,Revenue,
DIRECT SOCIAL SERVICES,GF ADULT SERVICES,06-Mar-18,218419,Llangoedmor Properties Limited T/A Parkside Residential Home,562.14,Revenue,
DIRECT SOCIAL SERVICES,GF ADULT SERVICES,06-Mar-18,218419,Llangoedmor Properties Limited T/A Parkside Residential Home,635,Revenue,
DIRECT SOCIAL SERVICES,GF ADULT SERVICES,06-Mar-18,218419,Louise Bertorelli & Jaco Van Der Merwe T/A The Oaklands Residential Home,1735.15,Revenue,
DIRECT SOCIAL SERVICES,GF ADULT SERVICES,06-Mar-18,218419,Shirwan Al-Mufti & Ptn t/a Pontcanna House,600,Revenue,
DIRECT SOCIAL SERVICES,GF ADULT SERVICES,06-Mar-18,218419,The Manor House St Hilary Limited T/A Milsom House,506.14,Revenue,
DIRECT SOCIAL SERVICES,GF ADULT SERVICES,06-Mar-18,218419,Waverley Care Centre Limited,631.25,Revenue,
DIRECT SOCIAL SERVICES,GF ADULT SERVICES,06-Mar-18,218419,Waverley Care Centre Limited,578.22,Revenue,
DIRECT SOCIAL SERVICES,GF ADULT SERVICES,06-Mar-18,218419,Waverley Care Centre Limited,514.4,Revenue,
DIRECT SOCIAL SERVICES,GF ADULT SERVICES,06-Mar-18,218419,Waverley Care Centre Limited,672.09,Revenue,
DIRECT SOCIAL SERVICES,GF CHILDREN SERVICES,06-Mar-18,260130,Llamau Limited,560,Revenue,
DIRECT SOCIAL SERVICES,GF CHILDREN SERVICES,06-Mar-18,260235,Paul's Taxis (Carmarthen) Limited,500,Revenue,
DIRECT ENVIRONMENT AND HOUSING,GF ENV AND VISIBLE,06-Mar-18,325323,Go Surveys Limited,750,Revenue,
DIRECT ENVIRONMENT AND HOUSING,GF ENV AND VISIBLE,06-Mar-18,325681,Hays Specialist Recruitment Limited,1443.36,Revenue,
DIRECT ENVIRONMENT AND HOUSING,GF PARKS AND GROUNDS,06-Mar-18,333015,Vale of Glamorgan Senior League,1500,Revenue,
DIRECT ENVIRONMENT AND HOUSING,GF PARKS AND GROUNDS,06-Mar-18,333037,Urban Recreation Limited,1240,Revenue,
DIRECT ENVIRONMENT AND HOUSING,GF ENV AND VISIBLE,06-Mar-18,341182,Bruton Knowles LLP - client account R Thomas Investments RENT,900,Revenue,
DIRECT ENVIRONMENT AND HOUSING,GF LEGAL AND DEMOCRATIC,06-Mar-18,400063,ITS Technology Group Limited,5500,Revenue,
DIRECT ENVIRONMENT AND HOUSING,REGULATORY SHARED SERVICES,06-Mar-18,403208,Lawrence Corria t/a Spectrum Printing,4412,Revenue,
DIRECT MANAGING DIRECTOR AND RESOURCES,GF RESOURCES,06-Mar-18,421230,Metacompliance Limited,1606.8,Revenue,
DIRECT MANAGING DIRECTOR AND RESOURCES,GF RESOURCES,06-Mar-18,422100,Zip Heaters (UK) Limited,963.05,Revenue,
DIRECT LEARNING AND SKILLS,ACHIEVEMENT FOR ALL,06-Mar-18,440615,Barnardos Cymru,13490,Revenue,
DIRECT CAPITAL VISIBLE AND HOUSING SERVICES,AR CAPITAL ENGINEER,06-Mar-18,831210,Go Surveys Limited,750,Capital,
DIRECT CAPITAL VISIBLE AND HOUSING SERVICES,AR CAPITAL WASTE,06-Mar-18,832710,Webaspx Limited,74016,Capital,
DIRECT CAPITAL VISIBLE AND HOUSING SERVICES,CAPITAL HRA,06-Mar-18,842146,Alex French Associates Limited,4485,Capital,
DIRECT CAPITAL VISIBLE AND HOUSING SERVICES,CAPITAL HRA,06-Mar-18,842163,RPA Quantity Surveyors Limited t/a RPA,500,Capital,
DIRECT CAPITAL DEVELOPMENT,CAPITAL PRIV HSG,06-Mar-18,845003,ASW Property Services Limited,7061.5,Capital,
DIRECT CAPITAL DEVELOPMENT,CAPITAL PRIV HSG,06-Mar-18,845003,Arnold Building & Carpentry Limited,3474.24,Capital,
DIRECT CAPITAL DEVELOPMENT,CAPITAL PRIV HSG,06-Mar-18,845003,R & M Williams Limited,6457.29,Capital,
DIRECT CAPITAL DEVELOPMENT,CAPITAL PRIV HSG,06-Mar-18,845003,Thyssen-Krupp Access Limited T/A Encasa,1760,Capital,
DIRECT CAPITAL DEVELOPMENT,CAPITAL PRIV HSG,06-Mar-18,845003,Timothy Steed & Ptn t/a Royall Windows,2979.5,Capital,
DIRECT LEARNING AND SKILLS,STRATEGY COMMUNITY LEARNING & RESOURCES,07-Mar-18,100112,Wales Audit Office,562.5,Revenue,
DIRECT LEARNING AND SKILLS,SCHOOLS DELEGATED,07-Mar-18,101047,Chess in Schools and Communities,1120,Revenue,
DIRECT LEARNING AND SKILLS,SCHOOLS DELEGATED,07-Mar-18,101047,Quality Office Supplies Limited t/a South Wales PaperTeam,536.75,Revenue,
DIRECT LEARNING AND SKILLS,SCHOOLS DELEGATED,07-Mar-18,101047,Summit Insurance Services Limited T/A Compucover,523.09,Revenue,
DIRECT LEARNING AND SKILLS,SCHOOLS DELEGATED,07-Mar-18,101047,Eastern Shires Purchasing Organisation,928,Revenue,
DIRECT LEARNING AND SKILLS,SCHOOLS DELEGATED,07-Mar-18,101216,DFE UK Limited,780,Revenue,
DIRECT LEARNING AND SKILLS,SCHOOLS DELEGATED,07-Mar-18,101216,Yorkshire Purchasing Organisation,714.96,Revenue,
DIRECT LEARNING AND SKILLS,STRATEGY COMMUNITY LEARNING & RESOURCES,07-Mar-18,120080,Bibliographic Data Services Limited,1540,Revenue,
DIRECT ENVIRONMENT AND HOUSING,REGENERATION & PLANNING,07-Mar-18,130510,Ace Site Services (UK) Limited,1700,Revenue,
DIRECT ENVIRONMENT AND HOUSING,REGENERATION & PLANNING,07-Mar-18,130512,Gofal Cymru,500,Revenue,
DIRECT ENVIRONMENT AND HOUSING,REGENERATION & PLANNING,07-Mar-18,130512,Gofal Cymru,500,Revenue,
DIRECT MANAGING DIRECTOR AND RESOURCES,GF HUMAN RESOURCES,07-Mar-18,140119,Acorn Recruitment Limited,1606.25,Revenue,
DIRECT MANAGING DIRECTOR AND RESOURCES,GF HUMAN RESOURCES,07-Mar-18,140119,Acorn Recruitment Limited,1519.02,Revenue,
DIRECT SOCIAL SERVICES,GF CHILDREN SERVICES,07-Mar-18,201711,Thyssenkrupp Elevator UK Limited,2678,Revenue,
DIRECT SOCIAL SERVICES,GF CHILDREN SERVICES,07-Mar-18,209151,Gibbonsdown Childrens Centre Limited,7920,Revenue,
DIRECT SOCIAL SERVICES,GF CHILDREN SERVICES,07-Mar-18,209151,Gibbonsdown Childrens Centre Limited,900,Revenue,
DIRECT SOCIAL SERVICES,GF CHILDREN SERVICES,07-Mar-18,209151,Little Inspirations Limited,2805,Revenue,
DIRECT SOCIAL SERVICES,GF ADULT SERVICES,07-Mar-18,213271,PHS Group Plc,774.48,Revenue,
DIRECT SOCIAL SERVICES,GF ADULT SERVICES,07-Mar-18,215025,Innovate Trust Limited,2418.5,Revenue,
DIRECT SOCIAL SERVICES,GF ADULT SERVICES,07-Mar-18,215489,All Care (South Wales) Limited,727.06,Revenue,
DIRECT SOCIAL SERVICES,GF ADULT SERVICES,07-Mar-18,215489,All Care (South Wales) Limited,593.22,Revenue,
DIRECT SOCIAL SERVICES,GF ADULT SERVICES,07-Mar-18,215489,All Care (South Wales) Limited,674.2,Revenue,
DIRECT SOCIAL SERVICES,GF ADULT SERVICES,07-Mar-18,215489,All Care (South Wales) Limited,636.44,Revenue,
DIRECT SOCIAL SERVICES,GF ADULT SERVICES,07-Mar-18,215489,All Care (South Wales) Limited,579.85,Revenue,
DIRECT SOCIAL SERVICES,GF ADULT SERVICES,07-Mar-18,215489,All Care (South Wales) Limited,737.34,Revenue,
DIRECT SOCIAL SERVICES,GF ADULT SERVICES,07-Mar-18,215489,All Care (South Wales) Limited,815.71,Revenue,
DIRECT SOCIAL SERVICES,GF ADULT SERVICES,07-Mar-18,215489,All Care (South Wales) Limited,662.28,Revenue,
DIRECT SOCIAL SERVICES,GF ADULT SERVICES,07-Mar-18,215489,All Care (South Wales) Limited,636.44,Revenue,
DIRECT SOCIAL SERVICES,GF ADULT SERVICES,07-Mar-18,215489,All Care (South Wales) Limited,737.34,Revenue,
DIRECT SOCIAL SERVICES,GF ADULT SERVICES,07-Mar-18,215489,All Care (South Wales) Limited,815.71,Revenue,
DIRECT SOCIAL SERVICES,GF ADULT SERVICES,07-Mar-18,215489,Annwyl Limited t/a Bluebird Care,633.05,Revenue,
DIRECT SOCIAL SERVICES,GF ADULT SERVICES,07-Mar-18,215489,Annwyl Limited t/a Bluebird Care,707.37,Revenue,
DIRECT SOCIAL SERVICES,GF ADULT SERVICES,07-Mar-18,215489,Annwyl Limited t/a Bluebird Care,552.51,Revenue,
DIRECT SOCIAL SERVICES,GF ADULT SERVICES,07-Mar-18,215489,Care In Wales Limited T/A Care in the Vale,706.21,Revenue,
DIRECT SOCIAL SERVICES,GF ADULT SERVICES,07-Mar-18,215489,Care In Wales Limited T/A Care in the Vale,706.21,Revenue,
DIRECT SOCIAL SERVICES,GF ADULT SERVICES,07-Mar-18,215489,Healthcare Assistants Limited,561.56,Revenue,
DIRECT SOCIAL SERVICES,GF ADULT SERVICES,07-Mar-18,215489,Pobl Group Limited T/A Reach Supported Living,773.5,Revenue,
DIRECT SOCIAL SERVICES,GF ADULT SERVICES,07-Mar-18,215489,Alison Hill,7896.52,Revenue,
DIRECT SOCIAL SERVICES,GF ADULT SERVICES,07-Mar-18,215489,Willowmere Home Care Agency Limited,647.13,Revenue,
DIRECT SOCIAL SERVICES,GF ADULT SERVICES,07-Mar-18,215489,Willowmere Home Care Agency Limited,738.65,Revenue,
DIRECT SOCIAL SERVICES,GF ADULT SERVICES,07-Mar-18,215489,Willowmere Home Care Agency Limited,604.1,Revenue,
DIRECT SOCIAL SERVICES,GF ADULT SERVICES,07-Mar-18,215489,Willowmere Home Care Agency Limited,523.89,Revenue,
DIRECT SOCIAL SERVICES,GF ADULT SERVICES,07-Mar-18,215489,Willowmere Home Care Agency Limited,659.29,Revenue,
DIRECT SOCIAL SERVICES,GF ADULT SERVICES,07-Mar-18,215489,Willowmere Home Care Agency Limited,527.73,Revenue,
DIRECT SOCIAL SERVICES,GF ADULT SERVICES,07-Mar-18,215489,Willowmere Home Care Agency Limited,636.86,Revenue,
DIRECT SOCIAL SERVICES,GF ADULT SERVICES,07-Mar-18,215489,Willowmere Home Care Agency Limited,586.15,Revenue,
DIRECT SOCIAL SERVICES,GF ADULT SERVICES,07-Mar-18,215489,Willowmere Home Care Agency Limited,796.45,Revenue,
DIRECT SOCIAL SERVICES,GF ADULT SERVICES,07-Mar-18,215489,Willowmere Home Care Agency Limited,644.83,Revenue,
DIRECT SOCIAL SERVICES,GF ADULT SERVICES,07-Mar-18,215489,Willowmere Home Care Agency Limited,570.08,Revenue,
DIRECT SOCIAL SERVICES,GF ADULT SERVICES,07-Mar-18,215489,Willowmere Home Care Agency Limited,604.1,Revenue,
DIRECT SOCIAL SERVICES,GF ADULT SERVICES,07-Mar-18,215489,Willowmere Home Care Agency Limited,651.81,Revenue,
DIRECT SOCIAL SERVICES,GF ADULT SERVICES,07-Mar-18,215489,Willowmere Home Care Agency Limited,678.85,Revenue,
DIRECT SOCIAL SERVICES,GF ADULT SERVICES,07-Mar-18,216179,All Care (South Wales) Limited,878.78,Revenue,
DIRECT SOCIAL SERVICES,GF ADULT SERVICES,07-Mar-18,216179,All Care (South Wales) Limited,534.38,Revenue,
DIRECT SOCIAL SERVICES,GF ADULT SERVICES,07-Mar-18,216179,All Care (South Wales) Limited,762.31,Revenue,
DIRECT SOCIAL SERVICES,GF ADULT SERVICES,07-Mar-18,216179,Annwyl Limited t/a Bluebird Care,720,Revenue,
DIRECT SOCIAL SERVICES,GF ADULT SERVICES,07-Mar-18,216179,Recovery Care Limited,2395.4,Revenue,
DIRECT SOCIAL SERVICES,GF ADULT SERVICES,07-Mar-18,216179,Recovery Care Limited,2360,Revenue,
DIRECT SOCIAL SERVICES,GF ADULT SERVICES,07-Mar-18,216179,Crosshands Care Limited,4502.04,Revenue,
DIRECT SOCIAL SERVICES,GF ADULT SERVICES,07-Mar-18,217909,Valeplus (Cymru) & Valeplus Extra,1853.28,Revenue,
DIRECT SOCIAL SERVICES,GF ADULT SERVICES,07-Mar-18,217909,Valeplus (Cymru) & Valeplus Extra,1312.74,Revenue,
DIRECT SOCIAL SERVICES,GF ADULT SERVICES,07-Mar-18,217909,Susan Heffernan T/A Baruc Guest House,656.2,Revenue,
DIRECT SOCIAL SERVICES,GF ADULT SERVICES,07-Mar-18,217909,Susan Heffernan T/A Baruc Guest House,980,Revenue,
DIRECT SOCIAL SERVICES,GF ADULT SERVICES,07-Mar-18,217909,HF Trust Limited,4463.2,Revenue,
DIRECT SOCIAL SERVICES,GF ADULT SERVICES,07-Mar-18,218302,Training In Mind Limited,4970.55,Revenue,
DIRECT SOCIAL SERVICES,GF ADULT SERVICES,07-Mar-18,218302,Training In Mind Limited,2617.7,Revenue,
DIRECT SOCIAL SERVICES,GF ADULT SERVICES,07-Mar-18,218419,All Care (South Wales) Limited,657.58,Revenue,
DIRECT SOCIAL SERVICES,GF ADULT SERVICES,07-Mar-18,218419,Annwyl Limited t/a Bluebird Care,603.88,Revenue,
DIRECT SOCIAL SERVICES,GF ADULT SERVICES,07-Mar-18,218419,Annwyl Limited t/a Bluebird Care,573.99,Revenue,
DIRECT SOCIAL SERVICES,GF ADULT SERVICES,07-Mar-18,218419,Annwyl Limited t/a Bluebird Care,625.64,Revenue,
DIRECT SOCIAL SERVICES,GF ADULT SERVICES,07-Mar-18,218419,Annwyl Limited t/a Bluebird Care,625.64,Revenue,
DIRECT SOCIAL SERVICES,GF ADULT SERVICES,07-Mar-18,218419,Care In Wales Limited T/A Care in the Vale,837.44,Revenue,
DIRECT SOCIAL SERVICES,GF ADULT SERVICES,07-Mar-18,218419,Care In Wales Limited T/A Care in the Vale,732.76,Revenue,
DIRECT SOCIAL SERVICES,GF ADULT SERVICES,07-Mar-18,218419,Care In Wales Limited T/A Care in the Vale,732.76,Revenue,
DIRECT SOCIAL SERVICES,GF ADULT SERVICES,07-Mar-18,218419,Care In Wales Limited T/A Care in the Vale,732.76,Revenue,
DIRECT SOCIAL SERVICES,GF ADULT SERVICES,07-Mar-18,218419,Care In Wales Limited T/A Care in the Vale,732.76,Revenue,
DIRECT SOCIAL SERVICES,GF ADULT SERVICES,07-Mar-18,218419,Care In Wales Limited T/A Care in the Vale,942.12,Revenue,
DIRECT SOCIAL SERVICES,GF ADULT SERVICES,07-Mar-18,218419,The Gathering Place,880,Revenue,
DIRECT SOCIAL SERVICES,GF ADULT SERVICES,07-Mar-18,218419,The Gathering Place,801.71,Revenue,
DIRECT SOCIAL SERVICES,GF BUSINESS MANAGEMENT & INOVATION,07-Mar-18,239011,Wales Audit Office,784.75,Revenue,
DIRECT SOCIAL SERVICES,GF BUSINESS MANAGEMENT & INOVATION,07-Mar-18,239771,Wales Audit Office,1740.75,Revenue,
DIRECT SOCIAL SERVICES,GF CHILDREN SERVICES,07-Mar-18,260020,Wales Audit Office,1547.25,Revenue,
DIRECT SOCIAL SERVICES,GF CHILDREN SERVICES,07-Mar-18,260060,BetterCare Keys Limited,9624,Revenue,
DIRECT SOCIAL SERVICES,GF CHILDREN SERVICES,07-Mar-18,260090,Action for Children Services Limited,92766.32,Revenue,
DIRECT SOCIAL SERVICES,GF CHILDREN SERVICES,07-Mar-18,260090,Barnardos Cymru,28172.06,Revenue,
DIRECT SOCIAL SERVICES,GF CHILDREN SERVICES,07-Mar-18,260091,Action for Children Services Limited,75000,Revenue,
DIRECT SOCIAL SERVICES,GF CHILDREN SERVICES,07-Mar-18,260130,Llamau Limited,700,Revenue,
DIRECT SOCIAL SERVICES,GF CHILDREN SERVICES,07-Mar-18,260160,Mandy Squires t/a The Therapy Project,795,Revenue,
DIRECT SOCIAL SERVICES,GF CHILDREN SERVICES,07-Mar-18,260220,Swansea Social Care Limited,2200.25,Revenue,
DIRECT SOCIAL SERVICES,GF CHILDREN SERVICES,07-Mar-18,260235,Securcare Limited,2943.2,Revenue,
DIRECT SOCIAL SERVICES,GF CHILDREN SERVICES,07-Mar-18,260235,Cylch Meithrin Llanilltud Fawr,909,Revenue,
DIRECT ENVIRONMENT AND HOUSING,VEHICLES,07-Mar-18,319010,Fleetwheel Limited,558.18,Revenue,
DIRECT ENVIRONMENT AND HOUSING,VEHICLES,07-Mar-18,319010,Fleetwheel Limited,552.23,Revenue,
DIRECT ENVIRONMENT AND HOUSING,VEHICLES,07-Mar-18,319010,Ceri Williams t/a Mobile Tyre Services,1481.81,Revenue,
DIRECT ENVIRONMENT AND HOUSING,VEHICLES,07-Mar-18,319010,Paul R Curtis t/a PRC Plant Cleaning,675,Revenue,
DIRECT ENVIRONMENT AND HOUSING,VEHICLES,07-Mar-18,319010,Paul R Curtis t/a PRC Plant Cleaning,645,Revenue,
DIRECT ENVIRONMENT AND HOUSING,REGENERATION & PLANNING,07-Mar-18,352730,Hexion UK Limited,4248.83,Revenue,
DIRECT ENVIRONMENT AND HOUSING,REGENERATION & PLANNING,07-Mar-18,354727,Paul Barnes T/A Barnes Environmental Contractors,1910,Revenue,
DIRECT ENVIRONMENT AND HOUSING,VISIBLE SERVICES,07-Mar-18,359330,Sports Leaders UK Limited,525,Revenue,
DIRECT ENVIRONMENT AND HOUSING,VISIBLE SERVICES,07-Mar-18,365769,Wales Audit Office,1345,Revenue,
DIRECT ENVIRONMENT AND HOUSING,VISIBLE SERVICES,07-Mar-18,365786,Cardiff City Transport Services Limited,97218.82,Revenue,
DIRECT ENVIRONMENT AND HOUSING,VISIBLE SERVICES,07-Mar-18,365787,Cardiff City Transport Services Limited,5880,Revenue,
DIRECT ENVIRONMENT AND HOUSING,VISIBLE SERVICES,07-Mar-18,365787,First Cymru Buses Limited,3252.16,Revenue,
DIRECT ENVIRONMENT AND HOUSING,VISIBLE SERVICES,07-Mar-18,365791,Cardiff City Transport Services Limited,3860.4,Revenue,
DIRECT ENVIRONMENT AND HOUSING,VISIBLE SERVICES,07-Mar-18,365791,Cardiff City Transport Services Limited,912.52,Revenue,
DIRECT ENVIRONMENT AND HOUSING,VISIBLE SERVICES,07-Mar-18,365791,Cardiff City Transport Services Limited,1180,Revenue,
DIRECT ENVIRONMENT AND HOUSING,VISIBLE SERVICES,07-Mar-18,365791,Easyway Minicoach Hire Limited,9192,Revenue,
DIRECT ENVIRONMENT AND HOUSING,VISIBLE SERVICES,07-Mar-18,365796,New Adventure Travel Limited,10575,Revenue,
DIRECT ENVIRONMENT AND HOUSING,VISIBLE SERVICES,07-Mar-18,365803,A2B (South Wales) Limited,1560,Revenue,
DIRECT ENVIRONMENT AND HOUSING,VISIBLE SERVICES,07-Mar-18,365803,Merricks Private Transport Contractors Limited,870,Revenue,
DIRECT ENVIRONMENT AND HOUSING,GF LEGAL AND DEMOCRATIC,07-Mar-18,400063,British Telecommunications Plc,16441.74,Revenue,
DIRECT ENVIRONMENT AND HOUSING,GF PRIVATE HOUSING CT/HB,07-Mar-18,402110,Wales Audit Office,10071.5,Revenue,
DIRECT ENVIRONMENT AND HOUSING,GF PRIVATE HOUSING CT/HB,07-Mar-18,402110,Wales Audit Office,898.06,Revenue,
DIRECT ENVIRONMENT AND HOUSING,REGULATORY SHARED SERVICES,07-Mar-18,403211,Bridgend County Borough Council,1935.64,Revenue,
DIRECT ENVIRONMENT AND HOUSING,GF HOUSING SERVICES,07-Mar-18,405108,Pegasus Maintenance Services Limited,624,Revenue,
DIRECT ENVIRONMENT AND HOUSING,GF HOUSING SERVICES,07-Mar-18,405113,Interlet Residential Limited,650,Revenue,
DIRECT ENVIRONMENT AND HOUSING,GF HOUSING SERVICES,07-Mar-18,405113,Knights Lettings Limited T/A Knights Estate Agents,585,Revenue,
DIRECT ENVIRONMENT AND HOUSING,GF HOUSING SERVICES,07-Mar-18,405113,Knights Lettings Limited T/A Knights Estate Agents,675,Revenue,
DIRECT ENVIRONMENT AND HOUSING,GF HOUSING SERVICES,07-Mar-18,405113,Knights Lettings Limited T/A Knights Estate Agents,750,Revenue,
DIRECT ENVIRONMENT AND HOUSING,GF HOUSING SERVICES,07-Mar-18,405113,Ian & Jackie Rogers,675,Revenue,
DIRECT ENVIRONMENT AND HOUSING,GF HOUSING SERVICES,07-Mar-18,405113,Sharon Metson,650,Revenue,
DIRECT ENVIRONMENT AND HOUSING,HOUSING,07-Mar-18,407106,Building Recruitment Company Limited,798.61,Revenue,
DIRECT ENVIRONMENT AND HOUSING,HOUSING,07-Mar-18,407111,RPA Quantity Surveyors Limited t/a RPA,500,Revenue,
DIRECT ENVIRONMENT AND HOUSING,HOUSING,07-Mar-18,407111,RPA Quantity Surveyors Limited t/a RPA,2250,Revenue,
DIRECT ENVIRONMENT AND HOUSING,HOUSING,07-Mar-18,407204,Acacia Eco Trading Limited t/a Pestforce Cardiff,1108.64,Revenue,
DIRECT ENVIRONMENT AND HOUSING,HOUSING,07-Mar-18,407204,Ian Cowley t/a South Wales and Cardiff Pest Control,-1108.64,Revenue,
DIRECT MANAGING DIRECTOR AND RESOURCES,GF RESOURCES,07-Mar-18,422070,Royal Institute Of Chartered Surveyors Membership Renewals T/A BCIS,2050,Revenue,
DIRECT MANAGING DIRECTOR AND RESOURCES,GF RESOURCES,07-Mar-18,422160,Hays Specialist Recruitment Limited,532.77,Revenue,
DIRECT MANAGING DIRECTOR AND RESOURCES,GF RESOURCES,07-Mar-18,422201,Triangle Lift Services Limited,840.15,Revenue,
DIRECT MANAGING DIRECTOR AND RESOURCES,GF ELECTIONS,07-Mar-18,463051,MPS Marketing Services Limited,505.5,Revenue,
DIRECT MANAGING DIRECTOR AND RESOURCES,GF GRANTS,07-Mar-18,465201,Innovate Trust Limited,2919,Revenue,
DIRECT MANAGING DIRECTOR AND RESOURCES,GF GRANTS,07-Mar-18,465201,Rhoose Community Cinema,10974,Revenue,
DIRECT MANAGING DIRECTOR AND RESOURCES,GF GENERAL EXPENDITURE POLICY,07-Mar-18,471900,Wales Audit Office,2050.75,Revenue,
DIRECT MANAGING DIRECTOR AND RESOURCES,GF GENERAL EXPENDITURE POLICY,07-Mar-18,471900,Wales Audit Office,8113,Revenue,
DIRECT MANAGING DIRECTOR AND RESOURCES,GF GENERAL EXPENDITURE POLICY,07-Mar-18,471900,Wales Audit Office,13666.67,Revenue,
DIRECT MANAGING DIRECTOR AND RESOURCES,GF GENERAL EXPENDITURE POLICY,07-Mar-18,471900,Wales Audit Office,8113,Revenue,
DIRECT MANAGING DIRECTOR AND RESOURCES,GF GENERAL EXPENDITURE POLICY,07-Mar-18,471900,Wales Audit Office,13666.67,Revenue,
DIRECT CAPITAL SOCIAL SERVICES,CAPITAL COMM CARE & HEALTH,07-Mar-18,821046,Elliott Electrical Limited,4304.69,Capital,
DIRECT CAPITAL VISIBLE AND HOUSING SERVICES,CAPITAL HRA,07-Mar-18,842145,Lovell Partnerships Limited,80500.24,Capital,
DIRECT CAPITAL VISIBLE AND HOUSING SERVICES,CAPITAL HRA,07-Mar-18,842145,Lovell Partnerships Limited,92638.75,Capital,
DIRECT CAPITAL POLICY,CAPITAL POLICY,07-Mar-18,852512,WWS 1987 Limited T/A Welsh Window Systems,2098,Capital,
DIRECT LEARNING AND SKILLS,SCHOOLS DELEGATED,08-Mar-18,101094,Business Gas Limited / Electricity,-694.16,Revenue,
DIRECT LEARNING AND SKILLS,SCHOOLS DELEGATED,08-Mar-18,101094,Business Gas Limited / Electricity,-554.27,Revenue,
DIRECT LEARNING AND SKILLS,ACHIEVEMENT FOR ALL,08-Mar-18,130223,Barry YMCA Hub,1280,Revenue,
DIRECT SOCIAL SERVICES,GF ADULT SERVICES,08-Mar-18,215489,1st Grade Care Limited,593.18,Revenue,
DIRECT SOCIAL SERVICES,GF ADULT SERVICES,08-Mar-18,215489,1st Grade Care Limited,562.8,Revenue,
DIRECT SOCIAL SERVICES,GF ADULT SERVICES,08-Mar-18,215489,1st Grade Care Limited,600.6,Revenue,
DIRECT SOCIAL SERVICES,GF ADULT SERVICES,08-Mar-18,215489,All Care (South Wales) Limited,573.24,Revenue,
DIRECT SOCIAL SERVICES,GF ADULT SERVICES,08-Mar-18,215489,All Care (South Wales) Limited,503.19,Revenue,
DIRECT SOCIAL SERVICES,GF ADULT SERVICES,08-Mar-18,215489,All Care (South Wales) Limited,699.68,Revenue,
DIRECT SOCIAL SERVICES,GF ADULT SERVICES,08-Mar-18,215489,All Care (South Wales) Limited,636.44,Revenue,
DIRECT SOCIAL SERVICES,GF ADULT SERVICES,08-Mar-18,215489,All Care (South Wales) Limited,737.34,Revenue,
DIRECT SOCIAL SERVICES,GF ADULT SERVICES,08-Mar-18,215489,All Care (South Wales) Limited,815.71,Revenue,
DIRECT SOCIAL SERVICES,GF ADULT SERVICES,08-Mar-18,215489,Care In Wales Limited T/A Care in the Vale,798,Revenue,
DIRECT SOCIAL SERVICES,GF ADULT SERVICES,08-Mar-18,215489,Care In Wales Limited T/A Care in the Vale,706.21,Revenue,
DIRECT SOCIAL SERVICES,GF ADULT SERVICES,08-Mar-18,215489,Care In Wales Limited T/A Care in the Vale,508.88,Revenue,
DIRECT SOCIAL SERVICES,GF ADULT SERVICES,08-Mar-18,215489,Care In Wales Limited T/A Care in the Vale,520.1,Revenue,
DIRECT SOCIAL SERVICES,GF ADULT SERVICES,08-Mar-18,215489,Care In Wales Limited T/A Care in the Vale,583.52,Revenue,
DIRECT SOCIAL SERVICES,GF ADULT SERVICES,08-Mar-18,215489,Care In Wales Limited T/A Care in the Vale,672.64,Revenue,
DIRECT SOCIAL SERVICES,GF ADULT SERVICES,08-Mar-18,215489,Care In Wales Limited T/A Care in the Vale,546.7,Revenue,
DIRECT SOCIAL SERVICES,GF ADULT SERVICES,08-Mar-18,215489,Care In Wales Limited T/A Care in the Vale,754.64,Revenue,
DIRECT SOCIAL SERVICES,GF ADULT SERVICES,08-Mar-18,215489,Care In Wales Limited T/A Care in the Vale,686.71,Revenue,
DIRECT SOCIAL SERVICES,GF ADULT SERVICES,08-Mar-18,215489,Care In Wales Limited T/A Care in the Vale,520.1,Revenue,
DIRECT SOCIAL SERVICES,GF ADULT SERVICES,08-Mar-18,215489,Care In Wales Limited T/A Care in the Vale,798,Revenue,
DIRECT SOCIAL SERVICES,GF ADULT SERVICES,08-Mar-18,215489,Care In Wales Limited T/A Care in the Vale,706.21,Revenue,
DIRECT SOCIAL SERVICES,GF ADULT SERVICES,08-Mar-18,215489,Care In Wales Limited T/A Care in the Vale,508.88,Revenue,
DIRECT SOCIAL SERVICES,GF ADULT SERVICES,08-Mar-18,215489,Care In Wales Limited T/A Care in the Vale,583.52,Revenue,
DIRECT SOCIAL SERVICES,GF ADULT SERVICES,08-Mar-18,215489,Care In Wales Limited T/A Care in the Vale,672.64,Revenue,
DIRECT SOCIAL SERVICES,GF ADULT SERVICES,08-Mar-18,215489,Care In Wales Limited T/A Care in the Vale,546.7,Revenue,
DIRECT SOCIAL SERVICES,GF ADULT SERVICES,08-Mar-18,215489,Care In Wales Limited T/A Care in the Vale,754.64,Revenue,
DIRECT SOCIAL SERVICES,GF ADULT SERVICES,08-Mar-18,215489,Care In Wales Limited T/A Care in the Vale,686.71,Revenue,
DIRECT SOCIAL SERVICES,GF ADULT SERVICES,08-Mar-18,215489,Care In Wales Limited T/A Care in the Vale,706.21,Revenue,
DIRECT SOCIAL SERVICES,GF ADULT SERVICES,08-Mar-18,215489,Care In Wales Limited T/A Care in the Vale,701.14,Revenue,
DIRECT SOCIAL SERVICES,GF ADULT SERVICES,08-Mar-18,215489,Care In Wales Limited T/A Care in the Vale,616.14,Revenue,
DIRECT SOCIAL SERVICES,GF ADULT SERVICES,08-Mar-18,215489,Care In Wales Limited T/A Care in the Vale,520.1,Revenue,
DIRECT SOCIAL SERVICES,GF ADULT SERVICES,08-Mar-18,215489,Care In Wales Limited T/A Care in the Vale,583.52,Revenue,
DIRECT SOCIAL SERVICES,GF ADULT SERVICES,08-Mar-18,215489,Care In Wales Limited T/A Care in the Vale,672.64,Revenue,
DIRECT SOCIAL SERVICES,GF ADULT SERVICES,08-Mar-18,215489,Care In Wales Limited T/A Care in the Vale,754.64,Revenue,
DIRECT SOCIAL SERVICES,GF ADULT SERVICES,08-Mar-18,215489,Care In Wales Limited T/A Care in the Vale,686.71,Revenue,
DIRECT SOCIAL SERVICES,GF ADULT SERVICES,08-Mar-18,215489,Caring Companions Limited,725.06,Revenue,
DIRECT SOCIAL SERVICES,GF ADULT SERVICES,08-Mar-18,215489,Caring Companions Limited,525.56,Revenue,
DIRECT SOCIAL SERVICES,GF ADULT SERVICES,08-Mar-18,215489,Caring Companions Limited,638.4,Revenue,
DIRECT SOCIAL SERVICES,GF ADULT SERVICES,08-Mar-18,215489,Caring Companions Limited,578.76,Revenue,
DIRECT SOCIAL SERVICES,GF ADULT SERVICES,08-Mar-18,215489,Cherish Cymru Limited,596.91,Revenue,
DIRECT SOCIAL SERVICES,GF ADULT SERVICES,08-Mar-18,215489,Cherish Cymru Limited,516.75,Revenue,
DIRECT SOCIAL SERVICES,GF ADULT SERVICES,08-Mar-18,215489,Cherish Cymru Limited,568.96,Revenue,
DIRECT SOCIAL SERVICES,GF ADULT SERVICES,08-Mar-18,215489,Cherish Cymru Limited,520.18,Revenue,
DIRECT SOCIAL SERVICES,GF ADULT SERVICES,08-Mar-18,215489,Cherish Cymru Limited,515.58,Revenue,
DIRECT SOCIAL SERVICES,GF ADULT SERVICES,08-Mar-18,215489,GJ Care & Training Limited,601.71,Revenue,
DIRECT SOCIAL SERVICES,GF ADULT SERVICES,08-Mar-18,215489,GJ Care & Training Limited,561.58,Revenue,
DIRECT SOCIAL SERVICES,GF ADULT SERVICES,08-Mar-18,215489,GJ Care & Training Limited,561.58,Revenue,
DIRECT SOCIAL SERVICES,GF ADULT SERVICES,08-Mar-18,215489,GJ Care & Training Limited,601.71,Revenue,
DIRECT SOCIAL SERVICES,GF ADULT SERVICES,08-Mar-18,215489,GJ Care & Training Limited,561.58,Revenue,
DIRECT SOCIAL SERVICES,GF ADULT SERVICES,08-Mar-18,215489,Susan Barrett t/a All Saints Domiciliary Care Agency,620,Revenue,
DIRECT SOCIAL SERVICES,GF ADULT SERVICES,08-Mar-18,215489,Susan Barrett t/a All Saints Domiciliary Care Agency,629.25,Revenue,
DIRECT SOCIAL SERVICES,GF ADULT SERVICES,08-Mar-18,215489,Susan Barrett t/a All Saints Domiciliary Care Agency,611.35,Revenue,
DIRECT SOCIAL SERVICES,GF ADULT SERVICES,08-Mar-18,215489,Susan Barrett t/a All Saints Domiciliary Care Agency,568.9,Revenue,
DIRECT SOCIAL SERVICES,GF ADULT SERVICES,08-Mar-18,215489,Susan Barrett t/a All Saints Domiciliary Care Agency,675.6,Revenue,
DIRECT SOCIAL SERVICES,GF ADULT SERVICES,08-Mar-18,215489,Cartrefi Cymru Co-Operative Limited,2736,Revenue,
DIRECT SOCIAL SERVICES,GF ADULT SERVICES,08-Mar-18,215489,Cartrefi Cymru Co-Operative Limited,1026,Revenue,
DIRECT SOCIAL SERVICES,GF ADULT SERVICES,08-Mar-18,215489,April Complete Care Solutions Limited,543.51,Revenue,
DIRECT SOCIAL SERVICES,GF ADULT SERVICES,08-Mar-18,215489,Glamorgan Home Care Limited t/a Home Instead Senior Care,633.6,Revenue,
DIRECT SOCIAL SERVICES,GF ADULT SERVICES,08-Mar-18,215489,Glamorgan Home Care Limited t/a Home Instead Senior Care,534.6,Revenue,
DIRECT SOCIAL SERVICES,GF ADULT SERVICES,08-Mar-18,215489,Glamorgan Home Care Limited t/a Home Instead Senior Care,534.6,Revenue,
DIRECT SOCIAL SERVICES,GF ADULT SERVICES,08-Mar-18,216179,All Care (South Wales) Limited,918.17,Revenue,
DIRECT SOCIAL SERVICES,GF ADULT SERVICES,08-Mar-18,216179,All Care (South Wales) Limited,534.38,Revenue,
DIRECT SOCIAL SERVICES,GF ADULT SERVICES,08-Mar-18,216179,All Care (South Wales) Limited,762.31,Revenue,
DIRECT SOCIAL SERVICES,GF ADULT SERVICES,08-Mar-18,216179,Healthcare Assistants Limited,1254.42,Revenue,
DIRECT SOCIAL SERVICES,GF ADULT SERVICES,08-Mar-18,216179,April Complete Care Solutions Limited,599.64,Revenue,
DIRECT SOCIAL SERVICES,GF ADULT SERVICES,08-Mar-18,216181,Cardiff & Vale University Local Health Board,668.76,Revenue,
DIRECT SOCIAL SERVICES,GF ADULT SERVICES,08-Mar-18,216181,Sight Cymru,3668.88,Revenue,
DIRECT SOCIAL SERVICES,GF ADULT SERVICES,08-Mar-18,217909,1st Grade Care Limited,653.78,Revenue,
DIRECT SOCIAL SERVICES,GF ADULT SERVICES,08-Mar-18,217909,GJ Care & Training Limited,704.08,Revenue,
DIRECT SOCIAL SERVICES,GF ADULT SERVICES,08-Mar-18,217909,GJ Care & Training Limited,704.08,Revenue,
DIRECT SOCIAL SERVICES,GF ADULT SERVICES,08-Mar-18,217909,Cartrefi Cymru Co-Operative Limited,5180.46,Revenue,
DIRECT SOCIAL SERVICES,GF ADULT SERVICES,08-Mar-18,217909,Everycare (Cardiff) Limited,813.96,Revenue,
DIRECT SOCIAL SERVICES,GF ADULT SERVICES,08-Mar-18,217909,Everycare (Cardiff) Limited,638.58,Revenue,
DIRECT SOCIAL SERVICES,GF ADULT SERVICES,08-Mar-18,217909,National Autistic Society,2258.58,Revenue,
DIRECT SOCIAL SERVICES,GF ADULT SERVICES,08-Mar-18,217909,April Complete Care Solutions Limited,859.08,Revenue,
DIRECT SOCIAL SERVICES,GF ADULT SERVICES,08-Mar-18,217909,Crosshands Care Limited,6646.48,Revenue,
DIRECT SOCIAL SERVICES,GF ADULT SERVICES,08-Mar-18,217909,Crosshands Care Limited,5800.64,Revenue,
DIRECT SOCIAL SERVICES,GF ADULT SERVICES,08-Mar-18,217909,Crosshands Care Limited,4808.08,Revenue,
DIRECT SOCIAL SERVICES,GF ADULT SERVICES,08-Mar-18,217909,Crosshands Care Limited,3360,Revenue,
DIRECT SOCIAL SERVICES,GF ADULT SERVICES,08-Mar-18,218321,GJ Care & Training Limited,551.32,Revenue,
DIRECT SOCIAL SERVICES,GF ADULT SERVICES,08-Mar-18,218321,GJ Care & Training Limited,551.32,Revenue,
DIRECT SOCIAL SERVICES,GF ADULT SERVICES,08-Mar-18,218419,All Care (South Wales) Limited,657.58,Revenue,
DIRECT SOCIAL SERVICES,GF ADULT SERVICES,08-Mar-18,218419,Care In Wales Limited T/A Care in the Vale,732.76,Revenue,
DIRECT SOCIAL SERVICES,GF ADULT SERVICES,08-Mar-18,218419,Care In Wales Limited T/A Care in the Vale,655.17,Revenue,
DIRECT SOCIAL SERVICES,GF ADULT SERVICES,08-Mar-18,218419,Care In Wales Limited T/A Care in the Vale,732.76,Revenue,
DIRECT SOCIAL SERVICES,GF ADULT SERVICES,08-Mar-18,218419,Care In Wales Limited T/A Care in the Vale,655.17,Revenue,
DIRECT SOCIAL SERVICES,GF ADULT SERVICES,08-Mar-18,218419,Care In Wales Limited T/A Care in the Vale,798,Revenue,
DIRECT SOCIAL SERVICES,GF ADULT SERVICES,08-Mar-18,218419,Care In Wales Limited T/A Care in the Vale,732.76,Revenue,
DIRECT SOCIAL SERVICES,GF ADULT SERVICES,08-Mar-18,218419,Care In Wales Limited T/A Care in the Vale,798,Revenue,
DIRECT SOCIAL SERVICES,GF ADULT SERVICES,08-Mar-18,218419,Care In Wales Limited T/A Care in the Vale,732.76,Revenue,
DIRECT SOCIAL SERVICES,GF ADULT SERVICES,08-Mar-18,218419,Care In Wales Limited T/A Care in the Vale,655.17,Revenue,
DIRECT SOCIAL SERVICES,GF ADULT SERVICES,08-Mar-18,239060,Beverley Winn,1920,Revenue,
DIRECT SOCIAL SERVICES,GF CHILDREN SERVICES,08-Mar-18,260170,St Davids Childrens Society t/a AFA Cymru,635.62,Revenue,
DIRECT ENVIRONMENT AND HOUSING,VEHICLES,08-Mar-18,319010,Dawsonrentals Materials Handling Equipment Limited t/a Dawsonrentals Sweepers,2000,Revenue,
DIRECT ENVIRONMENT AND HOUSING,VEHICLES,08-Mar-18,319010,Gullivers Truck Hire Limited,885,Revenue,
DIRECT ENVIRONMENT AND HOUSING,VEHICLES,08-Mar-18,319010,Gullivers Truck Hire Limited,885,Revenue,
DIRECT ENVIRONMENT AND HOUSING,VEHICLES,08-Mar-18,319010,Leeds Commercial Limited T/A LC Vehicle Hire,3150,Revenue,
DIRECT ENVIRONMENT AND HOUSING,VEHICLES,08-Mar-18,319010,Riverside Truck Rental LImited,2960,Revenue,
DIRECT ENVIRONMENT AND HOUSING,VEHICLES,08-Mar-18,319010,SHB Hire Limited,1080,Revenue,
DIRECT ENVIRONMENT AND HOUSING,GF PARKS AND GROUNDS,08-Mar-18,333020,Floodlighting & Electrical Services Limited,562.68,Revenue,
DIRECT ENVIRONMENT AND HOUSING,GF PARKS AND GROUNDS,08-Mar-18,333218,Floodlighting & Electrical Services Limited,6110.68,Revenue,
DIRECT ENVIRONMENT AND HOUSING,REGENERATION & PLANNING,08-Mar-18,359750,Global Tourism Solutions (UK) Limited,3843,Revenue,
DIRECT ENVIRONMENT AND HOUSING,REGENERATION & PLANNING,08-Mar-18,365763,Glamorgan Gem Limited,742.5,Revenue,
DIRECT ENVIRONMENT AND HOUSING,VISIBLE SERVICES,08-Mar-18,365786,Easyway Minicoach Hire Limited,5421.6,Revenue,
DIRECT ENVIRONMENT AND HOUSING,VISIBLE SERVICES,08-Mar-18,365789,Peyton Travel Limited,1410,Revenue,
DIRECT ENVIRONMENT AND HOUSING,VISIBLE SERVICES,08-Mar-18,365789,Peyton Travel Limited,1260,Revenue,
DIRECT ENVIRONMENT AND HOUSING,VISIBLE SERVICES,08-Mar-18,365789,Peyton Travel Limited,1020,Revenue,
DIRECT ENVIRONMENT AND HOUSING,VISIBLE SERVICES,08-Mar-18,365789,Peyton Travel Limited,756,Revenue,
DIRECT ENVIRONMENT AND HOUSING,VISIBLE SERVICES,08-Mar-18,365790,Apollo Minibus & Coach Hire Limited,1176,Revenue,
DIRECT ENVIRONMENT AND HOUSING,VISIBLE SERVICES,08-Mar-18,365790,Peyton Travel Limited,1410,Revenue,
DIRECT ENVIRONMENT AND HOUSING,VISIBLE SERVICES,08-Mar-18,365790,Peyton Travel Limited,1410,Revenue,
DIRECT ENVIRONMENT AND HOUSING,VISIBLE SERVICES,08-Mar-18,365790,Peyton Travel Limited,2370,Revenue,
DIRECT ENVIRONMENT AND HOUSING,VISIBLE SERVICES,08-Mar-18,365790,Peyton Travel Limited,2160,Revenue,
DIRECT ENVIRONMENT AND HOUSING,VISIBLE SERVICES,08-Mar-18,365790,Peyton Travel Limited,2370,Revenue,
DIRECT ENVIRONMENT AND HOUSING,VISIBLE SERVICES,08-Mar-18,365790,Peyton Travel Limited,1096.2,Revenue,
DIRECT ENVIRONMENT AND HOUSING,VISIBLE SERVICES,08-Mar-18,365790,Peyton Travel Limited,2160,Revenue,
DIRECT ENVIRONMENT AND HOUSING,VISIBLE SERVICES,08-Mar-18,365790,Simon Lewis t/a Cowbridge and Vale Cars,750,Revenue,
DIRECT ENVIRONMENT AND HOUSING,VISIBLE SERVICES,08-Mar-18,365793,Creigiau Travel Limited,7995,Revenue,
DIRECT ENVIRONMENT AND HOUSING,VISIBLE SERVICES,08-Mar-18,365795,Peyton Travel Limited,793.8,Revenue,
DIRECT ENVIRONMENT AND HOUSING,GF HOUSING SERVICES,08-Mar-18,402421,Business Gas Limited / Electricity,1688.64,Revenue,
DIRECT ENVIRONMENT AND HOUSING,GF HOUSING SERVICES,08-Mar-18,402421,Business Gas Limited / Electricity,640.78,Revenue,
DIRECT ENVIRONMENT AND HOUSING,GF HOUSING SERVICES,08-Mar-18,402421,Business Gas Limited / Electricity,4339.7,Revenue,
DIRECT ENVIRONMENT AND HOUSING,REGULATORY SHARED SERVICES,08-Mar-18,403207,Minton Treharne & Davies Limited,1700,Revenue,
DIRECT MANAGING DIRECTOR AND RESOURCES,GF RESOURCES,08-Mar-18,420215,HM Courts & Tribunal Service,1232,Revenue,
DIRECT MANAGING DIRECTOR AND RESOURCES,GF RESOURCES,08-Mar-18,422160,Royal Institute Of Chartered Surveyors Membership Renewals T/A BCIS,519,Revenue,
DIRECT MANAGING DIRECTOR AND RESOURCES,GF RESOURCES,08-Mar-18,422160,Anderselite Limited,600,Revenue,
DIRECT MANAGING DIRECTOR AND RESOURCES,GF RESOURCES,08-Mar-18,422160,Hays Specialist Recruitment Limited,885.89,Revenue,
DIRECT MANAGING DIRECTOR AND RESOURCES,GF CORPORATE AND CUSTOMER SERVICES,08-Mar-18,440531,Equiversal Limited,950,Revenue,
DIRECT MANAGING DIRECTOR AND RESOURCES,GF CORPORATE AND CUSTOMER SERVICES,08-Mar-18,440531,Cardiff County Council,738.87,Revenue,
DIRECT LEARNING AND SKILLS,STRATEGY COMMUNITY LEARNING & RESOURCES,09-Mar-18,100130,Disclosure and Barring Service,1760,Revenue,
DIRECT LEARNING AND SKILLS,SCHOOLS DELEGATED,09-Mar-18,101006,Globebrow Limited t/a Manor Adventure,4803.33,Revenue,
DIRECT LEARNING AND SKILLS,SCHOOLS DELEGATED,09-Mar-18,101007,Corona Energy Retail 4 Limited,614.18,Revenue,
DIRECT LEARNING AND SKILLS,SCHOOLS DELEGATED,09-Mar-18,101007,EDF Energy Plc,-1368.56,Revenue,
DIRECT LEARNING AND SKILLS,SCHOOLS DELEGATED,09-Mar-18,101007,EDF Energy Plc,1307.68,Revenue,
DIRECT LEARNING AND SKILLS,SCHOOLS DELEGATED,09-Mar-18,101007,EDF Energy Plc,-645.01,Revenue,
DIRECT LEARNING AND SKILLS,SCHOOLS DELEGATED,09-Mar-18,101007,EDF Energy Plc,616.23,Revenue,
DIRECT LEARNING AND SKILLS,SCHOOLS DELEGATED,09-Mar-18,101007,EDF Energy Plc,-634.95,Revenue,
DIRECT LEARNING AND SKILLS,SCHOOLS DELEGATED,09-Mar-18,101007,EDF Energy Plc,606.62,Revenue,
DIRECT LEARNING AND SKILLS,SCHOOLS DELEGATED,09-Mar-18,101007,EDF Energy Plc,-552.02,Revenue,
DIRECT LEARNING AND SKILLS,SCHOOLS DELEGATED,09-Mar-18,101007,EDF Energy Plc,527.42,Revenue,
DIRECT LEARNING AND SKILLS,SCHOOLS DELEGATED,09-Mar-18,101007,EDF Energy Plc,-610.39,Revenue,
DIRECT LEARNING AND SKILLS,SCHOOLS DELEGATED,09-Mar-18,101007,EDF Energy Plc,583.17,Revenue,
DIRECT LEARNING AND SKILLS,SCHOOLS DELEGATED,09-Mar-18,101007,EDF Energy Plc,500.13,Revenue,
DIRECT LEARNING AND SKILLS,SCHOOLS DELEGATED,09-Mar-18,101007,EDF Energy Plc,531.27,Revenue,
DIRECT LEARNING AND SKILLS,SCHOOLS DELEGATED,09-Mar-18,101025,Corona Energy Retail 4 Limited,696.12,Revenue,
DIRECT LEARNING AND SKILLS,SCHOOLS DELEGATED,09-Mar-18,101025,EDF Energy Plc,961.66,Revenue,
DIRECT LEARNING AND SKILLS,SCHOOLS DELEGATED,09-Mar-18,101031,Corona Energy Retail 4 Limited,629.02,Revenue,
DIRECT LEARNING AND SKILLS,SCHOOLS DELEGATED,09-Mar-18,101031,EDF Energy Plc,576.35,Revenue,
DIRECT LEARNING AND SKILLS,SCHOOLS DELEGATED,09-Mar-18,101032,Corona Energy Retail 4 Limited,904.09,Revenue,
DIRECT LEARNING AND SKILLS,SCHOOLS DELEGATED,09-Mar-18,101032,EDF Energy Plc,730.67,Revenue,
DIRECT LEARNING AND SKILLS,SCHOOLS DELEGATED,09-Mar-18,101047,Corona Energy Retail 4 Limited,564.88,Revenue,
DIRECT LEARNING AND SKILLS,SCHOOLS DELEGATED,09-Mar-18,101047,EDF Energy Plc,683.54,Revenue,
DIRECT LEARNING AND SKILLS,SCHOOLS DELEGATED,09-Mar-18,101063,Academics Limited,673.76,Revenue,
DIRECT LEARNING AND SKILLS,SCHOOLS DELEGATED,09-Mar-18,101063,Direct Educational Furniture Limited,1181.95,Revenue,
DIRECT LEARNING AND SKILLS,SCHOOLS DELEGATED,09-Mar-18,101063,Insight Direct (UK) Limited,4528.58,Revenue,
DIRECT LEARNING AND SKILLS,SCHOOLS DELEGATED,09-Mar-18,101063,Insight Direct (UK) Limited,898,Revenue,
DIRECT LEARNING AND SKILLS,SCHOOLS DELEGATED,09-Mar-18,101075,EDF Energy Plc,685.67,Revenue,
DIRECT LEARNING AND SKILLS,SCHOOLS DELEGATED,09-Mar-18,101075,Upbeat Music and Arts Service Limited,760,Revenue,
DIRECT LEARNING AND SKILLS,SCHOOLS DELEGATED,09-Mar-18,101075,Nancy Evans,2262.91,Revenue,
DIRECT LEARNING AND SKILLS,SCHOOLS DELEGATED,09-Mar-18,101137,Corona Energy Retail 4 Limited,516.21,Revenue,
DIRECT LEARNING AND SKILLS,SCHOOLS DELEGATED,09-Mar-18,101137,EDF Energy Plc,638.1,Revenue,
DIRECT LEARNING AND SKILLS,SCHOOLS DELEGATED,09-Mar-18,101171,Corona Energy Retail 4 Limited,643.46,Revenue,
DIRECT LEARNING AND SKILLS,SCHOOLS DELEGATED,09-Mar-18,101173,EDF Energy Plc,735.14,Revenue,
DIRECT LEARNING AND SKILLS,SCHOOLS DELEGATED,09-Mar-18,101195,Corona Energy Retail 4 Limited,989.66,Revenue,
DIRECT LEARNING AND SKILLS,SCHOOLS DELEGATED,09-Mar-18,101213,EDF Energy Plc,633.89,Revenue,
DIRECT LEARNING AND SKILLS,SCHOOLS DELEGATED,09-Mar-18,101261,The COS Group Limited,517.5,Revenue,
DIRECT LEARNING AND SKILLS,SCHOOLS DELEGATED,09-Mar-18,101285,Corona Energy Retail 4 Limited,714.55,Revenue,
DIRECT LEARNING AND SKILLS,SCHOOLS DELEGATED,09-Mar-18,101300,Corona Energy Retail 4 Limited,588.39,Revenue,
DIRECT LEARNING AND SKILLS,SCHOOLS DELEGATED,09-Mar-18,101300,EDF Energy Plc,541.97,Revenue,
DIRECT LEARNING AND SKILLS,SCHOOLS DELEGATED,09-Mar-18,101305,EDF Energy Plc,608.36,Revenue,
DIRECT LEARNING AND SKILLS,SCHOOLS DELEGATED,09-Mar-18,101308,Corona Energy Retail 4 Limited,605.82,Revenue,
DIRECT LEARNING AND SKILLS,SCHOOLS DELEGATED,09-Mar-18,101308,EDF Energy Plc,1112.01,Revenue,
DIRECT LEARNING AND SKILLS,SCHOOLS DELEGATED,09-Mar-18,101315,Corona Energy Retail 4 Limited,804.02,Revenue,
DIRECT LEARNING AND SKILLS,SCHOOLS DELEGATED,09-Mar-18,101315,EDF Energy Plc,834.49,Revenue,
DIRECT LEARNING AND SKILLS,ACHIEVEMENT FOR ALL,09-Mar-18,102634,EDF Energy Plc,634.13,Revenue,
DIRECT LEARNING AND SKILLS,STRATEGY COMMUNITY LEARNING & RESOURCES,09-Mar-18,120080,Demco Europe Limited,1426.55,Revenue,
DIRECT LEARNING AND SKILLS,STRATEGY COMMUNITY LEARNING & RESOURCES,09-Mar-18,120080,JCS Online Resources Limited,3267,Revenue,
DIRECT LEARNING AND SKILLS,ACHIEVEMENT FOR ALL,09-Mar-18,130210,Burner Efficiency Services Limited,536.26,Revenue,
DIRECT ENVIRONMENT AND HOUSING,REGENERATION & PLANNING,09-Mar-18,130511,EDF Energy Plc,738.67,Revenue,
DIRECT MANAGING DIRECTOR AND RESOURCES,GF HUMAN RESOURCES,09-Mar-18,140117,Partnerships In Care Limited T/A Care First,653.33,Revenue,
DIRECT LEARNING AND SKILLS,GF CATERING,09-Mar-18,154400,ABM Catering for Leisure Limited,15315,Revenue,
DIRECT LEARNING AND SKILLS,GF CATERING,09-Mar-18,154401,ABM Catering for Leisure Limited,5985.91,Revenue,
DIRECT LEARNING AND SKILLS,GF CATERING,09-Mar-18,154401,ABM Catering for Leisure Limited,579.19,Revenue,
DIRECT LEARNING AND SKILLS,GF CATERING,09-Mar-18,154401,ABM Catering for Leisure Limited,1400,Revenue,
DIRECT LEARNING AND SKILLS,GF CATERING,09-Mar-18,154401,ABM Catering for Leisure Limited,1450,Revenue,
DIRECT LEARNING AND SKILLS,GF CATERING,09-Mar-18,154401,ABM Catering for Leisure Limited,500,Revenue,
DIRECT SOCIAL SERVICES,GF ADULT SERVICES,09-Mar-18,212731,Corona Energy Retail 4 Limited,845.41,Revenue,
DIRECT SOCIAL SERVICES,GF ADULT SERVICES,09-Mar-18,212741,Corona Energy Retail 4 Limited,689.87,Revenue,
DIRECT SOCIAL SERVICES,GF ADULT SERVICES,09-Mar-18,212741,EDF Energy Plc,806.47,Revenue,
DIRECT SOCIAL SERVICES,GF ADULT SERVICES,09-Mar-18,212781,Corona Energy Retail 4 Limited,1350.54,Revenue,
DIRECT SOCIAL SERVICES,GF ADULT SERVICES,09-Mar-18,212791,Corona Energy Retail 4 Limited,958.23,Revenue,
DIRECT SOCIAL SERVICES,GF ADULT SERVICES,09-Mar-18,212791,EDF Energy Plc,940.29,Revenue,
DIRECT SOCIAL SERVICES,GF ADULT SERVICES,09-Mar-18,212791,EDF Energy Plc,922.36,Revenue,
DIRECT SOCIAL SERVICES,GF ADULT SERVICES,09-Mar-18,212791,EDF Energy Plc,964.18,Revenue,
DIRECT SOCIAL SERVICES,GF ADULT SERVICES,09-Mar-18,212791,EDF Energy Plc,937.94,Revenue,
DIRECT SOCIAL SERVICES,GF ADULT SERVICES,09-Mar-18,212791,EDF Energy Plc,984.19,Revenue,
DIRECT SOCIAL SERVICES,GF ADULT SERVICES,09-Mar-18,212791,EDF Energy Plc,1006.45,Revenue,
DIRECT SOCIAL SERVICES,GF ADULT SERVICES,09-Mar-18,212791,EDF Energy Plc,897.24,Revenue,
DIRECT SOCIAL SERVICES,GF ADULT SERVICES,09-Mar-18,215011,Carers Trust South East Wales,22192.5,Revenue,
DIRECT SOCIAL SERVICES,GF ADULT SERVICES,09-Mar-18,215011,Carers Trust South East Wales,36960,Revenue,
DIRECT SOCIAL SERVICES,GF ADULT SERVICES,09-Mar-18,215401,EDF Energy Plc,643.37,Revenue,
DIRECT SOCIAL SERVICES,GF ADULT SERVICES,09-Mar-18,215803,Corona Energy Retail 4 Limited,860.06,Revenue,
DIRECT SOCIAL SERVICES,GF ADULT SERVICES,09-Mar-18,215803,EDF Energy Plc,934.41,Revenue,
DIRECT SOCIAL SERVICES,GF ADULT SERVICES,09-Mar-18,218321,John Vincent O'Connell,1131,Revenue,
DIRECT SOCIAL SERVICES,GF BUSINESS MANAGEMENT & INOVATION,09-Mar-18,239016,Glidetree Limited t/a The Publicity Centre,4960,Revenue,
DIRECT SOCIAL SERVICES,GF CHILDREN SERVICES,09-Mar-18,260020,Disclosure and Barring Service,1100,Revenue,
DIRECT SOCIAL SERVICES,REGIONAL ADOPTION SERVICE,09-Mar-18,260500,Knight Frank LLP - Client,2833.33,Revenue,
DIRECT SOCIAL SERVICES,REGIONAL ADOPTION SERVICE,09-Mar-18,260500,Disclosure and Barring Service,528,Revenue,
DIRECT SOCIAL SERVICES,REGIONAL ADOPTION SERVICE,09-Mar-18,260500,Adoption UK,2500,Revenue,
DIRECT ENVIRONMENT AND HOUSING,GF ENV AND VISIBLE,09-Mar-18,300645,EDF Energy Plc,66824.72,Revenue,
DIRECT ENVIRONMENT AND HOUSING,BUILDING SERVICES,09-Mar-18,303000,Argos Business Solutions Limited,794.12,Revenue,
DIRECT ENVIRONMENT AND HOUSING,BUILDING SERVICES,09-Mar-18,303900,LNC Floor Coverings Limited,1412.76,Revenue,
DIRECT ENVIRONMENT AND HOUSING,BUILDING SERVICES,09-Mar-18,303900,M Thomas Water Services Limited,520,Revenue,
DIRECT ENVIRONMENT AND HOUSING,BUILDING SERVICES,09-Mar-18,303900,MJD Maintenance Limited,780,Revenue,
DIRECT ENVIRONMENT AND HOUSING,BUILDING SERVICES,09-Mar-18,303900,Metro Rod Limited,595,Revenue,
DIRECT ENVIRONMENT AND HOUSING,BUILDING SERVICES,09-Mar-18,303905,OpenView Security Solutions Limited,3049.67,Revenue,
DIRECT ENVIRONMENT AND HOUSING,BUILDING SERVICES,09-Mar-18,303905,OpenView Security Solutions Limited,1580.61,Revenue,
DIRECT ENVIRONMENT AND HOUSING,BUILDING SERVICES,09-Mar-18,303931,B & B Industrial Doors (UK) Limited,2656,Revenue,
DIRECT ENVIRONMENT AND HOUSING,BUILDING SERVICES,09-Mar-18,303931,G.P.H.I.T (Integrated Services) Limited,3650,Revenue,
DIRECT ENVIRONMENT AND HOUSING,BUILDING SERVICES,09-Mar-18,303931,G.P.H.I.T (Integrated Services) Limited,1075,Revenue,
DIRECT ENVIRONMENT AND HOUSING,BUILDING SERVICES,09-Mar-18,303931,LNC Floor Coverings Limited,3371.06,Revenue,
DIRECT ENVIRONMENT AND HOUSING,BUILDING SERVICES,09-Mar-18,303931,Michael Bryl & Ptn T/A CW Facilities Management,2070,Revenue,
DIRECT ENVIRONMENT AND HOUSING,BUILDING SERVICES,09-Mar-18,303950,ADC Fire Systems Limited,1008,Revenue,
DIRECT ENVIRONMENT AND HOUSING,BUILDING SERVICES,09-Mar-18,303950,ADC Fire Systems Limited,981.39,Revenue,
DIRECT ENVIRONMENT AND HOUSING,BUILDING SERVICES,09-Mar-18,303950,ADC Fire Systems Limited,1040.2,Revenue,
DIRECT ENVIRONMENT AND HOUSING,BUILDING SERVICES,09-Mar-18,303950,ARC Electrical Engineering Solutions Limited,1395.5,Revenue,
DIRECT ENVIRONMENT AND HOUSING,BUILDING SERVICES,09-Mar-18,303950,Burner Efficiency Services Limited,1375.44,Revenue,
DIRECT ENVIRONMENT AND HOUSING,BUILDING SERVICES,09-Mar-18,303950,Cardiff Diesel Services Limited,968.11,Revenue,
DIRECT ENVIRONMENT AND HOUSING,BUILDING SERVICES,09-Mar-18,303950,Unique Flooring (Wales) Limited,1186,Revenue,
DIRECT ENVIRONMENT AND HOUSING,BUILDING SERVICES,09-Mar-18,304103,SMK Building & Maintenance Limited,2746.86,Revenue,
DIRECT ENVIRONMENT AND HOUSING,BUILDING SERVICES,09-Mar-18,304103,Ashley Lynch-Wilson t/a ALW Steel Fabricator,840,Revenue,
DIRECT ENVIRONMENT AND HOUSING,BUILDING SERVICES,09-Mar-18,305644,SMK Building & Maintenance Limited,7738.18,Revenue,
DIRECT ENVIRONMENT AND HOUSING,BUILDING SERVICES,09-Mar-18,305651,SMK Building & Maintenance Limited,7419.58,Revenue,
DIRECT ENVIRONMENT AND HOUSING,BUILDING SERVICES,09-Mar-18,305655,G.P.H.I.T (Integrated Services) Limited,1630,Revenue,
DIRECT ENVIRONMENT AND HOUSING,BUILDING SERVICES,09-Mar-18,305682,LNC Floor Coverings Limited,1630,Revenue,
DIRECT ENVIRONMENT AND HOUSING,BUILDING SERVICES,09-Mar-18,305687,WWS 1987 Limited T/A Welsh Window Systems,1575,Revenue,
DIRECT ENVIRONMENT AND HOUSING,BUILDING SERVICES,09-Mar-18,305700,Michael Bryl & Ptn T/A CW Facilities Management,7565.2,Revenue,
DIRECT ENVIRONMENT AND HOUSING,GF ENV AND VISIBLE,09-Mar-18,325207,EDF Energy Plc,536.44,Revenue,
DIRECT ENVIRONMENT AND HOUSING,GF PARKS AND GROUNDS,09-Mar-18,333013,Ace Site Services (UK) Limited,750,Revenue,
DIRECT ENVIRONMENT AND HOUSING,GF PARKS AND GROUNDS,09-Mar-18,333050,EDF Energy Plc,549.65,Revenue,
DIRECT ENVIRONMENT AND HOUSING,GF ENV AND VISIBLE,09-Mar-18,341260,EDF Energy Plc,5059.34,Revenue,
DIRECT ENVIRONMENT AND HOUSING,REGENERATION & PLANNING,09-Mar-18,352718,EDF Energy Plc,1046.02,Revenue,
DIRECT ENVIRONMENT AND HOUSING,REGENERATION & PLANNING,09-Mar-18,356020,EDF Energy Plc,837.06,Revenue,
DIRECT ENVIRONMENT AND HOUSING,REGENERATION & PLANNING,09-Mar-18,356020,Geo Pollution Technologies UK Limited T/A GEM,3731,Revenue,
DIRECT ENVIRONMENT AND HOUSING,REGENERATION & PLANNING,09-Mar-18,356020,The Abbey Cleaning Services Limited,572.01,Revenue,
DIRECT ENVIRONMENT AND HOUSING,REGENERATION & PLANNING,09-Mar-18,359750,Leanne Witts & Ptn t/a Girl & Boy Studio,1800,Revenue,
DIRECT ENVIRONMENT AND HOUSING,VISIBLE SERVICES,09-Mar-18,365789,Easyway Minicoach Hire Limited,3192,Revenue,
DIRECT ENVIRONMENT AND HOUSING,VISIBLE SERVICES,09-Mar-18,365789,Peyton Travel Limited,1725,Revenue,
DIRECT ENVIRONMENT AND HOUSING,VISIBLE SERVICES,09-Mar-18,365789,Peyton Travel Limited,1185,Revenue,
DIRECT ENVIRONMENT AND HOUSING,VISIBLE SERVICES,09-Mar-18,365789,Peyton Travel Limited,585,Revenue,
DIRECT ENVIRONMENT AND HOUSING,VISIBLE SERVICES,09-Mar-18,365789,Peyton Travel Limited,1485,Revenue,
DIRECT ENVIRONMENT AND HOUSING,VISIBLE SERVICES,09-Mar-18,365789,Peyton Travel Limited,1110,Revenue,
DIRECT ENVIRONMENT AND HOUSING,VISIBLE SERVICES,09-Mar-18,365789,Premier Cars (Cardiff) Limited,630,Revenue,
DIRECT ENVIRONMENT AND HOUSING,VISIBLE SERVICES,09-Mar-18,365789,Travellink Solutions Limited,1110,Revenue,
DIRECT ENVIRONMENT AND HOUSING,VISIBLE SERVICES,09-Mar-18,365789,Watts Coaches Limited,4314.6,Revenue,
DIRECT ENVIRONMENT AND HOUSING,VISIBLE SERVICES,09-Mar-18,365789,Simon Lewis t/a Cowbridge and Vale Cars,840,Revenue,
DIRECT ENVIRONMENT AND HOUSING,VISIBLE SERVICES,09-Mar-18,365789,Simon Lewis t/a Cowbridge and Vale Cars,910,Revenue,
DIRECT ENVIRONMENT AND HOUSING,VISIBLE SERVICES,09-Mar-18,365790,Easyway Minicoach Hire Limited,3705,Revenue,
DIRECT ENVIRONMENT AND HOUSING,VISIBLE SERVICES,09-Mar-18,365790,Peyton Travel Limited,1635,Revenue,
DIRECT ENVIRONMENT AND HOUSING,VISIBLE SERVICES,09-Mar-18,365790,Peyton Travel Limited,585,Revenue,
DIRECT ENVIRONMENT AND HOUSING,VISIBLE SERVICES,09-Mar-18,365790,Peyton Travel Limited,1110,Revenue,
DIRECT ENVIRONMENT AND HOUSING,VISIBLE SERVICES,09-Mar-18,365790,Peyton Travel Limited,1485,Revenue,
DIRECT ENVIRONMENT AND HOUSING,VISIBLE SERVICES,09-Mar-18,365790,Peyton Travel Limited,975,Revenue,
DIRECT ENVIRONMENT AND HOUSING,VISIBLE SERVICES,09-Mar-18,365790,Peyton Travel Limited,1935,Revenue,
DIRECT ENVIRONMENT AND HOUSING,VISIBLE SERVICES,09-Mar-18,365790,Premier Cars (Cardiff) Limited,2385,Revenue,
DIRECT ENVIRONMENT AND HOUSING,VISIBLE SERVICES,09-Mar-18,365790,Travellink Solutions Limited,2385,Revenue,
DIRECT ENVIRONMENT AND HOUSING,VISIBLE SERVICES,09-Mar-18,365790,Watts Coaches Limited,41703.5,Revenue,
DIRECT ENVIRONMENT AND HOUSING,VISIBLE SERVICES,09-Mar-18,365794,Peyton Travel Limited,1507.5,Revenue,
DIRECT ENVIRONMENT AND HOUSING,VISIBLE SERVICES,09-Mar-18,365794,Watts Coaches Limited,5333.9,Revenue,
DIRECT ENVIRONMENT AND HOUSING,VISIBLE SERVICES,09-Mar-18,365795,Peyton Travel Limited,1507.5,Revenue,
DIRECT ENVIRONMENT AND HOUSING,VISIBLE SERVICES,09-Mar-18,365795,Watts Coaches Limited,4834.5,Revenue,
DIRECT ENVIRONMENT AND HOUSING,VISIBLE SERVICES,09-Mar-18,365796,New Adventure Travel Limited,3640,Revenue,
DIRECT ENVIRONMENT AND HOUSING,GF HOUSING SERVICES,09-Mar-18,402421,EDF Energy Plc,510.67,Revenue,
DIRECT ENVIRONMENT AND HOUSING,REGULATORY SHARED SERVICES,09-Mar-18,403330,Disclosure and Barring Service,748,Revenue,
DIRECT ENVIRONMENT AND HOUSING,HOUSING,09-Mar-18,407106,CCS Mclays Limited,3005.92,Revenue,
DIRECT ENVIRONMENT AND HOUSING,HOUSING,09-Mar-18,407106,Building Recruitment Company Limited,788.12,Revenue,
DIRECT ENVIRONMENT AND HOUSING,HOUSING,09-Mar-18,407106,Building Recruitment Company Limited,641.21,Revenue,
DIRECT ENVIRONMENT AND HOUSING,HOUSING,09-Mar-18,407150,Corona Energy Retail 4 Limited,528.19,Revenue,
DIRECT ENVIRONMENT AND HOUSING,HOUSING,09-Mar-18,407150,EDF Energy Plc,760.46,Revenue,
DIRECT ENVIRONMENT AND HOUSING,HOUSING,09-Mar-18,407215,Corona Energy Retail 4 Limited,1314.49,Revenue,
DIRECT ENVIRONMENT AND HOUSING,HOUSING,09-Mar-18,407240,Corona Energy Retail 4 Limited,988.32,Revenue,
DIRECT ENVIRONMENT AND HOUSING,HOUSING,09-Mar-18,407245,Corona Energy Retail 4 Limited,837.46,Revenue,
DIRECT ENVIRONMENT AND HOUSING,HOUSING,09-Mar-18,407260,Corona Energy Retail 4 Limited,1172.49,Revenue,
DIRECT ENVIRONMENT AND HOUSING,HOUSING,09-Mar-18,407400,Glamorgan Gem Limited,500,Revenue,
DIRECT MANAGING DIRECTOR AND RESOURCES,GF RESOURCES,09-Mar-18,422100,Corona Energy Retail 4 Limited,3140.88,Revenue,
DIRECT MANAGING DIRECTOR AND RESOURCES,GF RESOURCES,09-Mar-18,422100,EDF Energy Plc,7889.77,Revenue,
DIRECT MANAGING DIRECTOR AND RESOURCES,GF RESOURCES,09-Mar-18,422120,Corona Energy Retail 4 Limited,738.45,Revenue,
DIRECT MANAGING DIRECTOR AND RESOURCES,GF RESOURCES,09-Mar-18,422120,EDF Energy Plc,2883.89,Revenue,
DIRECT MANAGING DIRECTOR AND RESOURCES,GF RESOURCES,09-Mar-18,422130,EDF Energy Plc,8760.01,Revenue,
DIRECT MANAGING DIRECTOR AND RESOURCES,GF RESOURCES,09-Mar-18,422150,EDF Energy Plc,678.28,Revenue,
DIRECT MANAGING DIRECTOR AND RESOURCES,GF RESOURCES,09-Mar-18,422201,Corona Energy Retail 4 Limited,1266.24,Revenue,
DIRECT MANAGING DIRECTOR AND RESOURCES,GF RESOURCES,09-Mar-18,422201,EDF Energy Plc,2437.7,Revenue,
DIRECT MANAGING DIRECTOR AND RESOURCES,GF RESOURCES,09-Mar-18,422201,EDF Energy Plc,2396.45,Revenue,
DIRECT MANAGING DIRECTOR AND RESOURCES,GF RESOURCES,09-Mar-18,422201,EDF Energy Plc,2416,Revenue,
DIRECT MANAGING DIRECTOR AND RESOURCES,GF RESOURCES,09-Mar-18,422201,EDF Energy Plc,2166.79,Revenue,
DIRECT MANAGING DIRECTOR AND RESOURCES,GF RESOURCES,09-Mar-18,422201,EDF Energy Plc,2946.45,Revenue,
DIRECT MANAGING DIRECTOR AND RESOURCES,GF RESOURCES,09-Mar-18,422201,EDF Energy Plc,3128.62,Revenue,
DIRECT MANAGING DIRECTOR AND RESOURCES,GF RESOURCES,09-Mar-18,422201,EDF Energy Plc,3174.86,Revenue,
DIRECT MANAGING DIRECTOR AND RESOURCES,GF RESOURCES,09-Mar-18,422201,EDF Energy Plc,2759.3,Revenue,
DIRECT MANAGING DIRECTOR AND RESOURCES,GF RESOURCES,09-Mar-18,422500,EDF Energy Plc,1129.94,Revenue,
DIRECT MANAGING DIRECTOR AND RESOURCES,GF GRANTS,09-Mar-18,465201,Wales Restorative Approaches Partnership CIC,8444,Revenue,
DIRECT MANAGING DIRECTOR AND RESOURCES,GF GRANTS,09-Mar-18,465201,Llangan Community Council,3991.64,Revenue,
DIRECT CAPITAL DEVELOPMENT,CAPITAL ECO DEV,09-Mar-18,834231,Rubicon Heritage Services Limited,12974.33,Capital,
DIRECT CAPITAL DEVELOPMENT,AR CAPITAL LEISURE,09-Mar-18,835379,LCB Construction Limited,-29288.77,Capital,
DIRECT CAPITAL VISIBLE AND HOUSING SERVICES,CAPITAL HRA,09-Mar-18,842177,Ian Williams Limited,200450,Capital,
DIRECT LEARNING AND SKILLS,SCHOOLS DELEGATED,12-Mar-18,101004,PEAC (UK) Limited,2063.58,Revenue,
DIRECT LEARNING AND SKILLS,SCHOOLS DELEGATED,12-Mar-18,101004,Screwfix Direct Limited t/a Trade UK,612.44,Revenue,
DIRECT LEARNING AND SKILLS,SCHOOLS DELEGATED,12-Mar-18,101004,Superstars School Services Limited,1548,Revenue,
DIRECT LEARNING AND SKILLS,SCHOOLS DELEGATED,12-Mar-18,101004,New Directions (Education) Limited,506,Revenue,
DIRECT LEARNING AND SKILLS,SCHOOLS DELEGATED,12-Mar-18,101031,The National Trust For Places Of Historic Interest Or Natural Beauty,5090,Revenue,
DIRECT LEARNING AND SKILLS,SCHOOLS DELEGATED,12-Mar-18,101032,Legacy Leisure Limited,1599,Revenue,
DIRECT LEARNING AND SKILLS,SCHOOLS DELEGATED,12-Mar-18,101047,Kevin John Webber,924.12,Revenue,
DIRECT LEARNING AND SKILLS,SCHOOLS DELEGATED,12-Mar-18,101063,Academics Limited,842.2,Revenue,
DIRECT LEARNING AND SKILLS,SCHOOLS DELEGATED,12-Mar-18,101063,Academics Limited,842.2,Revenue,
DIRECT LEARNING AND SKILLS,SCHOOLS DELEGATED,12-Mar-18,101063,Corona Energy Retail 4 Limited,650.91,Revenue,
DIRECT LEARNING AND SKILLS,SCHOOLS DELEGATED,12-Mar-18,101094,Business Gas Limited / Electricity,528.42,Revenue,
DIRECT LEARNING AND SKILLS,SCHOOLS DELEGATED,12-Mar-18,101094,Business Gas Limited / Electricity,661.72,Revenue,
DIRECT LEARNING AND SKILLS,SCHOOLS DELEGATED,12-Mar-18,101095,EDF Energy Plc,620.5,Revenue,
DIRECT LEARNING AND SKILLS,SCHOOLS DELEGATED,12-Mar-18,101095,Findel Education Limited,510.67,Revenue,
DIRECT LEARNING AND SKILLS,SCHOOLS DELEGATED,12-Mar-18,101095,Signs Direct (Yorkshire) Limited,922.95,Revenue,
DIRECT LEARNING AND SKILLS,SCHOOLS DELEGATED,12-Mar-18,101095,TTS Group Limited,843.77,Revenue,
DIRECT LEARNING AND SKILLS,SCHOOLS DELEGATED,12-Mar-18,101095,The Consortium for Purchasing and Distribution Limited,815.54,Revenue,
DIRECT LEARNING AND SKILLS,SCHOOLS DELEGATED,12-Mar-18,101095,The Consortium for Purchasing and Distribution Limited,516.1,Revenue,
DIRECT LEARNING AND SKILLS,SCHOOLS DELEGATED,12-Mar-18,101095,The Consortium for Purchasing and Distribution Limited,908.92,Revenue,
DIRECT LEARNING AND SKILLS,SCHOOLS DELEGATED,12-Mar-18,101173,A & R Contract Cleaning Specialist Limited,553.02,Revenue,
DIRECT LEARNING AND SKILLS,SCHOOLS DELEGATED,12-Mar-18,101202,Biffa Waste Services Limited,509.37,Revenue,
DIRECT LEARNING AND SKILLS,SCHOOLS DELEGATED,12-Mar-18,101202,Empowering Learning Limited,520,Revenue,
DIRECT LEARNING AND SKILLS,SCHOOLS DELEGATED,12-Mar-18,101202,PHS Group Plc,701.34,Revenue,
DIRECT LEARNING AND SKILLS,SCHOOLS DELEGATED,12-Mar-18,101202,Valley Education Services Limited,610.38,Revenue,
DIRECT LEARNING AND SKILLS,SCHOOLS DELEGATED,12-Mar-18,101233,Community Sports Management Limited t/a Sports Xtra,1250,Revenue,
DIRECT LEARNING AND SKILLS,SCHOOLS DELEGATED,12-Mar-18,101233,RDT Office Solutions Group Limited,4069,Revenue,
DIRECT LEARNING AND SKILLS,SCHOOLS DELEGATED,12-Mar-18,101233,TTS Group Limited,736.16,Revenue,
DIRECT LEARNING AND SKILLS,SCHOOLS DELEGATED,12-Mar-18,101233,Anney Thornton Wood t/a Cambium Sustainable,544.35,Revenue,
DIRECT LEARNING AND SKILLS,SCHOOLS DELEGATED,12-Mar-18,101233,Anney Thornton Wood t/a Cambium Sustainable,643,Revenue,
DIRECT LEARNING AND SKILLS,SCHOOLS DELEGATED,12-Mar-18,101305,G.P.H.I.T (Integrated Services) Limited,3850,Revenue,
DIRECT LEARNING AND SKILLS,SCHOOLS DELEGATED,12-Mar-18,101305,Glamorgan Telecom Limited,2050,Revenue,
DIRECT LEARNING AND SKILLS,SCHOOLS DELEGATED,12-Mar-18,101305,One Team Logic Limited,548,Revenue,
DIRECT LEARNING AND SKILLS,SCHOOLS DELEGATED,12-Mar-18,101305,TeacherActive Limited,876.84,Revenue,
DIRECT LEARNING AND SKILLS,SCHOOLS DELEGATED,12-Mar-18,101315,Apogee Corporation Limited,671.84,Revenue,
DIRECT LEARNING AND SKILLS,SCHOOLS DELEGATED,12-Mar-18,101315,Findel Education Limited,519.79,Revenue,
DIRECT LEARNING AND SKILLS,SCHOOLS DELEGATED,12-Mar-18,101315,The Learning Partnership (Wales) Limited,1602.6,Revenue,
DIRECT LEARNING AND SKILLS,SCHOOLS DELEGATED,12-Mar-18,102593,Academia Limited,2577.47,Revenue,
DIRECT LEARNING AND SKILLS,SCHOOLS DELEGATED,12-Mar-18,102593,Academia Limited,4486.2,Revenue,
DIRECT LEARNING AND SKILLS,SCHOOLS DELEGATED,12-Mar-18,102593,Greenpoint IT Limited,613.33,Revenue,
DIRECT LEARNING AND SKILLS,SCHOOLS DELEGATED,12-Mar-18,102593,Teaching Personnel Limited,535,Revenue,
DIRECT LEARNING AND SKILLS,SCHOOLS DELEGATED,12-Mar-18,102593,Work With Meaning,900,Revenue,
DIRECT LEARNING AND SKILLS,ACHIEVEMENT FOR ALL,12-Mar-18,102672,Michael D Church,750,Revenue,
DIRECT LEARNING AND SKILLS,ACHIEVEMENT FOR ALL,12-Mar-18,102672,Andrew Wallace T/A FAST,1200,Revenue,
DIRECT LEARNING AND SKILLS,ACHIEVEMENT FOR ALL,12-Mar-18,102672,David Ganderton t/a David Ganderton Graphic Design,2232,Revenue,
DIRECT MANAGING DIRECTOR AND RESOURCES,GF HUMAN RESOURCES,12-Mar-18,140131,Randstad Solutions Limited,82898.1,Revenue,
DIRECT SOCIAL SERVICES,GF ADULT SERVICES,12-Mar-18,212791,PHS Group Plc,675.15,Revenue,
DIRECT SOCIAL SERVICES,GF ADULT SERVICES,12-Mar-18,215025,Cardiff & Vale Action for Mental Health,6904.36,Revenue,
DIRECT SOCIAL SERVICES,GF ADULT SERVICES,12-Mar-18,215025,Dewis Centre For Independant Living,31250,Revenue,
DIRECT SOCIAL SERVICES,GF ADULT SERVICES,12-Mar-18,215025,Dewis Centre For Independant Living,10067.81,Revenue,
DIRECT SOCIAL SERVICES,GF ADULT SERVICES,12-Mar-18,215025,The Friendly Trust,8017.25,Revenue,
DIRECT SOCIAL SERVICES,GF ADULT SERVICES,12-Mar-18,215401,Chubb Fire & Security Limited,804.66,Revenue,
DIRECT SOCIAL SERVICES,GF ADULT SERVICES,12-Mar-18,215401,Just Checking Limited,1531,Revenue,
DIRECT SOCIAL SERVICES,GF ADULT SERVICES,12-Mar-18,215489,Annwyl Limited t/a Bluebird Care,707.37,Revenue,
DIRECT SOCIAL SERVICES,GF ADULT SERVICES,12-Mar-18,215489,Annwyl Limited t/a Bluebird Care,633.05,Revenue,
DIRECT SOCIAL SERVICES,GF ADULT SERVICES,12-Mar-18,215489,Annwyl Limited t/a Bluebird Care,707.37,Revenue,
DIRECT SOCIAL SERVICES,GF ADULT SERVICES,12-Mar-18,215489,Annwyl Limited t/a Bluebird Care,588.14,Revenue,
DIRECT SOCIAL SERVICES,GF ADULT SERVICES,12-Mar-18,215489,Hallows Care Limited T/A Hallows Care,682.08,Revenue,
DIRECT SOCIAL SERVICES,GF ADULT SERVICES,12-Mar-18,215489,Hallows Care Limited T/A Hallows Care,590.12,Revenue,
DIRECT SOCIAL SERVICES,GF ADULT SERVICES,12-Mar-18,215489,Hallows Care Limited T/A Hallows Care,598.5,Revenue,
DIRECT SOCIAL SERVICES,GF ADULT SERVICES,12-Mar-18,215489,Parkrow Care Limited,547.4,Revenue,
DIRECT SOCIAL SERVICES,GF ADULT SERVICES,12-Mar-18,215489,Parkrow Care Limited,580.1,Revenue,
DIRECT SOCIAL SERVICES,GF ADULT SERVICES,12-Mar-18,215489,Parkrow Care Limited,580.1,Revenue,
DIRECT SOCIAL SERVICES,GF ADULT SERVICES,12-Mar-18,215489,Willowmere Home Care Agency Limited,647.13,Revenue,
DIRECT SOCIAL SERVICES,GF ADULT SERVICES,12-Mar-18,215489,Willowmere Home Care Agency Limited,738.65,Revenue,
DIRECT SOCIAL SERVICES,GF ADULT SERVICES,12-Mar-18,215489,Willowmere Home Care Agency Limited,604.1,Revenue,
DIRECT SOCIAL SERVICES,GF ADULT SERVICES,12-Mar-18,215489,Willowmere Home Care Agency Limited,523.89,Revenue,
DIRECT SOCIAL SERVICES,GF ADULT SERVICES,12-Mar-18,215489,Willowmere Home Care Agency Limited,659.29,Revenue,
DIRECT SOCIAL SERVICES,GF ADULT SERVICES,12-Mar-18,215489,Willowmere Home Care Agency Limited,527.73,Revenue,
DIRECT SOCIAL SERVICES,GF ADULT SERVICES,12-Mar-18,215489,Willowmere Home Care Agency Limited,636.86,Revenue,
DIRECT SOCIAL SERVICES,GF ADULT SERVICES,12-Mar-18,215489,Willowmere Home Care Agency Limited,586.15,Revenue,
DIRECT SOCIAL SERVICES,GF ADULT SERVICES,12-Mar-18,215489,Willowmere Home Care Agency Limited,644.83,Revenue,
DIRECT SOCIAL SERVICES,GF ADULT SERVICES,12-Mar-18,215489,Willowmere Home Care Agency Limited,570.08,Revenue,
DIRECT SOCIAL SERVICES,GF ADULT SERVICES,12-Mar-18,215489,Willowmere Home Care Agency Limited,604.1,Revenue,
DIRECT SOCIAL SERVICES,GF ADULT SERVICES,12-Mar-18,215489,Willowmere Home Care Agency Limited,651.81,Revenue,
DIRECT SOCIAL SERVICES,GF ADULT SERVICES,12-Mar-18,215489,Willowmere Home Care Agency Limited,850.07,Revenue,
DIRECT SOCIAL SERVICES,GF ADULT SERVICES,12-Mar-18,215489,Willowmere Home Care Agency Limited,678.85,Revenue,
DIRECT SOCIAL SERVICES,GF ADULT SERVICES,12-Mar-18,216071,VoicePower Limited,865,Revenue,
DIRECT SOCIAL SERVICES,GF ADULT SERVICES,12-Mar-18,216179,Annwyl Limited t/a Bluebird Care,720,Revenue,
DIRECT SOCIAL SERVICES,GF ADULT SERVICES,12-Mar-18,216179,Hallows Care Limited T/A Hallows Care,575.6,Revenue,
DIRECT SOCIAL SERVICES,GF ADULT SERVICES,12-Mar-18,216181,Sight Cymru,5200,Revenue,
DIRECT SOCIAL SERVICES,GF ADULT SERVICES,12-Mar-18,217541,Innovate Trust Limited,261828.54,Revenue,
DIRECT SOCIAL SERVICES,GF ADULT SERVICES,12-Mar-18,217541,Innovate Trust Limited,213026.83,Revenue,
DIRECT SOCIAL SERVICES,GF ADULT SERVICES,12-Mar-18,217541,Innovate Trust Limited,15332.17,Revenue,
DIRECT SOCIAL SERVICES,GF ADULT SERVICES,12-Mar-18,217909,Innovate Trust Limited,10983.75,Revenue,
DIRECT SOCIAL SERVICES,GF ADULT SERVICES,12-Mar-18,217909,Valeplus (Cymru) & Valeplus Extra,23589.76,Revenue,
DIRECT SOCIAL SERVICES,GF ADULT SERVICES,12-Mar-18,218419,Annwyl Limited t/a Bluebird Care,603.88,Revenue,
DIRECT SOCIAL SERVICES,GF ADULT SERVICES,12-Mar-18,218419,Annwyl Limited t/a Bluebird Care,625.64,Revenue,
DIRECT SOCIAL SERVICES,GF ADULT SERVICES,12-Mar-18,218419,Annwyl Limited t/a Bluebird Care,1092.53,Revenue,
DIRECT SOCIAL SERVICES,GF ADULT SERVICES,12-Mar-18,218419,Crossroads in the Vale (EMI) Limited,4109.18,Revenue,
DIRECT SOCIAL SERVICES,GF ADULT SERVICES,12-Mar-18,218419,Crossroads in the Vale (EMI) Limited,2362.5,Revenue,
DIRECT SOCIAL SERVICES,GF ADULT SERVICES,12-Mar-18,218419,Parkrow Care Limited,604.4,Revenue,
DIRECT SOCIAL SERVICES,GF YOS,12-Mar-18,221305,International Institute for Restorative Practices (IIRP) Europe t/a IIRP Europe,2000,Revenue,
DIRECT SOCIAL SERVICES,GF YOS,12-Mar-18,221305,Restorative Justice Council Limited,4000,Revenue,
DIRECT SOCIAL SERVICES,GF YOS,12-Mar-18,221371,Red Ridge Holidays Limited,1620,Revenue,
DIRECT SOCIAL SERVICES,GF BUSINESS MANAGEMENT & INOVATION,12-Mar-18,239102,Torfaen County Borough Council,8307,Revenue,
DIRECT SOCIAL SERVICES,GF CHILDREN SERVICES,12-Mar-18,260060,BetterCare Keys Limited,10656.96,Revenue,
DIRECT SOCIAL SERVICES,GF CHILDREN SERVICES,12-Mar-18,260060,Care Today (Childrens Services) Limited,9459.31,Revenue,
DIRECT SOCIAL SERVICES,GF CHILDREN SERVICES,12-Mar-18,260060,Foster Care Associates Limited,3615,Revenue,
DIRECT SOCIAL SERVICES,GF CHILDREN SERVICES,12-Mar-18,260060,Foster Care Associates Limited,8100,Revenue,
DIRECT SOCIAL SERVICES,GF CHILDREN SERVICES,12-Mar-18,260060,Foster Care Associates Limited,3615,Revenue,
DIRECT SOCIAL SERVICES,GF CHILDREN SERVICES,12-Mar-18,260060,Foster Care Associates Limited,3506.4,Revenue,
DIRECT SOCIAL SERVICES,GF CHILDREN SERVICES,12-Mar-18,260060,Foster Care Associates Limited,3615,Revenue,
DIRECT SOCIAL SERVICES,GF CHILDREN SERVICES,12-Mar-18,260060,Foster Care Associates Limited,2565,Revenue,
DIRECT SOCIAL SERVICES,GF CHILDREN SERVICES,12-Mar-18,260060,Fosteringmatters Limited,3425.8,Revenue,
DIRECT SOCIAL SERVICES,GF CHILDREN SERVICES,12-Mar-18,260060,Landsker Child Care Limited,18086.29,Revenue,
DIRECT SOCIAL SERVICES,GF CHILDREN SERVICES,12-Mar-18,260060,Landsker Child Care Limited,18033.39,Revenue,
DIRECT SOCIAL SERVICES,GF CHILDREN SERVICES,12-Mar-18,260060,Orbis Education and Care Limited,22673.92,Revenue,
DIRECT SOCIAL SERVICES,GF CHILDREN SERVICES,12-Mar-18,260060,Pathway Care Limited T/A Nexus Fostering,3432.32,Revenue,
DIRECT SOCIAL SERVICES,GF CHILDREN SERVICES,12-Mar-18,260060,Pathway Care Limited T/A Nexus Fostering,2966.17,Revenue,
DIRECT SOCIAL SERVICES,GF CHILDREN SERVICES,12-Mar-18,260060,Pathway Care Limited T/A Nexus Fostering,3297.17,Revenue,
DIRECT SOCIAL SERVICES,GF CHILDREN SERVICES,12-Mar-18,260060,Pathway Care Limited T/A Nexus Fostering,2968.11,Revenue,
DIRECT SOCIAL SERVICES,GF CHILDREN SERVICES,12-Mar-18,260060,Pathway Care Limited T/A Nexus Fostering,2968.11,Revenue,
DIRECT SOCIAL SERVICES,GF CHILDREN SERVICES,12-Mar-18,260060,Pathway Care Limited T/A Nexus Fostering,2817.86,Revenue,
DIRECT SOCIAL SERVICES,GF CHILDREN SERVICES,12-Mar-18,260060,Pathway Care Limited T/A Nexus Fostering,2817.86,Revenue,
DIRECT SOCIAL SERVICES,GF CHILDREN SERVICES,12-Mar-18,260060,Pathway Care Limited T/A Nexus Fostering,3347.07,Revenue,
DIRECT SOCIAL SERVICES,GF CHILDREN SERVICES,12-Mar-18,260060,Pathway Care Limited T/A Nexus Fostering,4212.2,Revenue,
DIRECT SOCIAL SERVICES,GF CHILDREN SERVICES,12-Mar-18,260060,Pathway Care Limited T/A Nexus Fostering,3297.17,Revenue,
DIRECT SOCIAL SERVICES,GF CHILDREN SERVICES,12-Mar-18,260060,Pathway Care Limited T/A Nexus Fostering,2899.96,Revenue,
DIRECT SOCIAL SERVICES,GF CHILDREN SERVICES,12-Mar-18,260060,Pathway Care Limited T/A Nexus Fostering,3052.58,Revenue,
DIRECT SOCIAL SERVICES,GF CHILDREN SERVICES,12-Mar-18,260060,Pathway Care Limited T/A Nexus Fostering,3297.17,Revenue,
DIRECT SOCIAL SERVICES,GF CHILDREN SERVICES,12-Mar-18,260060,Pathway Care Limited T/A Nexus Fostering,2684.03,Revenue,
DIRECT SOCIAL SERVICES,GF CHILDREN SERVICES,12-Mar-18,260060,Pathway Care Limited T/A Nexus Fostering,3297.17,Revenue,
DIRECT SOCIAL SERVICES,GF CHILDREN SERVICES,12-Mar-18,260060,Pathway Care Limited T/A Nexus Fostering,1652.46,Revenue,
DIRECT SOCIAL SERVICES,GF CHILDREN SERVICES,12-Mar-18,260060,Pathway Care Limited T/A Nexus Fostering,1652.46,Revenue,
DIRECT SOCIAL SERVICES,GF CHILDREN SERVICES,12-Mar-18,260060,Pathway Care Limited T/A Nexus Fostering,1835.66,Revenue,
DIRECT SOCIAL SERVICES,GF CHILDREN SERVICES,12-Mar-18,260060,Pathway Care Limited T/A Nexus Fostering,3432.32,Revenue,
DIRECT SOCIAL SERVICES,GF CHILDREN SERVICES,12-Mar-18,260060,Pathway Care Limited T/A Nexus Fostering,2966.17,Revenue,
DIRECT SOCIAL SERVICES,GF CHILDREN SERVICES,12-Mar-18,260060,Pathway Care Limited T/A Nexus Fostering,3297.17,Revenue,
DIRECT SOCIAL SERVICES,GF CHILDREN SERVICES,12-Mar-18,260060,Pathway Care Limited T/A Nexus Fostering,2968.11,Revenue,
DIRECT SOCIAL SERVICES,GF CHILDREN SERVICES,12-Mar-18,260060,Pathway Care Limited T/A Nexus Fostering,2968.11,Revenue,
DIRECT SOCIAL SERVICES,GF CHILDREN SERVICES,12-Mar-18,260060,Pathway Care Limited T/A Nexus Fostering,2817.86,Revenue,
DIRECT SOCIAL SERVICES,GF CHILDREN SERVICES,12-Mar-18,260060,Pathway Care Limited T/A Nexus Fostering,2817.86,Revenue,
DIRECT SOCIAL SERVICES,GF CHILDREN SERVICES,12-Mar-18,260060,Pathway Care Limited T/A Nexus Fostering,3347.07,Revenue,
DIRECT SOCIAL SERVICES,GF CHILDREN SERVICES,12-Mar-18,260060,Pathway Care Limited T/A Nexus Fostering,4212.2,Revenue,
DIRECT SOCIAL SERVICES,GF CHILDREN SERVICES,12-Mar-18,260060,Pathway Care Limited T/A Nexus Fostering,3297.17,Revenue,
DIRECT SOCIAL SERVICES,GF CHILDREN SERVICES,12-Mar-18,260060,Pathway Care Limited T/A Nexus Fostering,2899.96,Revenue,
DIRECT SOCIAL SERVICES,GF CHILDREN SERVICES,12-Mar-18,260060,Pathway Care Limited T/A Nexus Fostering,3052.58,Revenue,
DIRECT SOCIAL SERVICES,GF CHILDREN SERVICES,12-Mar-18,260060,Pathway Care Limited T/A Nexus Fostering,3297.17,Revenue,
DIRECT SOCIAL SERVICES,GF CHILDREN SERVICES,12-Mar-18,260060,Pathway Care Limited T/A Nexus Fostering,2684.03,Revenue,
DIRECT SOCIAL SERVICES,GF CHILDREN SERVICES,12-Mar-18,260060,Pathway Care Limited T/A Nexus Fostering,1295.76,Revenue,
DIRECT SOCIAL SERVICES,GF CHILDREN SERVICES,12-Mar-18,260060,Pathway Care Limited T/A Nexus Fostering,3013.31,Revenue,
DIRECT SOCIAL SERVICES,GF CHILDREN SERVICES,12-Mar-18,260060,Pathway Care Limited T/A Nexus Fostering,3013.31,Revenue,
DIRECT SOCIAL SERVICES,GF CHILDREN SERVICES,12-Mar-18,260060,Pathway Care Limited T/A Nexus Fostering,3297.17,Revenue,
DIRECT SOCIAL SERVICES,GF CHILDREN SERVICES,12-Mar-18,260060,Pathway Care Limited T/A Nexus Fostering,3100.16,Revenue,
DIRECT SOCIAL SERVICES,GF CHILDREN SERVICES,12-Mar-18,260060,Pathway Care Limited T/A Nexus Fostering,2679.12,Revenue,
DIRECT SOCIAL SERVICES,GF CHILDREN SERVICES,12-Mar-18,260060,Pathway Care Limited T/A Nexus Fostering,2978.09,Revenue,
DIRECT SOCIAL SERVICES,GF CHILDREN SERVICES,12-Mar-18,260060,Pathway Care Limited T/A Nexus Fostering,2680.87,Revenue,
DIRECT SOCIAL SERVICES,GF CHILDREN SERVICES,12-Mar-18,260060,Pathway Care Limited T/A Nexus Fostering,2680.87,Revenue,
DIRECT SOCIAL SERVICES,GF CHILDREN SERVICES,12-Mar-18,260060,Pathway Care Limited T/A Nexus Fostering,2545.16,Revenue,
DIRECT SOCIAL SERVICES,GF CHILDREN SERVICES,12-Mar-18,260060,Pathway Care Limited T/A Nexus Fostering,3023.16,Revenue,
DIRECT SOCIAL SERVICES,GF CHILDREN SERVICES,12-Mar-18,260060,Pathway Care Limited T/A Nexus Fostering,3804.57,Revenue,
DIRECT SOCIAL SERVICES,GF CHILDREN SERVICES,12-Mar-18,260060,Pathway Care Limited T/A Nexus Fostering,2978.09,Revenue,
DIRECT SOCIAL SERVICES,GF CHILDREN SERVICES,12-Mar-18,260060,Pathway Care Limited T/A Nexus Fostering,2757.17,Revenue,
DIRECT SOCIAL SERVICES,GF CHILDREN SERVICES,12-Mar-18,260060,Pathway Care Limited T/A Nexus Fostering,2978.09,Revenue,
DIRECT SOCIAL SERVICES,GF CHILDREN SERVICES,12-Mar-18,260060,Pathway Care Limited T/A Nexus Fostering,2619.31,Revenue,
DIRECT SOCIAL SERVICES,GF CHILDREN SERVICES,12-Mar-18,260060,Pathway Care Limited T/A Nexus Fostering,2424.28,Revenue,
DIRECT SOCIAL SERVICES,GF CHILDREN SERVICES,12-Mar-18,260060,Pathway Care Limited T/A Nexus Fostering,2721.7,Revenue,
DIRECT SOCIAL SERVICES,GF CHILDREN SERVICES,12-Mar-18,260060,Pathway Care Limited T/A Nexus Fostering,3023.44,Revenue,
DIRECT SOCIAL SERVICES,GF CHILDREN SERVICES,12-Mar-18,260060,Pathway Care Limited T/A Nexus Fostering,2978.09,Revenue,
DIRECT SOCIAL SERVICES,GF CHILDREN SERVICES,12-Mar-18,260060,Pathway Care Limited T/A Nexus Fostering,3432.32,Revenue,
DIRECT SOCIAL SERVICES,GF CHILDREN SERVICES,12-Mar-18,260060,Pathway Care Limited T/A Nexus Fostering,8392.01,Revenue,
DIRECT SOCIAL SERVICES,GF CHILDREN SERVICES,12-Mar-18,260060,Pathway Care Limited T/A Nexus Fostering,3347.38,Revenue,
DIRECT SOCIAL SERVICES,GF CHILDREN SERVICES,12-Mar-18,260060,Pathway Care Limited T/A Nexus Fostering,2966.17,Revenue,
DIRECT SOCIAL SERVICES,GF CHILDREN SERVICES,12-Mar-18,260060,Pathway Care Limited T/A Nexus Fostering,3297.17,Revenue,
DIRECT SOCIAL SERVICES,GF CHILDREN SERVICES,12-Mar-18,260060,Pathway Care Limited T/A Nexus Fostering,2968.11,Revenue,
DIRECT SOCIAL SERVICES,GF CHILDREN SERVICES,12-Mar-18,260060,Pathway Care Limited T/A Nexus Fostering,2968.11,Revenue,
DIRECT SOCIAL SERVICES,GF CHILDREN SERVICES,12-Mar-18,260060,Pathway Care Limited T/A Nexus Fostering,2966.17,Revenue,
DIRECT SOCIAL SERVICES,GF CHILDREN SERVICES,12-Mar-18,260060,Pathway Care Limited T/A Nexus Fostering,2817.86,Revenue,
DIRECT SOCIAL SERVICES,GF CHILDREN SERVICES,12-Mar-18,260060,Pathway Care Limited T/A Nexus Fostering,3297.17,Revenue,
DIRECT SOCIAL SERVICES,GF CHILDREN SERVICES,12-Mar-18,260060,Pathway Care Limited T/A Nexus Fostering,4212.2,Revenue,
DIRECT SOCIAL SERVICES,GF CHILDREN SERVICES,12-Mar-18,260060,Pathway Care Limited T/A Nexus Fostering,3052.58,Revenue,
DIRECT SOCIAL SERVICES,GF CHILDREN SERVICES,12-Mar-18,260060,Pathway Care Limited T/A Nexus Fostering,3297.17,Revenue,
DIRECT SOCIAL SERVICES,GF CHILDREN SERVICES,12-Mar-18,260060,Pathway Care Limited T/A Nexus Fostering,2899.96,Revenue,
DIRECT SOCIAL SERVICES,GF CHILDREN SERVICES,12-Mar-18,260060,Pathway Care Limited T/A Nexus Fostering,2684.03,Revenue,
DIRECT SOCIAL SERVICES,GF CHILDREN SERVICES,12-Mar-18,260060,Pathway Care Limited T/A Nexus Fostering,3013.31,Revenue,
DIRECT SOCIAL SERVICES,GF CHILDREN SERVICES,12-Mar-18,260060,Pathway Care Limited T/A Nexus Fostering,2159.6,Revenue,
DIRECT SOCIAL SERVICES,GF CHILDREN SERVICES,12-Mar-18,260060,Pathway Care Limited T/A Nexus Fostering,1187.78,Revenue,
DIRECT SOCIAL SERVICES,GF CHILDREN SERVICES,12-Mar-18,260060,Pathway Care Limited T/A Nexus Fostering,3297.17,Revenue,
DIRECT SOCIAL SERVICES,GF CHILDREN SERVICES,12-Mar-18,260060,Pathway Care Limited T/A Nexus Fostering,2679.12,Revenue,
DIRECT SOCIAL SERVICES,GF CHILDREN SERVICES,12-Mar-18,260060,Pathway Care Limited T/A Nexus Fostering,2371.44,Revenue,
DIRECT SOCIAL SERVICES,GF CHILDREN SERVICES,12-Mar-18,260060,Pathway Care Limited T/A Nexus Fostering,6497.04,Revenue,
DIRECT SOCIAL SERVICES,GF CHILDREN SERVICES,12-Mar-18,260060,Pathway Care Limited T/A Nexus Fostering,2483.54,Revenue,
DIRECT SOCIAL SERVICES,GF CHILDREN SERVICES,12-Mar-18,260060,Regional Foster Placements Limited,2940,Revenue,
DIRECT SOCIAL SERVICES,GF CHILDREN SERVICES,12-Mar-18,260060,Step-A-Side Company Limited,8087.66,Revenue,
DIRECT SOCIAL SERVICES,GF CHILDREN SERVICES,12-Mar-18,260060,Five Oaks Care Limited,21333.27,Revenue,
DIRECT SOCIAL SERVICES,GF CHILDREN SERVICES,12-Mar-18,260060,Action for Children,2833,Revenue,
DIRECT SOCIAL SERVICES,GF CHILDREN SERVICES,12-Mar-18,260060,Barnardos Cymru,2780,Revenue,
DIRECT SOCIAL SERVICES,GF CHILDREN SERVICES,12-Mar-18,260060,Dudley Lodge,9831.43,Revenue,
DIRECT SOCIAL SERVICES,GF CHILDREN SERVICES,12-Mar-18,260060,Supported Fostering Services Charitable Trust,6545.43,Revenue,
DIRECT SOCIAL SERVICES,GF CHILDREN SERVICES,12-Mar-18,260060,The Adolescent & Childrens Trust,2743.16,Revenue,
DIRECT ENVIRONMENT AND HOUSING,GF ENV AND VISIBLE,12-Mar-18,300640,Rhondda Cynon Taff County Borough Council,7500,Revenue,
DIRECT ENVIRONMENT AND HOUSING,BUILDING SERVICES,12-Mar-18,303910,Hays Specialist Recruitment Limited,598.31,Revenue,
DIRECT ENVIRONMENT AND HOUSING,BUILDING SERVICES,12-Mar-18,303910,Hays Specialist Recruitment Limited,598.31,Revenue,
DIRECT ENVIRONMENT AND HOUSING,GF ENV AND VISIBLE,12-Mar-18,323686,Hays Specialist Recruitment Limited,622.56,Revenue,
DIRECT ENVIRONMENT AND HOUSING,GF ENV AND VISIBLE,12-Mar-18,325207,Consortio Security Limited,2759.04,Revenue,
DIRECT ENVIRONMENT AND HOUSING,GF ENV AND VISIBLE,12-Mar-18,325325,Ran Hire and Sales Limited,515.2,Revenue,
DIRECT ENVIRONMENT AND HOUSING,GF ENV AND VISIBLE,12-Mar-18,325325,Ran Hire and Sales Limited,782,Revenue,
DIRECT ENVIRONMENT AND HOUSING,GF ENV AND VISIBLE,12-Mar-18,325325,Wolseley UK Limited,1174.81,Revenue,
DIRECT ENVIRONMENT AND HOUSING,GF ENV AND VISIBLE,12-Mar-18,325338,Ran Hire and Sales Limited,1426,Revenue,
DIRECT ENVIRONMENT AND HOUSING,GF ENV AND VISIBLE,12-Mar-18,325501,Wolseley UK Limited,659.92,Revenue,
DIRECT ENVIRONMENT AND HOUSING,GF PARKS AND GROUNDS,12-Mar-18,333200,Dwr Cymru Cyf,553.85,Revenue,
DIRECT ENVIRONMENT AND HOUSING,VISIBLE SERVICES,12-Mar-18,365803,Puwertec Limited,500,Revenue,
DIRECT ENVIRONMENT AND HOUSING,GF LEGAL AND DEMOCRATIC,12-Mar-18,400063,Sky UK Limited,2314,Revenue,
DIRECT ENVIRONMENT AND HOUSING,HOUSING,12-Mar-18,407131,Compass Residents Association,1400,Revenue,
DIRECT ENVIRONMENT AND HOUSING,HOUSING,12-Mar-18,407131,Major Residents Group,1700,Revenue,
DIRECT ENVIRONMENT AND HOUSING,HOUSING,12-Mar-18,407132,Colcot Residents Association,1400,Revenue,
DIRECT ENVIRONMENT AND HOUSING,HOUSING,12-Mar-18,407142,Star Group,1700,Revenue,
DIRECT ENVIRONMENT AND HOUSING,HOUSING,12-Mar-18,407144,Dinas Powys Residents Group,900,Revenue,
DIRECT ENVIRONMENT AND HOUSING,HOUSING,12-Mar-18,407145,Longmeadow Residents Group,1100,Revenue,
DIRECT CAPITAL VISIBLE AND HOUSING SERVICES,AR CAPITAL ENGINEER,12-Mar-18,831216,Alpine Land Surveyors Limited,600,Capital,
DIRECT CAPITAL DEVELOPMENT,CAPITAL PLANNING,12-Mar-18,837155,Tracsis Traffic Data Limited,5395,Capital,
DIRECT LEARNING AND SKILLS,STRATEGY COMMUNITY LEARNING & RESOURCES,13-Mar-18,100138,Korn Ferry Hay Group Limited,550,Revenue,
DIRECT LEARNING AND SKILLS,STRATEGY COMMUNITY LEARNING & RESOURCES,13-Mar-18,100650,Debbie Mills t/a Abracadabra Playgroup,2262.5,Revenue,
DIRECT LEARNING AND SKILLS,STRATEGY COMMUNITY LEARNING & RESOURCES,13-Mar-18,100650,Cylch Meithrin y Bont-faen,4666,Revenue,
DIRECT LEARNING AND SKILLS,STRATEGY COMMUNITY LEARNING & RESOURCES,13-Mar-18,100650,St Donats Nursery,9125,Revenue,
DIRECT LEARNING AND SKILLS,STRATEGY COMMUNITY LEARNING & RESOURCES,13-Mar-18,100650,Swallow Playgroup,11016,Revenue,
DIRECT LEARNING AND SKILLS,STRATEGY COMMUNITY LEARNING & RESOURCES,13-Mar-18,100650,Wick & District Playgroup,2200,Revenue,
DIRECT LEARNING AND SKILLS,SCHOOLS DELEGATED,13-Mar-18,101063,Academics Limited,559.68,Revenue,
DIRECT LEARNING AND SKILLS,SCHOOLS DELEGATED,13-Mar-18,101065,Corona Energy Retail 4 Limited,575.43,Revenue,
DIRECT LEARNING AND SKILLS,SCHOOLS DELEGATED,13-Mar-18,101065,EDF Energy Plc,-1170.82,Revenue,
DIRECT LEARNING AND SKILLS,SCHOOLS DELEGATED,13-Mar-18,101065,EDF Energy Plc,1994.85,Revenue,
DIRECT LEARNING AND SKILLS,SCHOOLS DELEGATED,13-Mar-18,101171,Business Gas Limited / Electricity,510.39,Revenue,
DIRECT LEARNING AND SKILLS,SCHOOLS DELEGATED,13-Mar-18,101171,NSM Training & Consultancy Limited,750,Revenue,
DIRECT LEARNING AND SKILLS,SCHOOLS DELEGATED,13-Mar-18,101171,Tim Boon t/a Boon for Schools,3334.1,Revenue,
DIRECT LEARNING AND SKILLS,SCHOOLS DELEGATED,13-Mar-18,101233,CharlesJames Limited,3750,Revenue,
DIRECT LEARNING AND SKILLS,SCHOOLS DELEGATED,13-Mar-18,102593,Kingkraft Limited,3575,Revenue,
DIRECT LEARNING AND SKILLS,ACHIEVEMENT FOR ALL,13-Mar-18,102636,Empowering Learning Limited,568,Revenue,
DIRECT LEARNING AND SKILLS,ACHIEVEMENT FOR ALL,13-Mar-18,102636,Merricks Private Transport Contractors Limited,565,Revenue,
DIRECT LEARNING AND SKILLS,ACHIEVEMENT FOR ALL,13-Mar-18,102801,St Cyres Comprehensive School,2196,Revenue,
DIRECT LEARNING AND SKILLS,SCHOOLS NON DELEGATED,13-Mar-18,103213,New Directions (Education) Limited,645,Revenue,
DIRECT LEARNING AND SKILLS,SCHOOLS NON DELEGATED,13-Mar-18,103593,Reed Specialist Recruitment Limited,560,Revenue,
DIRECT LEARNING AND SKILLS,ACHIEVEMENT FOR ALL,13-Mar-18,130230,Cwmni Urdd Gobaith Cymru,11726,Revenue,
DIRECT LEARNING AND SKILLS,ACHIEVEMENT FOR ALL,13-Mar-18,130242,Empire Fighting Chance,875,Revenue,
DIRECT LEARNING AND SKILLS,ACHIEVEMENT FOR ALL,13-Mar-18,130242,Colcot Sports Amateur Boxing Club,700,Revenue,
DIRECT LEARNING AND SKILLS,ACHIEVEMENT FOR ALL,13-Mar-18,130266,Synapsia Limited T/A Positively Mad Limited,1185,Revenue,
DIRECT ENVIRONMENT AND HOUSING,REGENERATION & PLANNING,13-Mar-18,130512,Cardiff Community Housing Association Limited,1889.53,Revenue,
DIRECT ENVIRONMENT AND HOUSING,REGENERATION & PLANNING,13-Mar-18,130512,Upbeat Music and Arts Service Limited,1800,Revenue,
DIRECT LEARNING AND SKILLS,CATERING,13-Mar-18,150401,Brake Bros Limited,6862.91,Revenue,
DIRECT LEARNING AND SKILLS,CATERING,13-Mar-18,150401,Castell Howell Foods Limited,10200.47,Revenue,
DIRECT LEARNING AND SKILLS,CATERING,13-Mar-18,150401,Russel Bishop t/a WR Bishop & Co,3393.68,Revenue,
DIRECT LEARNING AND SKILLS,CATERING,13-Mar-18,150671,Brake Bros Limited,2289.1,Revenue,
DIRECT LEARNING AND SKILLS,CATERING,13-Mar-18,150671,Castell Howell Foods Limited,2500.35,Revenue,
DIRECT LEARNING AND SKILLS,CATERING,13-Mar-18,150671,Chapple & Jenkins Limited,1923.57,Revenue,
DIRECT LEARNING AND SKILLS,CATERING,13-Mar-18,150671,Peter's Food Service Limited,614.48,Revenue,
DIRECT LEARNING AND SKILLS,CATERING,13-Mar-18,150671,The Real Wrap Co. Limited,3805.17,Revenue,
DIRECT LEARNING AND SKILLS,CATERING,13-Mar-18,150671,Russel Bishop t/a WR Bishop & Co,635.82,Revenue,
DIRECT LEARNING AND SKILLS,GF CATERING,13-Mar-18,154401,ABM Catering for Leisure Limited,1356.97,Revenue,
DIRECT LEARNING AND SKILLS,GF CATERING,13-Mar-18,157800,Castell Howell Foods Limited,1263.98,Revenue,
DIRECT SOCIAL SERVICES,GF CHILDREN SERVICES,13-Mar-18,201711,Corona Energy Retail 4 Limited,537.28,Revenue,
DIRECT SOCIAL SERVICES,GF BUSINESS MANAGEMENT & INOVATION,13-Mar-18,202491,Oxford Brookes University,4000,Revenue,
DIRECT SOCIAL SERVICES,GF ADULT SERVICES,13-Mar-18,212781,Castell Howell Foods Limited,538.73,Revenue,
DIRECT SOCIAL SERVICES,GF ADULT SERVICES,13-Mar-18,212791,Castell Howell Foods Limited,628.43,Revenue,
DIRECT SOCIAL SERVICES,GF ADULT SERVICES,13-Mar-18,213911,Webroster Limited,564,Revenue,
DIRECT SOCIAL SERVICES,GF BUSINESS MANAGEMENT & INOVATION,13-Mar-18,215031,Train On The Tracks Limited,500,Revenue,
DIRECT SOCIAL SERVICES,GF BUSINESS MANAGEMENT & INOVATION,13-Mar-18,215031,Oxford Brookes University,4000,Revenue,
DIRECT SOCIAL SERVICES,GF ADULT SERVICES,13-Mar-18,215486,Bellavista Nursing Homes (Wales) Limited t/a Bellavista Care Home,898.02,Revenue,
DIRECT SOCIAL SERVICES,GF ADULT SERVICES,13-Mar-18,215486,Springbank Care Home Limited T/A Springbank Nursing Home,983.55,Revenue,
DIRECT SOCIAL SERVICES,GF ADULT SERVICES,13-Mar-18,215489,Cardiff Homecare Limited,708.18,Revenue,
DIRECT SOCIAL SERVICES,GF ADULT SERVICES,13-Mar-18,215489,Cardiff Homecare Limited,708.18,Revenue,
DIRECT SOCIAL SERVICES,GF ADULT SERVICES,13-Mar-18,215489,Cardiff Homecare Limited,708.18,Revenue,
DIRECT SOCIAL SERVICES,GF ADULT SERVICES,13-Mar-18,215489,Pauline Lawrence,513.57,Revenue,
DIRECT SOCIAL SERVICES,GF ADULT SERVICES,13-Mar-18,215489,Pauline Lawrence,3081.42,Revenue,
DIRECT SOCIAL SERVICES,GF ADULT SERVICES,13-Mar-18,215489,Baltimore Care Limited,635,Revenue,
DIRECT SOCIAL SERVICES,GF ADULT SERVICES,13-Mar-18,215489,Baltimore Care Limited,503.15,Revenue,
DIRECT SOCIAL SERVICES,GF ADULT SERVICES,13-Mar-18,215489,Baltimore Care Limited,503.15,Revenue,
DIRECT SOCIAL SERVICES,GF ADULT SERVICES,13-Mar-18,215489,Baltimore Care Limited,513.15,Revenue,
DIRECT SOCIAL SERVICES,GF ADULT SERVICES,13-Mar-18,215489,Bellavista Nursing Homes (Wales) Limited t/a Bellavista Care Home,2077.02,Revenue,
DIRECT SOCIAL SERVICES,GF ADULT SERVICES,13-Mar-18,215489,Bellavista Nursing Homes (Wales) Limited t/a Bellavista Care Home,574,Revenue,
DIRECT SOCIAL SERVICES,GF ADULT SERVICES,13-Mar-18,215489,Bellavista Nursing Homes (Wales) Limited t/a Bellavista Care Home,685.51,Revenue,
DIRECT SOCIAL SERVICES,GF ADULT SERVICES,13-Mar-18,215489,Broadway Care Centre Limited T/A Hazelhurst Nursing Home,503.15,Revenue,
DIRECT SOCIAL SERVICES,GF ADULT SERVICES,13-Mar-18,215489,Broadway Care Centre Limited T/A Hazelhurst Nursing Home,574,Revenue,
DIRECT SOCIAL SERVICES,GF ADULT SERVICES,13-Mar-18,215489,Duffryn Ffrwd Manor Limited,552.14,Revenue,
DIRECT SOCIAL SERVICES,GF ADULT SERVICES,13-Mar-18,215489,E & E Homes Limited T/A Cliffhaven Residential Home,635,Revenue,
DIRECT SOCIAL SERVICES,GF ADULT SERVICES,13-Mar-18,215489,Forge Care Homes Limited t/a The Forge Care Centre,925,Revenue,
DIRECT SOCIAL SERVICES,GF ADULT SERVICES,13-Mar-18,215489,Forge Care Homes Limited t/a The Forge Care Centre,676.33,Revenue,
DIRECT SOCIAL SERVICES,GF ADULT SERVICES,13-Mar-18,215489,Hafod Housing Association Limited T/A Brocastle Manor (Care Home),3210.97,Revenue,
DIRECT SOCIAL SERVICES,GF ADULT SERVICES,13-Mar-18,215489,Harrison Care Enterprises Barry Limited t/a Island View,503.15,Revenue,
DIRECT SOCIAL SERVICES,GF ADULT SERVICES,13-Mar-18,215489,Hebron Hall Limited,574,Revenue,
DIRECT SOCIAL SERVICES,GF ADULT SERVICES,13-Mar-18,215489,June Zehetmayr t/a Tower Hill Residential Home,538.95,Revenue,
DIRECT SOCIAL SERVICES,GF ADULT SERVICES,13-Mar-18,215489,June Zehetmayr t/a Tower Hill Residential Home,503.15,Revenue,
DIRECT SOCIAL SERVICES,GF ADULT SERVICES,13-Mar-18,215489,Lakeside Homes Limited T/A Lakeside House,551.98,Revenue,
DIRECT SOCIAL SERVICES,GF ADULT SERVICES,13-Mar-18,215489,Llangoedmor Properties Limited T/A Parkside Residential Home,506.15,Revenue,
DIRECT SOCIAL SERVICES,GF ADULT SERVICES,13-Mar-18,215489,Llangoedmor Properties Limited T/A Parkside Residential Home,528.94,Revenue,
DIRECT SOCIAL SERVICES,GF ADULT SERVICES,13-Mar-18,215489,Llangoedmor Properties Limited T/A Parkside Residential Home,502.55,Revenue,
DIRECT SOCIAL SERVICES,GF ADULT SERVICES,13-Mar-18,215489,Llangoedmor Properties Limited T/A Parkside Residential Home,503.15,Revenue,
DIRECT SOCIAL SERVICES,GF ADULT SERVICES,13-Mar-18,215489,MHA Care Group t/a Morel Court,518.24,Revenue,
DIRECT SOCIAL SERVICES,GF ADULT SERVICES,13-Mar-18,215489,MHA Care Group t/a Ty Gwyn Private Nursing Home,557.25,Revenue,
DIRECT SOCIAL SERVICES,GF ADULT SERVICES,13-Mar-18,215489,Middlepatch Limited T/A College Fields Nursing Home,579.07,Revenue,
DIRECT SOCIAL SERVICES,GF ADULT SERVICES,13-Mar-18,215489,Middlepatch Limited T/A College Fields Nursing Home,606.25,Revenue,
DIRECT SOCIAL SERVICES,GF ADULT SERVICES,13-Mar-18,215489,Middlepatch Limited T/A College Fields Nursing Home,585.62,Revenue,
DIRECT SOCIAL SERVICES,GF ADULT SERVICES,13-Mar-18,215489,Middlepatch Limited T/A College Fields Nursing Home,589.85,Revenue,
DIRECT SOCIAL SERVICES,GF ADULT SERVICES,13-Mar-18,215489,Middlepatch Limited T/A College Fields Nursing Home,532.31,Revenue,
DIRECT SOCIAL SERVICES,GF ADULT SERVICES,13-Mar-18,215489,Middlepatch Limited T/A College Fields Nursing Home,543.65,Revenue,
DIRECT SOCIAL SERVICES,GF ADULT SERVICES,13-Mar-18,215489,Middlepatch Limited T/A College Fields Nursing Home,589.85,Revenue,
DIRECT SOCIAL SERVICES,GF ADULT SERVICES,13-Mar-18,215489,Middlepatch Limited T/A College Fields Nursing Home,625.33,Revenue,
DIRECT SOCIAL SERVICES,GF ADULT SERVICES,13-Mar-18,215489,Middlepatch Limited T/A College Fields Nursing Home,555.15,Revenue,
DIRECT SOCIAL SERVICES,GF ADULT SERVICES,13-Mar-18,215489,Middlepatch Limited T/A College Fields Nursing Home,538.81,Revenue,
DIRECT SOCIAL SERVICES,GF ADULT SERVICES,13-Mar-18,215489,Middlepatch Limited T/A College Fields Nursing Home,721.7,Revenue,
DIRECT SOCIAL SERVICES,GF ADULT SERVICES,13-Mar-18,215489,Middlepatch Limited T/A College Fields Nursing Home,589.85,Revenue,
DIRECT SOCIAL SERVICES,GF ADULT SERVICES,13-Mar-18,215489,Middlepatch Limited T/A College Fields Nursing Home,589.85,Revenue,
DIRECT SOCIAL SERVICES,GF ADULT SERVICES,13-Mar-18,215489,Middlepatch Limited T/A College Fields Nursing Home,589.85,Revenue,
DIRECT SOCIAL SERVICES,GF ADULT SERVICES,13-Mar-18,215489,Northcote Developments Limited,509.51,Revenue,
DIRECT SOCIAL SERVICES,GF ADULT SERVICES,13-Mar-18,215489,Northcote Developments Limited,500.49,Revenue,
DIRECT SOCIAL SERVICES,GF ADULT SERVICES,13-Mar-18,215489,Northcote Developments Limited,508.15,Revenue,
DIRECT SOCIAL SERVICES,GF ADULT SERVICES,13-Mar-18,215489,Northcote Developments Limited,534.15,Revenue,
DIRECT SOCIAL SERVICES,GF ADULT SERVICES,13-Mar-18,215489,Northcote Developments Limited,503.14,Revenue,
DIRECT SOCIAL SERVICES,GF ADULT SERVICES,13-Mar-18,215489,Oakville Care Limited t/a Romilly Nursing Home,900,Revenue,
DIRECT SOCIAL SERVICES,GF ADULT SERVICES,13-Mar-18,215489,Springbank Care Home Limited T/A Springbank Nursing Home,3581.42,Revenue,
DIRECT SOCIAL SERVICES,GF ADULT SERVICES,13-Mar-18,215489,Springbank Care Home Limited T/A Springbank Nursing Home,545,Revenue,
DIRECT SOCIAL SERVICES,GF ADULT SERVICES,13-Mar-18,215489,Springbank Care Home Limited T/A Springbank Nursing Home,576.95,Revenue,
DIRECT SOCIAL SERVICES,GF ADULT SERVICES,13-Mar-18,215489,Springbank Care Home Limited T/A Springbank Nursing Home,614,Revenue,
DIRECT SOCIAL SERVICES,GF ADULT SERVICES,13-Mar-18,215489,Springbank Care Home Limited T/A Springbank Nursing Home,543.15,Revenue,
DIRECT SOCIAL SERVICES,GF ADULT SERVICES,13-Mar-18,215489,Springbank Care Home Limited T/A Springbank Nursing Home,512.1,Revenue,
DIRECT SOCIAL SERVICES,GF ADULT SERVICES,13-Mar-18,215489,The Manor House St Hilary Limited T/A Milsom House,642.99,Revenue,
DIRECT SOCIAL SERVICES,GF ADULT SERVICES,13-Mar-18,215489,The Manor House St Hilary Limited T/A Milsom House,523.55,Revenue,
DIRECT SOCIAL SERVICES,GF ADULT SERVICES,13-Mar-18,215489,Waverley Care Centre Limited,505.25,Revenue,
DIRECT SOCIAL SERVICES,GF ADULT SERVICES,13-Mar-18,215489,Waverley Care Centre Limited,590.32,Revenue,
DIRECT SOCIAL SERVICES,GF ADULT SERVICES,13-Mar-18,215489,Waverley Care Centre Limited,558.56,Revenue,
DIRECT SOCIAL SERVICES,GF ADULT SERVICES,13-Mar-18,215489,Waverley Care Centre Limited,541.69,Revenue,
DIRECT SOCIAL SERVICES,GF ADULT SERVICES,13-Mar-18,215489,Waverley Care Centre Limited,599.15,Revenue,
DIRECT SOCIAL SERVICES,GF ADULT SERVICES,13-Mar-18,216179,Accomplish Group Limited t/a Cedar House,1381.33,Revenue,
DIRECT SOCIAL SERVICES,GF ADULT SERVICES,13-Mar-18,216179,Amethyst Healthcare Limited t/a Hillstone House,1770.83,Revenue,
DIRECT SOCIAL SERVICES,GF ADULT SERVICES,13-Mar-18,216179,Bellavista Nursing Homes (Wales) Limited t/a Bellavista Care Home,536.95,Revenue,
DIRECT SOCIAL SERVICES,GF ADULT SERVICES,13-Mar-18,216179,Care 4 U (Neath) Limited,1754.28,Revenue,
DIRECT SOCIAL SERVICES,GF ADULT SERVICES,13-Mar-18,216179,Crusader Medical Care Limited T/A St Saviours Nursing Home,551.95,Revenue,
DIRECT SOCIAL SERVICES,GF ADULT SERVICES,13-Mar-18,216179,Leonard Cheshire Disability,970.98,Revenue,
DIRECT SOCIAL SERVICES,GF ADULT SERVICES,13-Mar-18,216179,Leonard Cheshire Disability,5031.28,Revenue,
DIRECT SOCIAL SERVICES,GF ADULT SERVICES,13-Mar-18,216179,Middlepatch Limited T/A College Fields Nursing Home,721.7,Revenue,
DIRECT SOCIAL SERVICES,GF ADULT SERVICES,13-Mar-18,216179,Pontcanna Care Limited T/A Ty Llandaff Care Home,795.32,Revenue,
DIRECT SOCIAL SERVICES,GF ADULT SERVICES,13-Mar-18,216179,Valebrook Care Homes Limited,1851.95,Revenue,
DIRECT SOCIAL SERVICES,GF ADULT SERVICES,13-Mar-18,216179,Voyage 1 Limited t/a Brook Lodge,2528.8,Revenue,
DIRECT SOCIAL SERVICES,GF ADULT SERVICES,13-Mar-18,216179,Voyage 1 Limited t/a Falcons Rest & Poachers Cottage,1729.64,Revenue,
DIRECT SOCIAL SERVICES,GF ADULT SERVICES,13-Mar-18,217541,Steve Floyd Limited,1056,Revenue,
DIRECT SOCIAL SERVICES,GF ADULT SERVICES,13-Mar-18,217541,Steve Floyd Limited,1056,Revenue,
DIRECT SOCIAL SERVICES,GF ADULT SERVICES,13-Mar-18,217909,Consensus Support Services Limited t/a Ty Machen,2285.13,Revenue,
DIRECT SOCIAL SERVICES,GF ADULT SERVICES,13-Mar-18,217909,Gofal Cymru Care Limited,8387.44,Revenue,
DIRECT SOCIAL SERVICES,GF ADULT SERVICES,13-Mar-18,217909,Gofal Cymru Care Limited,8387.44,Revenue,
DIRECT SOCIAL SERVICES,GF ADULT SERVICES,13-Mar-18,217909,Gofal Cymru Care Limited,8387.44,Revenue,
DIRECT SOCIAL SERVICES,GF ADULT SERVICES,13-Mar-18,217909,National Star Foundation T/A National Star College,20728.6,Revenue,
DIRECT SOCIAL SERVICES,GF ADULT SERVICES,13-Mar-18,217909,Bridgend College,4134.11,Revenue,
DIRECT SOCIAL SERVICES,GF ADULT SERVICES,13-Mar-18,217909,Bridgend College,6005.87,Revenue,
DIRECT SOCIAL SERVICES,GF ADULT SERVICES,13-Mar-18,217909,Accomplish Group Limited,1822.08,Revenue,
DIRECT SOCIAL SERVICES,GF ADULT SERVICES,13-Mar-18,217909,Accomplish Group Limited,2147.07,Revenue,
DIRECT SOCIAL SERVICES,GF ADULT SERVICES,13-Mar-18,217909,Accomplish Group Limited t/a Cedar House,1585.35,Revenue,
DIRECT SOCIAL SERVICES,GF ADULT SERVICES,13-Mar-18,217909,Amethyst Healthcare Limited t/a Hillstone House,507.8,Revenue,
DIRECT SOCIAL SERVICES,GF ADULT SERVICES,13-Mar-18,217909,Amethyst Healthcare Limited t/a Hillstone House,1681.46,Revenue,
DIRECT SOCIAL SERVICES,GF ADULT SERVICES,13-Mar-18,217909,Amethyst Healthcare Limited t/a Hillstone House,1462.73,Revenue,
DIRECT SOCIAL SERVICES,GF ADULT SERVICES,13-Mar-18,217909,Beechwood Court Limited T/A Beechwood College,1945.6,Revenue,
DIRECT SOCIAL SERVICES,GF ADULT SERVICES,13-Mar-18,217909,Beechwood Court Limited T/A Beechwood College,4085.75,Revenue,
DIRECT SOCIAL SERVICES,GF ADULT SERVICES,13-Mar-18,217909,Glasallt Fawr Camphill Centre,999.82,Revenue,
DIRECT SOCIAL SERVICES,GF ADULT SERVICES,13-Mar-18,217909,Glasallt Fawr Camphill Centre,1560.05,Revenue,
DIRECT SOCIAL SERVICES,GF ADULT SERVICES,13-Mar-18,217909,Heatherleigh Care Limited t/a 106 Splott Road,1562.71,Revenue,
DIRECT SOCIAL SERVICES,GF ADULT SERVICES,13-Mar-18,217909,Heatherleigh Care Limited t/a 106 Splott Road,1223.74,Revenue,
DIRECT SOCIAL SERVICES,GF ADULT SERVICES,13-Mar-18,217909,Llysywaun Limited t/a Bayview Lodge Nursing Home,1579.54,Revenue,
DIRECT SOCIAL SERVICES,GF ADULT SERVICES,13-Mar-18,217909,Ocean Community Services Limited t/a Westminster Court Care Home,1116.87,Revenue,
DIRECT SOCIAL SERVICES,GF ADULT SERVICES,13-Mar-18,217909,The Cedars Care Services Limited T/A Ashgrove Care Home,2112.95,Revenue,
DIRECT SOCIAL SERVICES,GF ADULT SERVICES,13-Mar-18,217909,The Cedars Care Services Limited T/A Ashgrove Care Home,992.95,Revenue,
DIRECT SOCIAL SERVICES,GF ADULT SERVICES,13-Mar-18,217909,The Cedars Care Services Limited T/A Oaklands,1030.95,Revenue,
DIRECT SOCIAL SERVICES,GF ADULT SERVICES,13-Mar-18,217909,The Cedars Care Services Limited t/a Sycamore House,2026.95,Revenue,
DIRECT SOCIAL SERVICES,GF ADULT SERVICES,13-Mar-18,217909,The Cedars Care Services Limited t/a Sycamore House,1809.95,Revenue,
DIRECT SOCIAL SERVICES,GF ADULT SERVICES,13-Mar-18,217909,The Cedars Care Services Limited t/a The Cedars,940.28,Revenue,
DIRECT SOCIAL SERVICES,GF ADULT SERVICES,13-Mar-18,217909,The Cedars Care Services Limited t/a The Cedars,1576.66,Revenue,
DIRECT SOCIAL SERVICES,GF ADULT SERVICES,13-Mar-18,217909,The Cedars Care Services Limited t/a The Cedars,1365.65,Revenue,
DIRECT SOCIAL SERVICES,GF ADULT SERVICES,13-Mar-18,217909,Vale Phoenix Limited,1080.33,Revenue,
DIRECT SOCIAL SERVICES,GF ADULT SERVICES,13-Mar-18,217909,Vale Phoenix Limited,1117.54,Revenue,
DIRECT SOCIAL SERVICES,GF ADULT SERVICES,13-Mar-18,217909,Valebrook Care Homes Limited,1657.04,Revenue,
DIRECT SOCIAL SERVICES,GF ADULT SERVICES,13-Mar-18,217909,Valebrook Care Homes Limited,2000.1,Revenue,
DIRECT SOCIAL SERVICES,GF ADULT SERVICES,13-Mar-18,217909,Valebrook Care Homes Limited,1421.34,Revenue,
DIRECT SOCIAL SERVICES,GF ADULT SERVICES,13-Mar-18,217909,Valebrook Care Homes Limited,1765.95,Revenue,
DIRECT SOCIAL SERVICES,GF ADULT SERVICES,13-Mar-18,217909,Valebrook Care Homes Limited,1861.95,Revenue,
DIRECT SOCIAL SERVICES,GF ADULT SERVICES,13-Mar-18,217909,Valebrook Care Homes Limited,1390.84,Revenue,
DIRECT SOCIAL SERVICES,GF ADULT SERVICES,13-Mar-18,217909,Edith Adey-Jones T/A Galltfaenan Hall Group,2554.8,Revenue,
DIRECT SOCIAL SERVICES,GF ADULT SERVICES,13-Mar-18,217909,Edith Adey-Jones T/A Galltfaenan Hall Group,2828.53,Revenue,
DIRECT SOCIAL SERVICES,GF ADULT SERVICES,13-Mar-18,217909,Walter Standen T/A Standens Contract Hire,926,Revenue,
DIRECT SOCIAL SERVICES,GF ADULT SERVICES,13-Mar-18,217909,Walter Standen T/A Standens Contract Hire,840,Revenue,
DIRECT SOCIAL SERVICES,GF ADULT SERVICES,13-Mar-18,218321,Adriana Limited T/A The Priory Nursing Home,536,Revenue,
DIRECT SOCIAL SERVICES,GF ADULT SERVICES,13-Mar-18,218321,Broadway Care Centre Limited T/A Hazelhurst Nursing Home,708.67,Revenue,
DIRECT SOCIAL SERVICES,GF ADULT SERVICES,13-Mar-18,218321,Hafod Care Association Limited,619.96,Revenue,
DIRECT SOCIAL SERVICES,GF ADULT SERVICES,13-Mar-18,218321,Harrison Care Enterprises Barry Limited t/a Island View,508.27,Revenue,
DIRECT SOCIAL SERVICES,GF ADULT SERVICES,13-Mar-18,218321,Isman & Kinze Nessa T/A Haven House,503.15,Revenue,
DIRECT SOCIAL SERVICES,GF ADULT SERVICES,13-Mar-18,218321,J and P Residential Homes Limited T/A Monkstone House,578,Revenue,
DIRECT SOCIAL SERVICES,GF ADULT SERVICES,13-Mar-18,218321,Sanda Mitchel & Ptn t/a Canola House Residential Home,578,Revenue,
DIRECT SOCIAL SERVICES,GF ADULT SERVICES,13-Mar-18,218321,Waverley Care Centre Limited,909.98,Revenue,
DIRECT SOCIAL SERVICES,GF ADULT SERVICES,13-Mar-18,218416,Middlepatch Limited T/A College Fields Nursing Home,2458.86,Revenue,
DIRECT SOCIAL SERVICES,GF ADULT SERVICES,13-Mar-18,218419,Anwen Care Limited t/a Anwen Care Home,664,Revenue,
DIRECT SOCIAL SERVICES,GF ADULT SERVICES,13-Mar-18,218419,Baltimore Care Limited,500.06,Revenue,
DIRECT SOCIAL SERVICES,GF ADULT SERVICES,13-Mar-18,218419,Baltimore Care Limited,514.15,Revenue,
DIRECT SOCIAL SERVICES,GF ADULT SERVICES,13-Mar-18,218419,Barchester Healthcare Homes Limited T/A Bushey House Beaumont,1400,Revenue,
DIRECT SOCIAL SERVICES,GF ADULT SERVICES,13-Mar-18,218419,Bellavista Care (Cardiff) Limited T/A Bellavista Nursing Home Cardiff,697.45,Revenue,
DIRECT SOCIAL SERVICES,GF ADULT SERVICES,13-Mar-18,218419,Bellavista Care (Cardiff) Limited T/A Bellavista Nursing Home Cardiff,670.14,Revenue,
DIRECT SOCIAL SERVICES,GF ADULT SERVICES,13-Mar-18,218419,Broadway Care Centre Limited T/A Hazelhurst Nursing Home,503.15,Revenue,
DIRECT SOCIAL SERVICES,GF ADULT SERVICES,13-Mar-18,218419,David Austin t/a Silverdale,669.15,Revenue,
DIRECT SOCIAL SERVICES,GF ADULT SERVICES,13-Mar-18,218419,E & E Homes Limited T/A Cliffhaven Residential Home,503.15,Revenue,
DIRECT SOCIAL SERVICES,GF ADULT SERVICES,13-Mar-18,218419,Forge Care Homes Limited t/a The Forge Care Centre,703.44,Revenue,
DIRECT SOCIAL SERVICES,GF ADULT SERVICES,13-Mar-18,218419,Forge Care Homes Limited t/a The Forge Care Centre,644.7,Revenue,
DIRECT SOCIAL SERVICES,GF ADULT SERVICES,13-Mar-18,218419,Hallmark Care Homes (Bute Town) Limited t/a Shire Hall Care Home,1218.15,Revenue,
DIRECT SOCIAL SERVICES,GF ADULT SERVICES,13-Mar-18,218419,Harrison Care Enterprises Barry Limited t/a Island View,503.15,Revenue,
DIRECT SOCIAL SERVICES,GF ADULT SERVICES,13-Mar-18,218419,Harrison Care Enterprises Barry Limited t/a Island View,635,Revenue,
DIRECT SOCIAL SERVICES,GF ADULT SERVICES,13-Mar-18,218419,Harrison Care Enterprises Barry Limited t/a Island View,502.53,Revenue,
DIRECT SOCIAL SERVICES,GF ADULT SERVICES,13-Mar-18,218419,Harrison Care Enterprises Barry Limited t/a Island View,530.99,Revenue,
DIRECT SOCIAL SERVICES,GF ADULT SERVICES,13-Mar-18,218419,Harrison Care Enterprises Barry Limited t/a Island View,503.15,Revenue,
DIRECT SOCIAL SERVICES,GF ADULT SERVICES,13-Mar-18,218419,Harrison Care Enterprises Barry Limited t/a Island View,503.15,Revenue,
DIRECT SOCIAL SERVICES,GF ADULT SERVICES,13-Mar-18,218419,Harrison Care Enterprises Barry Limited t/a Island View,503.15,Revenue,
DIRECT SOCIAL SERVICES,GF ADULT SERVICES,13-Mar-18,218419,Harrison Care Enterprises Barry Limited t/a Island View,503.15,Revenue,
DIRECT SOCIAL SERVICES,GF ADULT SERVICES,13-Mar-18,218419,June Zehetmayr t/a Tower Hill Residential Home,635,Revenue,
DIRECT SOCIAL SERVICES,GF ADULT SERVICES,13-Mar-18,218419,June Zehetmayr t/a Tower Hill Residential Home,503.15,Revenue,
DIRECT SOCIAL SERVICES,GF ADULT SERVICES,13-Mar-18,218419,Llangoedmor Properties Limited T/A Parkside Residential Home,562.14,Revenue,
DIRECT SOCIAL SERVICES,GF ADULT SERVICES,13-Mar-18,218419,Llangoedmor Properties Limited T/A Parkside Residential Home,635,Revenue,
DIRECT SOCIAL SERVICES,GF ADULT SERVICES,13-Mar-18,218419,Middlepatch Limited T/A College Fields Nursing Home,505,Revenue,
DIRECT SOCIAL SERVICES,GF ADULT SERVICES,13-Mar-18,218419,Middlepatch Limited T/A College Fields Nursing Home,8999.27,Revenue,
DIRECT SOCIAL SERVICES,GF ADULT SERVICES,13-Mar-18,218419,Shirwan Al-Mufti & Ptn t/a Pontcanna House,600,Revenue,
DIRECT SOCIAL SERVICES,GF ADULT SERVICES,13-Mar-18,218419,The Manor House St Hilary Limited T/A Milsom House,506.14,Revenue,
DIRECT SOCIAL SERVICES,GF ADULT SERVICES,13-Mar-18,218419,Waverley Care Centre Limited,631.25,Revenue,
DIRECT SOCIAL SERVICES,GF ADULT SERVICES,13-Mar-18,218419,Waverley Care Centre Limited,578.22,Revenue,
DIRECT SOCIAL SERVICES,GF ADULT SERVICES,13-Mar-18,218419,Waverley Care Centre Limited,514.4,Revenue,
DIRECT SOCIAL SERVICES,GF ADULT SERVICES,13-Mar-18,218419,Waverley Care Centre Limited,672.09,Revenue,
DIRECT SOCIAL SERVICES,GF BUSINESS MANAGEMENT & INOVATION,13-Mar-18,239771,Aspire Business Software Limited,4995,Revenue,
DIRECT SOCIAL SERVICES,GF CHILDREN SERVICES,13-Mar-18,260060,Pathway Care Limited T/A Nexus Fostering,-2051.43,Revenue,
DIRECT SOCIAL SERVICES,GF CHILDREN SERVICES,13-Mar-18,260140,Barnardo Services Limited,2950,Revenue,
DIRECT SOCIAL SERVICES,GF CHILDREN SERVICES,13-Mar-18,260150,The Fostering Network - Wales Office,600,Revenue,
DIRECT SOCIAL SERVICES,GF BUSINESS MANAGEMENT & INOVATION,13-Mar-18,260310,Action for Children,3656.11,Revenue,
DIRECT ENVIRONMENT AND HOUSING,VEHICLES,13-Mar-18,319010,David Evans Agricultural Limited,1680.43,Revenue,
DIRECT ENVIRONMENT AND HOUSING,VEHICLES,13-Mar-18,319010,Lloyds & Company Letchworth Limited,539.28,Revenue,
DIRECT ENVIRONMENT AND HOUSING,VEHICLES,13-Mar-18,319010,M & M Commercials Limited,1750,Revenue,
DIRECT ENVIRONMENT AND HOUSING,VEHICLES,13-Mar-18,319010,Tema Engineering Limited,1835,Revenue,
DIRECT ENVIRONMENT AND HOUSING,VEHICLES,13-Mar-18,319010,UK Telematics Limited,1938,Revenue,
DIRECT ENVIRONMENT AND HOUSING,VEHICLES,13-Mar-18,319010,Ceri Williams t/a Mobile Tyre Services,2110.95,Revenue,
DIRECT ENVIRONMENT AND HOUSING,GF ENV AND VISIBLE,13-Mar-18,325207,Consortio Security Limited,2988.96,Revenue,
DIRECT ENVIRONMENT AND HOUSING,GF ENV AND VISIBLE,13-Mar-18,325325,Calibre Contracting Limited,1519.56,Revenue,
DIRECT ENVIRONMENT AND HOUSING,GF ENV AND VISIBLE,13-Mar-18,325325,Calibre Contracting Limited,1519.56,Revenue,
DIRECT ENVIRONMENT AND HOUSING,GF ENV AND VISIBLE,13-Mar-18,325325,G.P.H.I.T (Integrated Services) Limited,760,Revenue,
DIRECT ENVIRONMENT AND HOUSING,GF ENV AND VISIBLE,13-Mar-18,325325,Green Circle Sustainable Development Limited,925,Revenue,
DIRECT ENVIRONMENT AND HOUSING,GF ENV AND VISIBLE,13-Mar-18,325325,Green Circle Sustainable Development Limited,822.5,Revenue,
DIRECT ENVIRONMENT AND HOUSING,GF ENV AND VISIBLE,13-Mar-18,325325,Highway & Industrial Equipment Limited,1084.5,Revenue,
DIRECT ENVIRONMENT AND HOUSING,GF ENV AND VISIBLE,13-Mar-18,325325,Tarmac Trading Limited,531.44,Revenue,
DIRECT ENVIRONMENT AND HOUSING,GF ENV AND VISIBLE,13-Mar-18,325325,Tarmac Trading Limited,797.55,Revenue,
DIRECT ENVIRONMENT AND HOUSING,GF ENV AND VISIBLE,13-Mar-18,325325,Wolseley UK Limited,751.16,Revenue,
DIRECT ENVIRONMENT AND HOUSING,GF ENV AND VISIBLE,13-Mar-18,325325,Wolseley UK Limited,-1174.81,Revenue,
DIRECT ENVIRONMENT AND HOUSING,GF ENV AND VISIBLE,13-Mar-18,325338,Calibre Contracting Limited,1418.07,Revenue,
DIRECT ENVIRONMENT AND HOUSING,GF ENV AND VISIBLE,13-Mar-18,325338,Tarmac Trading Limited,532.52,Revenue,
DIRECT ENVIRONMENT AND HOUSING,GF ENV AND VISIBLE,13-Mar-18,325340,Calibre Contracting Limited,1423.08,Revenue,
DIRECT ENVIRONMENT AND HOUSING,GF ENV AND VISIBLE,13-Mar-18,325340,Green Circle Sustainable Development Limited,555,Revenue,
DIRECT ENVIRONMENT AND HOUSING,GF ENV AND VISIBLE,13-Mar-18,325340,Highway & Industrial Equipment Limited,1084.5,Revenue,
DIRECT ENVIRONMENT AND HOUSING,GF ENV AND VISIBLE,13-Mar-18,325501,Standard Signs & Traffic Systems Limited,1827.5,Revenue,
DIRECT ENVIRONMENT AND HOUSING,GF ENV AND VISIBLE,13-Mar-18,325810,Compass Minerals UK Limited,1226.02,Revenue,
DIRECT ENVIRONMENT AND HOUSING,GF ENV AND VISIBLE,13-Mar-18,325810,Compass Minerals UK Limited,12197.33,Revenue,
DIRECT ENVIRONMENT AND HOUSING,GF ENV AND VISIBLE,13-Mar-18,325810,Compass Minerals UK Limited,2450.19,Revenue,
DIRECT ENVIRONMENT AND HOUSING,GF ENV AND VISIBLE,13-Mar-18,325810,Compass Minerals UK Limited,3642,Revenue,
DIRECT ENVIRONMENT AND HOUSING,GF ENV AND VISIBLE,13-Mar-18,325810,Compass Minerals UK Limited,3703.94,Revenue,
DIRECT ENVIRONMENT AND HOUSING,GF PARKS AND GROUNDS,13-Mar-18,333200,Dwr Cymru Cyf,920.84,Revenue,
DIRECT ENVIRONMENT AND HOUSING,VISIBLE SERVICES,13-Mar-18,359324,Lilbits Limited,3000,Revenue,
DIRECT ENVIRONMENT AND HOUSING,REGENERATION & PLANNING,13-Mar-18,365792,Glasdon UK Limited,1900.52,Revenue,
DIRECT MANAGING DIRECTOR AND RESOURCES,GF RESOURCES,13-Mar-18,421230,MCI Diventi Limited,728,Revenue,
DIRECT MANAGING DIRECTOR AND RESOURCES,GF GENERAL EXPENDITURE POLICY,13-Mar-18,471900,Copthorne Tara Hotel,1041.67,Revenue,
DIRECT CAPITAL VISIBLE AND HOUSING SERVICES,AR CAPITAL GROUNDS MAINT,13-Mar-18,832285,Pinit Building & Civil Engineering Limited,5400,Capital,
DIRECT CAPITAL DEVELOPMENT,CAPITAL PRIV HSG,13-Mar-18,845003,GKR Maintenance & Building Co. Limited,9827.33,Capital,
DIRECT CAPITAL DEVELOPMENT,CAPITAL PRIV HSG,13-Mar-18,845003,GKR Maintenance & Building Co. Limited,2453.7,Capital,
DIRECT CAPITAL DEVELOPMENT,CAPITAL PRIV HSG,13-Mar-18,845003,Go Access Limited,3790,Capital,
DIRECT CAPITAL DEVELOPMENT,CAPITAL PRIV HSG,13-Mar-18,845003,Handicare Accessibility Limited,1780,Capital,
DIRECT CAPITAL DEVELOPMENT,CAPITAL PRIV HSG,13-Mar-18,845003,Handicare Accessibility Limited,4203,Capital,
DIRECT CAPITAL DEVELOPMENT,CAPITAL PRIV HSG,13-Mar-18,845003,R & M Williams Limited,8075.21,Capital,
DIRECT CAPITAL DEVELOPMENT,CAPITAL PRIV HSG,13-Mar-18,845003,R & M Williams Limited,1206.37,Capital,
DIRECT CAPITAL DEVELOPMENT,CAPITAL PRIV HSG,13-Mar-18,845003,Thyssen-Krupp Access Limited T/A Encasa,4646,Capital,
DIRECT CAPITAL POLICY,CAPITAL POLICY,13-Mar-18,852513,John Weaver (Contractors) Limited,6439.24,Capital,
DIRECT LEARNING AND SKILLS,STRATEGY COMMUNITY LEARNING & RESOURCES,14-Mar-18,100738,Elwyn J Kerslake t/a Woodland Electrical,2352,Revenue,
DIRECT LEARNING AND SKILLS,SCHOOLS DELEGATED,14-Mar-18,100802,Blue Sky Digital Solutions Limited,-528,Revenue,
DIRECT LEARNING AND SKILLS,SCHOOLS DELEGATED,14-Mar-18,101004,A & R Contract Cleaning Specialist Limited,1558.72,Revenue,
DIRECT LEARNING AND SKILLS,SCHOOLS DELEGATED,14-Mar-18,101005,Biffa Waste Services Limited,674.96,Revenue,
DIRECT LEARNING AND SKILLS,SCHOOLS DELEGATED,14-Mar-18,101005,Ricoh UK Limited,2103.58,Revenue,
DIRECT LEARNING AND SKILLS,SCHOOLS DELEGATED,14-Mar-18,101005,The Consortium for Purchasing and Distribution Limited,1268.28,Revenue,
DIRECT LEARNING AND SKILLS,SCHOOLS DELEGATED,14-Mar-18,101006,Capita Business Services Limited,620,Revenue,
DIRECT LEARNING AND SKILLS,SCHOOLS DELEGATED,14-Mar-18,101025,Inspire Community Science CIC,595,Revenue,
DIRECT LEARNING AND SKILLS,SCHOOLS DELEGATED,14-Mar-18,101025,Investec Asset Finance Plc,1061.27,Revenue,
DIRECT LEARNING AND SKILLS,SCHOOLS DELEGATED,14-Mar-18,101025,Investec Asset Finance Plc,1606.5,Revenue,
DIRECT LEARNING AND SKILLS,SCHOOLS DELEGATED,14-Mar-18,101047,RP Brown Limited t/a Cymraeg Cleaning,650,Revenue,
DIRECT LEARNING AND SKILLS,SCHOOLS DELEGATED,14-Mar-18,101134,A & R Contract Cleaning Specialist Limited,2002.34,Revenue,
DIRECT LEARNING AND SKILLS,SCHOOLS DELEGATED,14-Mar-18,101145,A & R Contract Cleaning Specialist Limited,951.47,Revenue,
DIRECT LEARNING AND SKILLS,SCHOOLS DELEGATED,14-Mar-18,101145,DB Decoration Limited,1660,Revenue,
DIRECT LEARNING AND SKILLS,SCHOOLS DELEGATED,14-Mar-18,101145,DB Decoration Limited,800,Revenue,
DIRECT LEARNING AND SKILLS,SCHOOLS DELEGATED,14-Mar-18,101145,Elliott Electrical Limited,1840,Revenue,
DIRECT LEARNING AND SKILLS,SCHOOLS DELEGATED,14-Mar-18,101145,TTS Group Limited,549.4,Revenue,
DIRECT LEARNING AND SKILLS,SCHOOLS DELEGATED,14-Mar-18,101145,Evan Rosser,1400,Revenue,
DIRECT LEARNING AND SKILLS,SCHOOLS DELEGATED,14-Mar-18,101145,Celtic Teachers Limited,625,Revenue,
DIRECT LEARNING AND SKILLS,SCHOOLS DELEGATED,14-Mar-18,101173,Dwr Cymru Cyf,1904.6,Revenue,
DIRECT LEARNING AND SKILLS,SCHOOLS DELEGATED,14-Mar-18,101173,Flogas Britain Limited,599.38,Revenue,
DIRECT LEARNING AND SKILLS,SCHOOLS DELEGATED,14-Mar-18,101173,PHS Group Plc,1440.32,Revenue,
DIRECT LEARNING AND SKILLS,SCHOOLS DELEGATED,14-Mar-18,101173,Pinnacle Office Equipment Limited,1623,Revenue,
DIRECT LEARNING AND SKILLS,SCHOOLS DELEGATED,14-Mar-18,101195,New Directions (Education) Limited,521.34,Revenue,
DIRECT LEARNING AND SKILLS,SCHOOLS DELEGATED,14-Mar-18,101221,A & R Contract Cleaning Specialist Limited,2034.2,Revenue,
DIRECT LEARNING AND SKILLS,SCHOOLS DELEGATED,14-Mar-18,101221,Business Gas Limited / Electricity,592.79,Revenue,
DIRECT LEARNING AND SKILLS,SCHOOLS DELEGATED,14-Mar-18,101221,Jeffrey Evans t/a Edenvale Garden Services,1000,Revenue,
DIRECT LEARNING AND SKILLS,SCHOOLS DELEGATED,14-Mar-18,101229,Glen Cleaning Company Limited,2330.59,Revenue,
DIRECT LEARNING AND SKILLS,SCHOOLS DELEGATED,14-Mar-18,102593,Pervasive Networks Limited,3472.59,Revenue,
DIRECT LEARNING AND SKILLS,SCHOOLS NON DELEGATED,14-Mar-18,103202,Valley Education Services Limited,610.38,Revenue,
DIRECT LEARNING AND SKILLS,SCHOOLS NON DELEGATED,14-Mar-18,103202,Valley Education Services Limited,610.38,Revenue,
DIRECT LEARNING AND SKILLS,SCHOOLS NON DELEGATED,14-Mar-18,103593,Reed Specialist Recruitment Limited,700,Revenue,
DIRECT LEARNING AND SKILLS,STRATEGY COMMUNITY LEARNING & RESOURCES,14-Mar-18,120080,MISL Limited,662.91,Revenue,
DIRECT LEARNING AND SKILLS,GF CATERING,14-Mar-18,154401,ABM Catering for Leisure Limited,1908.2,Revenue,
DIRECT SOCIAL SERVICES,GF CHILDREN SERVICES,14-Mar-18,209151,Cardiff & Vale University Local Health Board,54859.92,Revenue,
DIRECT SOCIAL SERVICES,GF ADULT SERVICES,14-Mar-18,215011,Safety Solutions Training Limited,700,Revenue,
DIRECT SOCIAL SERVICES,GF ADULT SERVICES,14-Mar-18,215489,1st Grade Care Limited,514.78,Revenue,
DIRECT SOCIAL SERVICES,GF ADULT SERVICES,14-Mar-18,215489,1st Grade Care Limited,547.38,Revenue,
DIRECT SOCIAL SERVICES,GF ADULT SERVICES,14-Mar-18,215489,1st Grade Care Limited,562.8,Revenue,
DIRECT SOCIAL SERVICES,GF ADULT SERVICES,14-Mar-18,215489,1st Grade Care Limited,532.1,Revenue,
DIRECT SOCIAL SERVICES,GF ADULT SERVICES,14-Mar-18,215489,Nestor Primecare Services Limited t/a Allied Healthcare,517.4,Revenue,
DIRECT SOCIAL SERVICES,GF ADULT SERVICES,14-Mar-18,215489,Nestor Primecare Services Limited t/a Allied Healthcare,564.61,Revenue,
DIRECT SOCIAL SERVICES,GF ADULT SERVICES,14-Mar-18,215489,Nestor Primecare Services Limited t/a Allied Healthcare,569.52,Revenue,
DIRECT SOCIAL SERVICES,GF ADULT SERVICES,14-Mar-18,215489,Nestor Primecare Services Limited t/a Allied Healthcare,569.52,Revenue,
DIRECT SOCIAL SERVICES,GF ADULT SERVICES,14-Mar-18,215489,Nestor Primecare Services Limited t/a Allied Healthcare,549.27,Revenue,
DIRECT SOCIAL SERVICES,GF ADULT SERVICES,14-Mar-18,215489,Nestor Primecare Services Limited t/a Allied Healthcare,555.72,Revenue,
DIRECT SOCIAL SERVICES,GF ADULT SERVICES,14-Mar-18,215489,Nestor Primecare Services Limited t/a Allied Healthcare,517.4,Revenue,
DIRECT SOCIAL SERVICES,GF ADULT SERVICES,14-Mar-18,215489,Nestor Primecare Services Limited t/a Allied Healthcare,564.61,Revenue,
DIRECT SOCIAL SERVICES,GF ADULT SERVICES,14-Mar-18,215489,Nestor Primecare Services Limited t/a Allied Healthcare,569.52,Revenue,
DIRECT SOCIAL SERVICES,GF ADULT SERVICES,14-Mar-18,215489,Nestor Primecare Services Limited t/a Allied Healthcare,549.27,Revenue,
DIRECT SOCIAL SERVICES,GF ADULT SERVICES,14-Mar-18,215489,Parkrow Care Limited,580.1,Revenue,
DIRECT SOCIAL SERVICES,GF ADULT SERVICES,14-Mar-18,215489,Cardiff Homecare Limited,708.18,Revenue,
DIRECT SOCIAL SERVICES,GF ADULT SERVICES,14-Mar-18,215489,Cardiff Homecare Limited,708.18,Revenue,
DIRECT SOCIAL SERVICES,GF ADULT SERVICES,14-Mar-18,215489,Cartrefi Cymru Co-Operative Limited,3420,Revenue,
DIRECT SOCIAL SERVICES,GF ADULT SERVICES,14-Mar-18,215489,Healthcare Assistants Limited,561.56,Revenue,
DIRECT SOCIAL SERVICES,GF ADULT SERVICES,14-Mar-18,215489,April Complete Care Solutions Limited,543.51,Revenue,
DIRECT SOCIAL SERVICES,GF ADULT SERVICES,14-Mar-18,215489,April Complete Care Solutions Limited,526.42,Revenue,
DIRECT SOCIAL SERVICES,GF ADULT SERVICES,14-Mar-18,216179,Nestor Primecare Services Limited t/a Allied Healthcare,599.58,Revenue,
DIRECT SOCIAL SERVICES,GF ADULT SERVICES,14-Mar-18,216179,Nestor Primecare Services Limited t/a Allied Healthcare,599.58,Revenue,
DIRECT SOCIAL SERVICES,GF ADULT SERVICES,14-Mar-18,216179,Healthcare Assistants Limited,1254.42,Revenue,
DIRECT SOCIAL SERVICES,GF ADULT SERVICES,14-Mar-18,216179,April Complete Care Solutions Limited,599.64,Revenue,
DIRECT SOCIAL SERVICES,GF ADULT SERVICES,14-Mar-18,216179,April Complete Care Solutions Limited,599.64,Revenue,
DIRECT SOCIAL SERVICES,GF ADULT SERVICES,14-Mar-18,217909,1st Grade Care Limited,653.78,Revenue,
DIRECT SOCIAL SERVICES,GF ADULT SERVICES,14-Mar-18,217909,Innovate Trust Limited,1944.2,Revenue,
DIRECT SOCIAL SERVICES,GF ADULT SERVICES,14-Mar-18,217909,April Complete Care Solutions Limited,859.08,Revenue,
DIRECT SOCIAL SERVICES,GF ADULT SERVICES,14-Mar-18,217909,April Complete Care Solutions Limited,695.66,Revenue,
DIRECT SOCIAL SERVICES,GF ADULT SERVICES,14-Mar-18,217909,Walter Standen T/A Standens Contract Hire,926,Revenue,
DIRECT SOCIAL SERVICES,GF ADULT SERVICES,14-Mar-18,217909,Vision 21,832.4,Revenue,
DIRECT SOCIAL SERVICES,GF ADULT SERVICES,14-Mar-18,217909,Vision 21,832.4,Revenue,
DIRECT SOCIAL SERVICES,GF ADULT SERVICES,14-Mar-18,218419,Parkrow Care Limited,604.4,Revenue,
DIRECT SOCIAL SERVICES,GF BUSINESS MANAGEMENT & INOVATION,14-Mar-18,239030,Computacenter (UK) Limited,833.59,Revenue,
DIRECT SOCIAL SERVICES,GF CHILDREN SERVICES,14-Mar-18,260235,Walter Standen T/A Standens Contract Hire,576,Revenue,
DIRECT SOCIAL SERVICES,GF CHILDREN SERVICES,14-Mar-18,260235,Walter Standen T/A Standens Contract Hire,1408,Revenue,
DIRECT SOCIAL SERVICES,GF CHILDREN SERVICES,14-Mar-18,260235,Walter Standen T/A Standens Contract Hire,832,Revenue,
DIRECT SOCIAL SERVICES,GF CHILDREN SERVICES,14-Mar-18,260235,Walter Standen T/A Standens Contract Hire,713,Revenue,
DIRECT ENVIRONMENT AND HOUSING,BUILDING SERVICES,14-Mar-18,303900,Burner Efficiency Services Limited,839.46,Revenue,
DIRECT ENVIRONMENT AND HOUSING,BUILDING SERVICES,14-Mar-18,303900,Frontline EPCs LLP,500,Revenue,
DIRECT ENVIRONMENT AND HOUSING,BUILDING SERVICES,14-Mar-18,303900,M Thomas Water Services Limited,560,Revenue,
DIRECT ENVIRONMENT AND HOUSING,BUILDING SERVICES,14-Mar-18,303900,M Thomas Water Services Limited,2830,Revenue,
DIRECT ENVIRONMENT AND HOUSING,BUILDING SERVICES,14-Mar-18,303901,Thyssen-Krupp Access Limited T/A Encasa,5496,Revenue,
DIRECT ENVIRONMENT AND HOUSING,BUILDING SERVICES,14-Mar-18,303905,Heatforce (Wales) Limited,-15871.12,Revenue,
DIRECT ENVIRONMENT AND HOUSING,BUILDING SERVICES,14-Mar-18,303905,OpenView Security Solutions Limited,3061.1,Revenue,
DIRECT ENVIRONMENT AND HOUSING,BUILDING SERVICES,14-Mar-18,303910,Elwyn J Kerslake t/a Woodland Electrical,2454.1,Revenue,
DIRECT ENVIRONMENT AND HOUSING,BUILDING SERVICES,14-Mar-18,303910,Elwyn J Kerslake t/a Woodland Electrical,1290.28,Revenue,
DIRECT ENVIRONMENT AND HOUSING,BUILDING SERVICES,14-Mar-18,303910,Elwyn J Kerslake t/a Woodland Electrical,1209.37,Revenue,
DIRECT ENVIRONMENT AND HOUSING,BUILDING SERVICES,14-Mar-18,303931,Hi Tech Industrial Roofing Limited,935,Revenue,
DIRECT ENVIRONMENT AND HOUSING,BUILDING SERVICES,14-Mar-18,303931,LCB Construction Limited,630,Revenue,
DIRECT ENVIRONMENT AND HOUSING,BUILDING SERVICES,14-Mar-18,303931,LCB Construction Limited,720,Revenue,
DIRECT ENVIRONMENT AND HOUSING,BUILDING SERVICES,14-Mar-18,303931,Metro Rod Limited,780,Revenue,
DIRECT ENVIRONMENT AND HOUSING,BUILDING SERVICES,14-Mar-18,303931,Taylor Decorating Limited,3475,Revenue,
DIRECT ENVIRONMENT AND HOUSING,BUILDING SERVICES,14-Mar-18,303950,AFT Group (Wales) Limited T/A Advanced Fire Technologies Limited,2112,Revenue,
DIRECT ENVIRONMENT AND HOUSING,BUILDING SERVICES,14-Mar-18,303950,Cardiff Diesel Services Limited,801.45,Revenue,
DIRECT ENVIRONMENT AND HOUSING,BUILDING SERVICES,14-Mar-18,303950,Cardiff Lift Company Limited,3997.5,Revenue,
DIRECT ENVIRONMENT AND HOUSING,BUILDING SERVICES,14-Mar-18,305647,SMK Building & Maintenance Limited,14435.68,Revenue,
DIRECT ENVIRONMENT AND HOUSING,VEHICLES,14-Mar-18,319010,UK Telematics Limited,6258.6,Revenue,
DIRECT ENVIRONMENT AND HOUSING,VEHICLES,14-Mar-18,319010,UK Telematics Limited,1462.5,Revenue,
DIRECT ENVIRONMENT AND HOUSING,GF ENV AND VISIBLE,14-Mar-18,323665,Redwood Environmental Services Limited,1606,Revenue,
DIRECT ENVIRONMENT AND HOUSING,GF ENV AND VISIBLE,14-Mar-18,323670,Jeremy Benn Associates Limited,6000,Revenue,
DIRECT ENVIRONMENT AND HOUSING,GF ENV AND VISIBLE,14-Mar-18,323685,Alex French Associates Limited,2505,Revenue,
DIRECT ENVIRONMENT AND HOUSING,GF ENV AND VISIBLE,14-Mar-18,323686,Hays Specialist Recruitment Limited,622.56,Revenue,
DIRECT ENVIRONMENT AND HOUSING,GF ENV AND VISIBLE,14-Mar-18,325649,Centregreat Limited,1247.35,Revenue,
DIRECT ENVIRONMENT AND HOUSING,GF ENV AND VISIBLE,14-Mar-18,325681,Hays Specialist Recruitment Limited,1170.29,Revenue,
DIRECT ENVIRONMENT AND HOUSING,GF ENV AND VISIBLE,14-Mar-18,325810,MeteoGroup UK Limited,7500,Revenue,
DIRECT ENVIRONMENT AND HOUSING,GF ENV AND VISIBLE,14-Mar-18,325889,MSD Lighting Limited,2745,Revenue,
DIRECT ENVIRONMENT AND HOUSING,GF ENV AND VISIBLE,14-Mar-18,325894,Metric Group Limited,1442.4,Revenue,
DIRECT ENVIRONMENT AND HOUSING,GF PARKS AND GROUNDS,14-Mar-18,333037,HAGS-SMP Limited,3474.6,Revenue,
DIRECT ENVIRONMENT AND HOUSING,GF PARKS AND GROUNDS,14-Mar-18,333037,HAGS-SMP Limited,3416.3,Revenue,
DIRECT ENVIRONMENT AND HOUSING,GF ENV AND VISIBLE,14-Mar-18,341180,Cardiff County Council,115511.99,Revenue,
DIRECT ENVIRONMENT AND HOUSING,GF ENV AND VISIBLE,14-Mar-18,341182,FCC Recycling (UK) Limited,101343.91,Revenue,
DIRECT ENVIRONMENT AND HOUSING,GF ENV AND VISIBLE,14-Mar-18,341182,Cardiff County Council,28691.8,Revenue,
DIRECT ENVIRONMENT AND HOUSING,REGENERATION & PLANNING,14-Mar-18,352718,Hormann UK Limited,718.5,Revenue,
DIRECT ENVIRONMENT AND HOUSING,REGENERATION & PLANNING,14-Mar-18,354037,Glamorgan Gem Limited,700,Revenue,
DIRECT ENVIRONMENT AND HOUSING,REGENERATION & PLANNING,14-Mar-18,356021,Walford Timber Limited,875.5,Revenue,
DIRECT ENVIRONMENT AND HOUSING,REGENERATION & PLANNING,14-Mar-18,356021,National Heritage Memorial Fund,4441,Revenue,
DIRECT ENVIRONMENT AND HOUSING,VISIBLE SERVICES,14-Mar-18,359304,Computacenter (UK) Limited,1667.18,Revenue,
DIRECT ENVIRONMENT AND HOUSING,REGENERATION & PLANNING,14-Mar-18,365770,Planning Officers Society for Wales,600,Revenue,
DIRECT ENVIRONMENT AND HOUSING,VISIBLE SERVICES,14-Mar-18,365790,Premier Cars (Cardiff) Limited,588,Revenue,
DIRECT ENVIRONMENT AND HOUSING,VISIBLE SERVICES,14-Mar-18,365790,Watts Coaches Limited,630,Revenue,
DIRECT ENVIRONMENT AND HOUSING,VISIBLE SERVICES,14-Mar-18,365790,Nigel Martlew t/a Caring Coaches,7144,Revenue,
DIRECT ENVIRONMENT AND HOUSING,VISIBLE SERVICES,14-Mar-18,365795,Nigel Martlew t/a Caring Coaches,3056,Revenue,
DIRECT ENVIRONMENT AND HOUSING,GF LEGAL AND DEMOCRATIC,14-Mar-18,400063,British Telecommunications Plc,2990.34,Revenue,
DIRECT ENVIRONMENT AND HOUSING,GF HOUSING SERVICES,14-Mar-18,402408,Atal Y Fro,15000,Revenue,
DIRECT ENVIRONMENT AND HOUSING,REGULATORY SHARED SERVICES,14-Mar-18,403138,Altia Solutions Limited,4390,Revenue,
DIRECT ENVIRONMENT AND HOUSING,REGULATORY SHARED SERVICES,14-Mar-18,403138,Positive Media Promotions Limited,6950,Revenue,
DIRECT ENVIRONMENT AND HOUSING,REGULATORY SHARED SERVICES,14-Mar-18,403206,University of the West of England,-1750,Revenue,
DIRECT ENVIRONMENT AND HOUSING,REGULATORY SHARED SERVICES,14-Mar-18,403206,University of the West of England,3497,Revenue,
DIRECT ENVIRONMENT AND HOUSING,REGULATORY SHARED SERVICES,14-Mar-18,403207,Chartered Trading Standards Institute,793,Revenue,
DIRECT ENVIRONMENT AND HOUSING,REGULATORY SHARED SERVICES,14-Mar-18,403330,Idox Software Limited,950,Revenue,
DIRECT ENVIRONMENT AND HOUSING,HOUSING,14-Mar-18,407106,Building Recruitment Company Limited,753.47,Revenue,
DIRECT ENVIRONMENT AND HOUSING,HOUSING,14-Mar-18,407114,IOTS (UK) Limited,685,Revenue,
DIRECT ENVIRONMENT AND HOUSING,HOUSING,14-Mar-18,407119,Hays Specialist Recruitment Limited,1494.46,Revenue,
DIRECT ENVIRONMENT AND HOUSING,HOUSING,14-Mar-18,407119,Hays Specialist Recruitment Limited,1245.74,Revenue,
DIRECT ENVIRONMENT AND HOUSING,HOUSING,14-Mar-18,407119,Hays Specialist Recruitment Limited,1512.91,Revenue,
DIRECT ENVIRONMENT AND HOUSING,HOUSING,14-Mar-18,407130,Redlands Residents Association,700,Revenue,
DIRECT MANAGING DIRECTOR AND RESOURCES,GF CORPORATE AND CUSTOMER SERVICES,14-Mar-18,440530,BOF Group Limited T/A BOF,3816,Revenue,
DIRECT MANAGING DIRECTOR AND RESOURCES,GF CORPORATE AND CUSTOMER SERVICES,14-Mar-18,440530,Computacenter (UK) Limited,1462.59,Revenue,
DIRECT MANAGING DIRECTOR AND RESOURCES,GF GRANTS,14-Mar-18,465201,St Brides Parochial Church Council,1700,Revenue,
DIRECT MANAGING DIRECTOR AND RESOURCES,GF GENERAL EXPENDITURE POLICY,14-Mar-18,471900,Rhondda Cynon Taff County Borough Council,1622.21,Revenue,
DIRECT MANAGING DIRECTOR AND RESOURCES,GF GENERAL EXPENDITURE POLICY,14-Mar-18,471900,Wales Audit Office,-8164.02,Revenue,
DIRECT MANAGING DIRECTOR AND RESOURCES,GF GENERAL EXPENDITURE POLICY,14-Mar-18,471900,Wales Audit Office,675,Revenue,
DIRECT MANAGING DIRECTOR AND RESOURCES,GF GENERAL EXPENDITURE POLICY,14-Mar-18,471900,Wales Audit Office,8113,Revenue,
DIRECT MANAGING DIRECTOR AND RESOURCES,GF GENERAL EXPENDITURE POLICY,14-Mar-18,471900,Wales Audit Office,13666.67,Revenue,
DIRECT CAPITAL LEARN AND SKILLS,CAPITAL SCHOOLS,14-Mar-18,810000,Centregreat Limited,2614.88,Capital,
DIRECT CAPITAL VISIBLE AND HOUSING SERVICES,CAPITAL HIGHWAYS,14-Mar-18,831534,Alun Griffiths (Contractors) Limited,39618.16,Capital,
DIRECT CAPITAL DEVELOPMENT,CAPITAL ECO DEV,14-Mar-18,834231,Capita Property and Infrastructure Limited,12386.6,Capital,
DIRECT CAPITAL DEVELOPMENT,CAPITAL ECO DEV,14-Mar-18,834253,Christopher Wood T/A Wood Art Works,1000,Capital,
DIRECT CAPITAL DEVELOPMENT,CAPITAL PLANNING,14-Mar-18,837187,Haire Landscape Consultants Limited,2320,Capital,
DIRECT CAPITAL VISIBLE AND HOUSING SERVICES,CAPITAL HRA,14-Mar-18,842066,Heatforce (Wales) Limited,2400.71,Capital,
DIRECT CAPITAL VISIBLE AND HOUSING SERVICES,CAPITAL HRA,14-Mar-18,842066,Heatforce (Wales) Limited,1935,Capital,
DIRECT CAPITAL VISIBLE AND HOUSING SERVICES,CAPITAL HRA,14-Mar-18,842068,Feltfab Facilities Limited,157306.3,Capital,
DIRECT CAPITAL VISIBLE AND HOUSING SERVICES,CAPITAL HRA,14-Mar-18,842122,G.P.H.I.T (Integrated Services) Limited,4020,Capital,
DIRECT LEARNING AND SKILLS,STRATEGY COMMUNITY LEARNING & RESOURCES,15-Mar-18,100130,Disclosure and Barring Service,1584,Revenue,
DIRECT LEARNING AND SKILLS,SCHOOLS DELEGATED,15-Mar-18,100802,PEAC (UK) Limited,528,Revenue,
DIRECT LEARNING AND SKILLS,SCHOOLS DELEGATED,15-Mar-18,101004,Blue Sky Digital Solutions Limited,691.9,Revenue,
DIRECT LEARNING AND SKILLS,SCHOOLS DELEGATED,15-Mar-18,101004,DSG Retail Limited,1649.73,Revenue,
DIRECT LEARNING AND SKILLS,SCHOOLS DELEGATED,15-Mar-18,101004,Fronting The Challenge Projects Limited t/a Thrive,1595,Revenue,
DIRECT LEARNING AND SKILLS,SCHOOLS DELEGATED,15-Mar-18,101004,New Directions (Education) Limited,632.5,Revenue,
DIRECT LEARNING AND SKILLS,SCHOOLS DELEGATED,15-Mar-18,101025,Albion Computers Plc,2453,Revenue,
DIRECT LEARNING AND SKILLS,SCHOOLS DELEGATED,15-Mar-18,101047,RP Brown Limited t/a Cymraeg Cleaning,650,Revenue,
DIRECT LEARNING AND SKILLS,SCHOOLS DELEGATED,15-Mar-18,101047,RP Brown Limited t/a Cymraeg Cleaning,650,Revenue,
DIRECT LEARNING AND SKILLS,SCHOOLS DELEGATED,15-Mar-18,101047,RP Brown Limited t/a Cymraeg Cleaning,650,Revenue,
DIRECT LEARNING AND SKILLS,SCHOOLS DELEGATED,15-Mar-18,101047,RP Brown Limited t/a Cymraeg Cleaning,650,Revenue,
DIRECT LEARNING AND SKILLS,SCHOOLS DELEGATED,15-Mar-18,101065,Therapy & Education Limited t/a The Institute for Arts in Therapy,1435.5,Revenue,
DIRECT LEARNING AND SKILLS,SCHOOLS DELEGATED,15-Mar-18,101065,The National Trust For Places Of Historic Interest Or Natural Beauty,5345,Revenue,
DIRECT LEARNING AND SKILLS,SCHOOLS DELEGATED,15-Mar-18,101065,The National Trust For Places Of Historic Interest Or Natural Beauty,5875,Revenue,
DIRECT LEARNING AND SKILLS,SCHOOLS DELEGATED,15-Mar-18,101095,NGF Play Limited,600,Revenue,
DIRECT LEARNING AND SKILLS,SCHOOLS DELEGATED,15-Mar-18,101095,Oxford University Press,556.51,Revenue,
DIRECT LEARNING AND SKILLS,SCHOOLS DELEGATED,15-Mar-18,101110,A & R Contract Cleaning Specialist Limited,2491.48,Revenue,
DIRECT LEARNING AND SKILLS,SCHOOLS DELEGATED,15-Mar-18,101137,Academics Limited,662.5,Revenue,
DIRECT LEARNING AND SKILLS,SCHOOLS DELEGATED,15-Mar-18,101137,Academics Limited,662.5,Revenue,
DIRECT LEARNING AND SKILLS,SCHOOLS DELEGATED,15-Mar-18,101137,Glen Cleaning Company Limited,1833.34,Revenue,
DIRECT LEARNING AND SKILLS,SCHOOLS DELEGATED,15-Mar-18,101137,PEAC (UK) Limited,597,Revenue,
DIRECT LEARNING AND SKILLS,SCHOOLS DELEGATED,15-Mar-18,101137,Wiltshire County Council,532,Revenue,
DIRECT LEARNING AND SKILLS,SCHOOLS DELEGATED,15-Mar-18,101137,Elwyn J Kerslake t/a Woodland Electrical,1566,Revenue,
DIRECT LEARNING AND SKILLS,SCHOOLS DELEGATED,15-Mar-18,101140,EDF Energy Plc,1023.65,Revenue,
DIRECT LEARNING AND SKILLS,SCHOOLS DELEGATED,15-Mar-18,101140,Ministry of Furniture Limited,903.92,Revenue,
DIRECT LEARNING AND SKILLS,SCHOOLS DELEGATED,15-Mar-18,101141,A & R Contract Cleaning Specialist Limited,1008.42,Revenue,
DIRECT LEARNING AND SKILLS,SCHOOLS DELEGATED,15-Mar-18,101141,EDF Energy Plc,1069.03,Revenue,
DIRECT LEARNING AND SKILLS,SCHOOLS DELEGATED,15-Mar-18,101141,EDF Energy Plc,772.2,Revenue,
DIRECT LEARNING AND SKILLS,SCHOOLS DELEGATED,15-Mar-18,101141,Yorkshire Purchasing Organisation,609.4,Revenue,
DIRECT LEARNING AND SKILLS,SCHOOLS DELEGATED,15-Mar-18,101141,Celtic Teachers Limited,500,Revenue,
DIRECT LEARNING AND SKILLS,SCHOOLS DELEGATED,15-Mar-18,101145,A & R Contract Cleaning Specialist Limited,951.47,Revenue,
DIRECT LEARNING AND SKILLS,SCHOOLS DELEGATED,15-Mar-18,101145,Computerworld (Wales) Limited,1998,Revenue,
DIRECT LEARNING AND SKILLS,SCHOOLS DELEGATED,15-Mar-18,101145,EDF Energy Plc,729.15,Revenue,
DIRECT LEARNING AND SKILLS,SCHOOLS DELEGATED,15-Mar-18,101145,P&R Group Limited,635.82,Revenue,
DIRECT LEARNING AND SKILLS,SCHOOLS DELEGATED,15-Mar-18,101145,S R Middleton & Son Roofing Limited,2208,Revenue,
DIRECT LEARNING AND SKILLS,SCHOOLS DELEGATED,15-Mar-18,101145,Techni-Flow (UK) Limited,970,Revenue,
DIRECT LEARNING AND SKILLS,SCHOOLS DELEGATED,15-Mar-18,101180,EDF Energy Plc,592.82,Revenue,
DIRECT LEARNING AND SKILLS,SCHOOLS DELEGATED,15-Mar-18,101233,EDF Energy Plc,636.54,Revenue,
DIRECT LEARNING AND SKILLS,SCHOOLS DELEGATED,15-Mar-18,101233,Ignite & Inspire Limited,990,Revenue,
DIRECT LEARNING AND SKILLS,SCHOOLS DELEGATED,15-Mar-18,101233,Rhodri Foote t/a Willows Property Services,1035,Revenue,
DIRECT LEARNING AND SKILLS,SCHOOLS DELEGATED,15-Mar-18,101304,EDF Energy Plc,896.45,Revenue,
DIRECT LEARNING AND SKILLS,SCHOOLS DELEGATED,15-Mar-18,101304,Pentagon Design Limited,1327.5,Revenue,
DIRECT LEARNING AND SKILLS,SCHOOLS DELEGATED,15-Mar-18,101308,Legacy Leisure Limited,506,Revenue,
DIRECT LEARNING AND SKILLS,SCHOOLS DELEGATED,15-Mar-18,101317,EDF Energy Plc,651.7,Revenue,
DIRECT LEARNING AND SKILLS,ACHIEVEMENT FOR ALL,15-Mar-18,102652,Smooth Starts Plus Limited,714,Revenue,
DIRECT LEARNING AND SKILLS,ACHIEVEMENT FOR ALL,15-Mar-18,102652,Smooth Starts Plus Limited,504,Revenue,
DIRECT LEARNING AND SKILLS,ACHIEVEMENT FOR ALL,15-Mar-18,102652,Smooth Starts Plus Limited,2464,Revenue,
DIRECT LEARNING AND SKILLS,ACHIEVEMENT FOR ALL,15-Mar-18,102652,Smooth Starts Plus Limited,1344,Revenue,
DIRECT LEARNING AND SKILLS,SCHOOLS DELEGATED,15-Mar-18,104381,A & R Contract Cleaning Specialist Limited,1147.3,Revenue,
DIRECT LEARNING AND SKILLS,SCHOOLS DELEGATED,15-Mar-18,104381,Dwr Cymru Cyf,1308.42,Revenue,
DIRECT LEARNING AND SKILLS,SCHOOLS DELEGATED,15-Mar-18,104381,Nathan Murton t/a Fundamental Sports,540,Revenue,
DIRECT LEARNING AND SKILLS,SCHOOLS DELEGATED,15-Mar-18,104385,Dwr Cymru Cyf,1482.83,Revenue,
DIRECT LEARNING AND SKILLS,SCHOOLS DELEGATED,15-Mar-18,104385,iTeach Limited,3945.6,Revenue,
DIRECT SOCIAL SERVICES,GF CHILDREN SERVICES,15-Mar-18,209151,TTS Group Limited,724.39,Revenue,
DIRECT SOCIAL SERVICES,GF ADULT SERVICES,15-Mar-18,215489,Caring Companions Limited,725.06,Revenue,
DIRECT SOCIAL SERVICES,GF ADULT SERVICES,15-Mar-18,215489,Caring Companions Limited,518.7,Revenue,
DIRECT SOCIAL SERVICES,GF ADULT SERVICES,15-Mar-18,215489,Caring Companions Limited,578.76,Revenue,
DIRECT SOCIAL SERVICES,GF ADULT SERVICES,15-Mar-18,215489,Susan Barrett t/a All Saints Domiciliary Care Agency,620,Revenue,
DIRECT SOCIAL SERVICES,GF ADULT SERVICES,15-Mar-18,215489,Susan Barrett t/a All Saints Domiciliary Care Agency,629.25,Revenue,
DIRECT SOCIAL SERVICES,GF ADULT SERVICES,15-Mar-18,215489,Susan Barrett t/a All Saints Domiciliary Care Agency,611.35,Revenue,
DIRECT SOCIAL SERVICES,GF ADULT SERVICES,15-Mar-18,215489,Susan Barrett t/a All Saints Domiciliary Care Agency,568.9,Revenue,
DIRECT SOCIAL SERVICES,GF ADULT SERVICES,15-Mar-18,215489,Susan Barrett t/a All Saints Domiciliary Care Agency,675.6,Revenue,
DIRECT SOCIAL SERVICES,GF ADULT SERVICES,15-Mar-18,215489,Cardiff Homecare Limited,708.18,Revenue,
DIRECT SOCIAL SERVICES,GF ADULT SERVICES,15-Mar-18,215489,Bellavista Care (Cardiff) Limited T/A Bellavista Nursing Home Cardiff,3081.42,Revenue,
DIRECT SOCIAL SERVICES,GF ADULT SERVICES,15-Mar-18,215489,Bellavista Care (Cardiff) Limited T/A Bellavista Nursing Home Cardiff,513.57,Revenue,
DIRECT SOCIAL SERVICES,GF ADULT SERVICES,15-Mar-18,216181,Handicare Accessibility Limited,620,Revenue,
DIRECT SOCIAL SERVICES,GF CHILDREN SERVICES,15-Mar-18,260020,Disclosure and Barring Service,792,Revenue,
DIRECT SOCIAL SERVICES,GF CHILDREN SERVICES,15-Mar-18,260060,Fostering Solutions Limited,4250,Revenue,
DIRECT SOCIAL SERVICES,GF CHILDREN SERVICES,15-Mar-18,260060,Fostering Solutions Limited,7750,Revenue,
DIRECT SOCIAL SERVICES,GF CHILDREN SERVICES,15-Mar-18,260060,Fostering Solutions Limited,7000,Revenue,
DIRECT SOCIAL SERVICES,GF CHILDREN SERVICES,15-Mar-18,260060,Fostering Solutions Limited,7750,Revenue,
DIRECT SOCIAL SERVICES,GF CHILDREN SERVICES,15-Mar-18,260060,Action for Children,2833,Revenue,
DIRECT ENVIRONMENT AND HOUSING,BUILDING SERVICES,15-Mar-18,303900,Heatforce (Wales) Limited,1131.11,Revenue,
DIRECT ENVIRONMENT AND HOUSING,BUILDING SERVICES,15-Mar-18,303900,Michael Bryl & Ptn T/A CW Facilities Management,1198.75,Revenue,
DIRECT ENVIRONMENT AND HOUSING,BUILDING SERVICES,15-Mar-18,303901,Handicare Accessibility Limited,1627,Revenue,
DIRECT ENVIRONMENT AND HOUSING,BUILDING SERVICES,15-Mar-18,303901,Heatforce (Wales) Limited,15386.95,Revenue,
DIRECT ENVIRONMENT AND HOUSING,BUILDING SERVICES,15-Mar-18,303905,Heatforce (Wales) Limited,15871.12,Revenue,
DIRECT ENVIRONMENT AND HOUSING,BUILDING SERVICES,15-Mar-18,303930,Burner Efficiency Services Limited,3302,Revenue,
DIRECT ENVIRONMENT AND HOUSING,BUILDING SERVICES,15-Mar-18,303930,M Thomas Water Services Limited,720,Revenue,
DIRECT ENVIRONMENT AND HOUSING,BUILDING SERVICES,15-Mar-18,303930,Paul Robinson & Ptn T/A RM Scaffolding,925,Revenue,
DIRECT ENVIRONMENT AND HOUSING,BUILDING SERVICES,15-Mar-18,303931,Michael Bryl & Ptn T/A CW Facilities Management,1198.75,Revenue,
DIRECT ENVIRONMENT AND HOUSING,BUILDING SERVICES,15-Mar-18,303950,AFT Group (Wales) Limited T/A Advanced Fire Technologies Limited,770,Revenue,
DIRECT ENVIRONMENT AND HOUSING,BUILDING SERVICES,15-Mar-18,303950,Heatforce (Wales) Limited,526.21,Revenue,
DIRECT ENVIRONMENT AND HOUSING,BUILDING SERVICES,15-Mar-18,305704,G.P.H.I.T (Integrated Services) Limited,3656,Revenue,
DIRECT ENVIRONMENT AND HOUSING,VEHICLES,15-Mar-18,319000,UK Telematics Limited,-865.4,Revenue,
DIRECT ENVIRONMENT AND HOUSING,VEHICLES,15-Mar-18,319000,UK Telematics Limited,-5202.39,Revenue,
DIRECT ENVIRONMENT AND HOUSING,VEHICLES,15-Mar-18,319000,UK Telematics Limited,-727.35,Revenue,
DIRECT ENVIRONMENT AND HOUSING,GF ENV AND VISIBLE,15-Mar-18,325502,Centregreat Limited,630,Revenue,
DIRECT ENVIRONMENT AND HOUSING,GF ENV AND VISIBLE,15-Mar-18,325889,Centregreat Limited,980,Revenue,
DIRECT ENVIRONMENT AND HOUSING,GF ENV AND VISIBLE,15-Mar-18,325889,Centregreat Limited,2010,Revenue,
DIRECT ENVIRONMENT AND HOUSING,GF ENV AND VISIBLE,15-Mar-18,325889,Centregreat Limited,1440,Revenue,
DIRECT ENVIRONMENT AND HOUSING,GF ENV AND VISIBLE,15-Mar-18,325950,Centregreat Limited,1675,Revenue,
DIRECT ENVIRONMENT AND HOUSING,GF ENV AND VISIBLE,15-Mar-18,341500,Straight Manufactoring Limited,2982,Revenue,
DIRECT ENVIRONMENT AND HOUSING,VISIBLE SERVICES,15-Mar-18,359324,The Vale Parent/Child Homework Support Club,2000,Revenue,
DIRECT ENVIRONMENT AND HOUSING,VISIBLE SERVICES,15-Mar-18,359355,Newitt & Co Limited,1931.75,Revenue,
DIRECT ENVIRONMENT AND HOUSING,VISIBLE SERVICES,15-Mar-18,365787,First Cymru Buses Limited,3603.16,Revenue,
DIRECT ENVIRONMENT AND HOUSING,VISIBLE SERVICES,15-Mar-18,365790,A & B Coach Travel Limited,3080,Revenue,
DIRECT ENVIRONMENT AND HOUSING,VISIBLE SERVICES,15-Mar-18,365791,Easyway Minicoach Hire Limited,9575,Revenue,
DIRECT ENVIRONMENT AND HOUSING,GF LEGAL AND DEMOCRATIC,15-Mar-18,400050,Children's Services Network Limited t/a WillisPalmer,7567.56,Revenue,
DIRECT ENVIRONMENT AND HOUSING,GF LEGAL AND DEMOCRATIC,15-Mar-18,400050,Children's Services Network Limited t/a WillisPalmer,2739.82,Revenue,
DIRECT ENVIRONMENT AND HOUSING,GF LEGAL AND DEMOCRATIC,15-Mar-18,400050,Dr Alison White & Partners LLP,859.02,Revenue,
DIRECT ENVIRONMENT AND HOUSING,GF LEGAL AND DEMOCRATIC,15-Mar-18,400050,Lingotech Limited,501.08,Revenue,
DIRECT ENVIRONMENT AND HOUSING,REGULATORY SHARED SERVICES,15-Mar-18,403138,Media Friendly Limited,1185,Revenue,
DIRECT ENVIRONMENT AND HOUSING,REGULATORY SHARED SERVICES,15-Mar-18,403138,Savage & Gray Design Limited,2385.5,Revenue,
DIRECT ENVIRONMENT AND HOUSING,REGULATORY SHARED SERVICES,15-Mar-18,403212,Office Depot International (UK) Limited t/a Viking Direct,699.12,Revenue,
DIRECT ENVIRONMENT AND HOUSING,GF HOUSING SERVICES,15-Mar-18,405001,Cadwyn Housing Association Limited t/a Can Do Lettings,500,Revenue,
DIRECT ENVIRONMENT AND HOUSING,GF HOUSING SERVICES,15-Mar-18,405100,Duncan M Evans,4272.8,Revenue,
DIRECT ENVIRONMENT AND HOUSING,GF HOUSING SERVICES,15-Mar-18,405100,Lyndon Mustoe,772.12,Revenue,
DIRECT ENVIRONMENT AND HOUSING,GF HOUSING SERVICES,15-Mar-18,405100,Susan Shepherd t/a KKG Properties,1246.2,Revenue,
DIRECT ENVIRONMENT AND HOUSING,GF HOUSING SERVICES,15-Mar-18,405100,Susan Shepherd t/a KKG Properties,830.8,Revenue,
DIRECT ENVIRONMENT AND HOUSING,GF HOUSING SERVICES,15-Mar-18,405100,Susan Shepherd t/a KKG Properties,830.8,Revenue,
DIRECT ENVIRONMENT AND HOUSING,GF HOUSING SERVICES,15-Mar-18,405100,Susan Shepherd t/a KKG Properties,623.1,Revenue,
DIRECT ENVIRONMENT AND HOUSING,GF HOUSING SERVICES,15-Mar-18,405301,Gofal A Chymorth Gwalia Cyf,1414.92,Revenue,
DIRECT ENVIRONMENT AND HOUSING,GF HOUSING SERVICES,15-Mar-18,405301,Gofal A Chymorth Gwalia Cyf,2528.64,Revenue,
DIRECT ENVIRONMENT AND HOUSING,GF HOUSING SERVICES,15-Mar-18,405301,Gofal A Chymorth Gwalia Cyf,1414.92,Revenue,
DIRECT ENVIRONMENT AND HOUSING,GF HOUSING SERVICES,15-Mar-18,405301,Gofal A Chymorth Gwalia Cyf,20539.36,Revenue,
DIRECT ENVIRONMENT AND HOUSING,GF HOUSING SERVICES,15-Mar-18,405301,Gofal A Chymorth Gwalia Cyf,9692.8,Revenue,
DIRECT ENVIRONMENT AND HOUSING,GF HOUSING SERVICES,15-Mar-18,405301,Gofal A Chymorth Gwalia Cyf,7046.4,Revenue,
DIRECT ENVIRONMENT AND HOUSING,GF HOUSING SERVICES,15-Mar-18,405301,Llamau Limited,8945.28,Revenue,
DIRECT ENVIRONMENT AND HOUSING,GF HOUSING SERVICES,15-Mar-18,405301,Llamau Limited,3837.12,Revenue,
DIRECT ENVIRONMENT AND HOUSING,GF HOUSING SERVICES,15-Mar-18,405301,Llamau Limited,8835.36,Revenue,
DIRECT ENVIRONMENT AND HOUSING,GF HOUSING SERVICES,15-Mar-18,405301,Llamau Limited,6182.4,Revenue,
DIRECT ENVIRONMENT AND HOUSING,GF HOUSING SERVICES,15-Mar-18,405301,Llamau Limited,6182.4,Revenue,
DIRECT ENVIRONMENT AND HOUSING,GF HOUSING SERVICES,15-Mar-18,405301,Llamau Limited,9720,Revenue,
DIRECT ENVIRONMENT AND HOUSING,GF HOUSING SERVICES,15-Mar-18,405301,Pobl Group Limited T/A Reach Supported Living,16045.12,Revenue,
DIRECT ENVIRONMENT AND HOUSING,GF HOUSING SERVICES,15-Mar-18,405301,Cardiff County Council,5040,Revenue,
DIRECT ENVIRONMENT AND HOUSING,GF HOUSING SERVICES,15-Mar-18,405301,Hafod Care Association Limited,2732.16,Revenue,
DIRECT ENVIRONMENT AND HOUSING,GF HOUSING SERVICES,15-Mar-18,405301,Hafod Care Association Limited,4541.4,Revenue,
DIRECT ENVIRONMENT AND HOUSING,GF HOUSING SERVICES,15-Mar-18,405301,Hafod Care Association Limited,5043.36,Revenue,
DIRECT ENVIRONMENT AND HOUSING,GF HOUSING SERVICES,15-Mar-18,405301,Atal Y Fro,6352,Revenue,
DIRECT ENVIRONMENT AND HOUSING,GF HOUSING SERVICES,15-Mar-18,405301,Atal Y Fro,6587,Revenue,
DIRECT ENVIRONMENT AND HOUSING,GF HOUSING SERVICES,15-Mar-18,405301,Atal Y Fro,2692.08,Revenue,
DIRECT ENVIRONMENT AND HOUSING,GF HOUSING SERVICES,15-Mar-18,405301,Gofal Cymru,3564.8,Revenue,
DIRECT ENVIRONMENT AND HOUSING,GF HOUSING SERVICES,15-Mar-18,405301,Gofal Cymru,2757.4,Revenue,
DIRECT ENVIRONMENT AND HOUSING,GF HOUSING SERVICES,15-Mar-18,405301,Gofal Cymru,2536.8,Revenue,
DIRECT ENVIRONMENT AND HOUSING,GF HOUSING SERVICES,15-Mar-18,405301,Gofal Cymru,3957.6,Revenue,
DIRECT ENVIRONMENT AND HOUSING,GF HOUSING SERVICES,15-Mar-18,405301,Gofal Cymru,4399.8,Revenue,
DIRECT ENVIRONMENT AND HOUSING,GF HOUSING SERVICES,15-Mar-18,405301,Taff Housing Association,4456.2,Revenue,
DIRECT ENVIRONMENT AND HOUSING,GF HOUSING SERVICES,15-Mar-18,405301,Taff Housing Association,10459.4,Revenue,
DIRECT ENVIRONMENT AND HOUSING,GF HOUSING SERVICES,15-Mar-18,405301,Taff Housing Association,9803.6,Revenue,
DIRECT ENVIRONMENT AND HOUSING,HOUSING,15-Mar-18,407102,Vision 21,1832.85,Revenue,
DIRECT ENVIRONMENT AND HOUSING,HOUSING,15-Mar-18,407106,Building Recruitment Company Limited,731.36,Revenue,
DIRECT ENVIRONMENT AND HOUSING,HOUSING,15-Mar-18,407106,Building Recruitment Company Limited,765.41,Revenue,
DIRECT MANAGING DIRECTOR AND RESOURCES,GF RESOURCES,15-Mar-18,422120,Elwyn J Kerslake t/a Woodland Electrical,1720,Revenue,
DIRECT MANAGING DIRECTOR AND RESOURCES,GF RESOURCES,15-Mar-18,422160,Anderselite Limited,837.5,Revenue,
DIRECT MANAGING DIRECTOR AND RESOURCES,GF RESOURCES,15-Mar-18,422160,Anderselite Limited,600,Revenue,
DIRECT LEARNING AND SKILLS,ACHIEVEMENT FOR ALL,15-Mar-18,440611,Vale People First Limited,5625,Revenue,
DIRECT MANAGING DIRECTOR AND RESOURCES,GF ELECTIONS,15-Mar-18,463051,Royal Mail Group Limited,1050.04,Revenue,
DIRECT CAPITAL VISIBLE AND HOUSING SERVICES,CAPITAL HIGHWAYS,15-Mar-18,831548,Centregreat Limited,1289.64,Capital,
DIRECT CAPITAL VISIBLE AND HOUSING SERVICES,CAPITAL HIGHWAYS,15-Mar-18,831548,Centregreat Limited,3500,Capital,
DIRECT CAPITAL VISIBLE AND HOUSING SERVICES,CAPITAL HIGHWAYS,15-Mar-18,831548,Centregreat Limited,2046.55,Capital,
DIRECT CAPITAL VISIBLE AND HOUSING SERVICES,CAPITAL HIGHWAYS,15-Mar-18,831548,Centregreat Limited,2893.6,Capital,
DIRECT CAPITAL VISIBLE AND HOUSING SERVICES,AR CAPITAL GROUNDS MAINT,15-Mar-18,832272,Centregreat Limited,3327.66,Capital,
DIRECT CAPITAL VISIBLE AND HOUSING SERVICES,CAPITAL HRA,15-Mar-18,842116,AFT Group (Wales) Limited T/A Advanced Fire Technologies Limited,1649.84,Capital,
DIRECT CAPITAL VISIBLE AND HOUSING SERVICES,CAPITAL HRA,15-Mar-18,842146,Curtins Consulting Limited,12044.65,Capital,
DIRECT LEARNING AND SKILLS,SCHOOLS DELEGATED,16-Mar-18,100805,New Directions (Education) Limited,650,Revenue,
DIRECT LEARNING AND SKILLS,SCHOOLS DELEGATED,16-Mar-18,100805,New Directions (Education) Limited,650,Revenue,
DIRECT LEARNING AND SKILLS,SCHOOLS DELEGATED,16-Mar-18,101005,EDF Energy Plc,654.5,Revenue,
DIRECT LEARNING AND SKILLS,SCHOOLS DELEGATED,16-Mar-18,101005,Pentagon Sport (South) Limited,3190,Revenue,
DIRECT LEARNING AND SKILLS,SCHOOLS DELEGATED,16-Mar-18,101005,Rhondda Cynon Taff County Borough Council,725,Revenue,
DIRECT LEARNING AND SKILLS,SCHOOLS DELEGATED,16-Mar-18,101005,Amanda Lane,625,Revenue,
DIRECT LEARNING AND SKILLS,SCHOOLS DELEGATED,16-Mar-18,101005,Amanda Lane,500,Revenue,
DIRECT LEARNING AND SKILLS,SCHOOLS DELEGATED,16-Mar-18,101005,Valley Education Services Limited,670.04,Revenue,
DIRECT LEARNING AND SKILLS,SCHOOLS DELEGATED,16-Mar-18,101005,Valley Education Services Limited,862.6,Revenue,
DIRECT LEARNING AND SKILLS,SCHOOLS DELEGATED,16-Mar-18,101005,David Adrian Daw t/a Daveydaw Builders,1054.17,Revenue,
DIRECT LEARNING AND SKILLS,SCHOOLS DELEGATED,16-Mar-18,101005,Nathan Murton t/a Fundamental Sports,800,Revenue,
DIRECT LEARNING AND SKILLS,SCHOOLS DELEGATED,16-Mar-18,101007,123Comms Limited,829,Revenue,
DIRECT LEARNING AND SKILLS,SCHOOLS DELEGATED,16-Mar-18,101007,Caerphilly Skip Hire (CWS) Limited,833.32,Revenue,
DIRECT LEARNING AND SKILLS,SCHOOLS DELEGATED,16-Mar-18,101007,GL Education Group Limited,720.91,Revenue,
DIRECT LEARNING AND SKILLS,SCHOOLS DELEGATED,16-Mar-18,101007,New Directions (Education) Limited,520,Revenue,
DIRECT LEARNING AND SKILLS,SCHOOLS DELEGATED,16-Mar-18,101063,Direct Educational Furniture Limited,-1181.95,Revenue,
DIRECT LEARNING AND SKILLS,SCHOOLS DELEGATED,16-Mar-18,101063,Directed Printing Services Limited t/a Direct-Ed,1181.95,Revenue,
DIRECT LEARNING AND SKILLS,SCHOOLS DELEGATED,16-Mar-18,101134,Business Gas Limited / Electricity,1284.13,Revenue,
DIRECT LEARNING AND SKILLS,SCHOOLS DELEGATED,16-Mar-18,101137,Academics Limited,530,Revenue,
DIRECT LEARNING AND SKILLS,SCHOOLS DELEGATED,16-Mar-18,101137,DSG Retail Limited,1181.46,Revenue,
DIRECT LEARNING AND SKILLS,SCHOOLS DELEGATED,16-Mar-18,101137,Mr P ICT Limited,1212.8,Revenue,
DIRECT LEARNING AND SKILLS,SCHOOLS DELEGATED,16-Mar-18,101141,Celtic Teachers Limited,500,Revenue,
DIRECT LEARNING AND SKILLS,SCHOOLS DELEGATED,16-Mar-18,101171,Edwards Coaches Limited,820,Revenue,
DIRECT LEARNING AND SKILLS,SCHOOLS DELEGATED,16-Mar-18,101195,C-Learning Limited,3787.2,Revenue,
DIRECT LEARNING AND SKILLS,SCHOOLS DELEGATED,16-Mar-18,101195,New Directions (Education) Limited,713,Revenue,
DIRECT LEARNING AND SKILLS,SCHOOLS DELEGATED,16-Mar-18,101300,SG World Limited,699,Revenue,
DIRECT LEARNING AND SKILLS,SCHOOLS DELEGATED,16-Mar-18,102593,Travis Perkins Trading Co Limited,-1453.35,Revenue,
DIRECT LEARNING AND SKILLS,SCHOOLS DELEGATED,16-Mar-18,104381,Harper Collins Publishers Limited,2250,Revenue,
DIRECT LEARNING AND SKILLS,SCHOOLS DELEGATED,16-Mar-18,104385,Midshire Business Systems (Northern) Limited,617.82,Revenue,
DIRECT LEARNING AND SKILLS,SCHOOLS DELEGATED,16-Mar-18,104385,Robert Williams & Ptn T/A WT Building Group,624,Revenue,
DIRECT LEARNING AND SKILLS,SCHOOLS DELEGATED,16-Mar-18,104385,Steve Lewis t/a Play on Development,560,Revenue,
DIRECT MANAGING DIRECTOR AND RESOURCES,GF HUMAN RESOURCES,16-Mar-18,140131,Randstad Solutions Limited,117208.22,Revenue,
DIRECT LEARNING AND SKILLS,ACHIEVEMENT FOR ALL,16-Mar-18,190056,Cylch Meithrin Llanilltud Fawr,1710,Revenue,
DIRECT SOCIAL SERVICES,GF ADULT SERVICES,16-Mar-18,212741,Elliott Electrical Limited,940,Revenue,
DIRECT SOCIAL SERVICES,GF ADULT SERVICES,16-Mar-18,215489,All Care (South Wales) Limited,727.06,Revenue,
DIRECT SOCIAL SERVICES,GF ADULT SERVICES,16-Mar-18,215489,All Care (South Wales) Limited,593.22,Revenue,
DIRECT SOCIAL SERVICES,GF ADULT SERVICES,16-Mar-18,215489,All Care (South Wales) Limited,694.18,Revenue,
DIRECT SOCIAL SERVICES,GF ADULT SERVICES,16-Mar-18,215489,All Care (South Wales) Limited,636.44,Revenue,
DIRECT SOCIAL SERVICES,GF ADULT SERVICES,16-Mar-18,215489,All Care (South Wales) Limited,579.85,Revenue,
DIRECT SOCIAL SERVICES,GF ADULT SERVICES,16-Mar-18,215489,All Care (South Wales) Limited,737.34,Revenue,
DIRECT SOCIAL SERVICES,GF ADULT SERVICES,16-Mar-18,215489,All Care (South Wales) Limited,815.71,Revenue,
DIRECT SOCIAL SERVICES,GF ADULT SERVICES,16-Mar-18,215489,Cherish Cymru Limited,502.12,Revenue,
DIRECT SOCIAL SERVICES,GF ADULT SERVICES,16-Mar-18,215489,Cherish Cymru Limited,526.48,Revenue,
DIRECT SOCIAL SERVICES,GF ADULT SERVICES,16-Mar-18,215489,GJ Care & Training Limited,601.71,Revenue,
DIRECT SOCIAL SERVICES,GF ADULT SERVICES,16-Mar-18,215489,GJ Care & Training Limited,561.58,Revenue,
DIRECT SOCIAL SERVICES,GF ADULT SERVICES,16-Mar-18,215489,Parkrow Care Limited,580.1,Revenue,
DIRECT SOCIAL SERVICES,GF ADULT SERVICES,16-Mar-18,215489,Pauline Lawrence,-513.57,Revenue,
DIRECT SOCIAL SERVICES,GF ADULT SERVICES,16-Mar-18,215489,Pauline Lawrence,-3081.42,Revenue,
DIRECT SOCIAL SERVICES,GF ADULT SERVICES,16-Mar-18,216179,All Care (South Wales) Limited,918.17,Revenue,
DIRECT SOCIAL SERVICES,GF ADULT SERVICES,16-Mar-18,216179,All Care (South Wales) Limited,534.38,Revenue,
DIRECT SOCIAL SERVICES,GF ADULT SERVICES,16-Mar-18,216179,All Care (South Wales) Limited,762.31,Revenue,
DIRECT SOCIAL SERVICES,GF ADULT SERVICES,16-Mar-18,216179,Heidi Christoforato t/a Churchfields Home Care,516.14,Revenue,
DIRECT SOCIAL SERVICES,GF ADULT SERVICES,16-Mar-18,217909,GJ Care & Training Limited,704.08,Revenue,
DIRECT SOCIAL SERVICES,GF ADULT SERVICES,16-Mar-18,218321,GJ Care & Training Limited,551.32,Revenue,
DIRECT SOCIAL SERVICES,GF ADULT SERVICES,16-Mar-18,218419,All Care (South Wales) Limited,657.58,Revenue,
DIRECT SOCIAL SERVICES,GF ADULT SERVICES,16-Mar-18,218419,Parkrow Care Limited,604.4,Revenue,
DIRECT ENVIRONMENT AND HOUSING,GF ENV AND VISIBLE,16-Mar-18,325510,Centregreat Limited,3011.95,Revenue,
DIRECT ENVIRONMENT AND HOUSING,GF ENV AND VISIBLE,16-Mar-18,325644,Centregreat Limited,67555.55,Revenue,
DIRECT ENVIRONMENT AND HOUSING,GF PARKS AND GROUNDS,16-Mar-18,333011,Jam Creative Studios Limited,10000,Revenue,
DIRECT ENVIRONMENT AND HOUSING,GF ENV AND VISIBLE,16-Mar-18,341180,G.A.E. Smith (Holdings) Limited t/a Casepak,2378.88,Revenue,
DIRECT ENVIRONMENT AND HOUSING,GF ENV AND VISIBLE,16-Mar-18,341220,G.A.E. Smith (Holdings) Limited t/a Casepak,19198.64,Revenue,
DIRECT MANAGING DIRECTOR AND RESOURCES,GF RESOURCES,16-Mar-18,420212,MPS Marketing Services Limited,18105.41,Revenue,
DIRECT MANAGING DIRECTOR AND RESOURCES,GF RESOURCES,16-Mar-18,420217,G4s Cash Solutions (UK) Limited,889.26,Revenue,
DIRECT MANAGING DIRECTOR AND RESOURCES,GF RESOURCES,16-Mar-18,420220,CIPFA Business Limited,885,Revenue,
DIRECT LEARNING AND SKILLS,ACHIEVEMENT FOR ALL,16-Mar-18,440619,Cardiff & Vale College,5625,Revenue,
DIRECT CAPITAL VISIBLE AND HOUSING SERVICES,AR CAPITAL ENGINEER,16-Mar-18,831216,Peter Brett Associates LLP,12175.26,Capital,
DIRECT CAPITAL VISIBLE AND HOUSING SERVICES,CAPITAL HIGHWAYS,16-Mar-18,831534,Capita Property and Infrastructure Limited,6885.1,Capital,
DIRECT CAPITAL VISIBLE AND HOUSING SERVICES,AR CAPITAL WASTE,16-Mar-18,832701,Concrete Repairs Limited,41584.02,Capital,
DIRECT CAPITAL DEVELOPMENT,CAPITAL ECO DEV,16-Mar-18,834231,Alun Griffiths (Contractors) Limited,354236.37,Capital,
DIRECT CAPITAL DEVELOPMENT,CAPITAL ECO DEV,16-Mar-18,834231,Capita Property and Infrastructure Limited,38391.21,Capital,
DIRECT CAPITAL DEVELOPMENT,CAPITAL ECO DEV,16-Mar-18,834231,Rubicon Heritage Services Limited,65088.67,Capital,
DIRECT CAPITAL DEVELOPMENT,CAPITAL PRIV HSG,16-Mar-18,845126,LCB Construction Limited,8538.94,Capital,
DIRECT LEARNING AND SKILLS,SCHOOLS DELEGATED,19-Mar-18,101004,Corona Energy Retail 4 Limited,840.76,Revenue,
DIRECT LEARNING AND SKILLS,SCHOOLS DELEGATED,19-Mar-18,101004,EDF Energy Plc,1064.54,Revenue,
DIRECT LEARNING AND SKILLS,SCHOOLS DELEGATED,19-Mar-18,101004,Science Made Simple Limited,550,Revenue,
DIRECT LEARNING AND SKILLS,SCHOOLS DELEGATED,19-Mar-18,101004,New Directions (Education) Limited,632.5,Revenue,
DIRECT LEARNING AND SKILLS,SCHOOLS DELEGATED,19-Mar-18,101047,GL Education Group Limited,1179.65,Revenue,
DIRECT LEARNING AND SKILLS,SCHOOLS DELEGATED,19-Mar-18,101055,Corona Energy Retail 4 Limited,568.23,Revenue,
DIRECT LEARNING AND SKILLS,SCHOOLS DELEGATED,19-Mar-18,101065,Edwards Coaches Limited,530,Revenue,
DIRECT LEARNING AND SKILLS,SCHOOLS DELEGATED,19-Mar-18,101075,Copthorne Hotel (Cardiff) Limited,559.42,Revenue,
DIRECT LEARNING AND SKILLS,SCHOOLS DELEGATED,19-Mar-18,101110,Corona Energy Retail 4 Limited,626.96,Revenue,
DIRECT LEARNING AND SKILLS,SCHOOLS DELEGATED,19-Mar-18,101202,Andrew Sloman t/a Andrew Sloman Joinery,4075,Revenue,
DIRECT LEARNING AND SKILLS,SCHOOLS DELEGATED,19-Mar-18,101285,PGL Travel Limited,11022,Revenue,
DIRECT LEARNING AND SKILLS,SCHOOLS DELEGATED,19-Mar-18,102593,Academics Limited,751.73,Revenue,
DIRECT LEARNING AND SKILLS,SCHOOLS DELEGATED,19-Mar-18,102593,Academics Limited,1749.62,Revenue,
DIRECT LEARNING AND SKILLS,SCHOOLS DELEGATED,19-Mar-18,102593,Cabinco Structures Limited,8291.25,Revenue,
DIRECT LEARNING AND SKILLS,SCHOOLS DELEGATED,19-Mar-18,102593,Complete Business Solutions Group Limited,2818,Revenue,
DIRECT LEARNING AND SKILLS,SCHOOLS DELEGATED,19-Mar-18,102593,Consequential Robotics Limited,4460,Revenue,
DIRECT LEARNING AND SKILLS,SCHOOLS DELEGATED,19-Mar-18,102593,Corona Energy Retail 4 Limited,4802.01,Revenue,
DIRECT LEARNING AND SKILLS,SCHOOLS DELEGATED,19-Mar-18,102593,Hirstwood Training Limited,1306,Revenue,
DIRECT LEARNING AND SKILLS,SCHOOLS DELEGATED,19-Mar-18,102593,J&E Hall Limited,787,Revenue,
DIRECT LEARNING AND SKILLS,SCHOOLS DELEGATED,19-Mar-18,102593,Macquarie Corporate and Asset Finance 2 Limited,1562.5,Revenue,
DIRECT LEARNING AND SKILLS,SCHOOLS DELEGATED,19-Mar-18,102593,Novatech Limited,2330.2,Revenue,
DIRECT LEARNING AND SKILLS,SCHOOLS DELEGATED,19-Mar-18,102593,St Cyres Comprehensive School,3226.42,Revenue,
DIRECT LEARNING AND SKILLS,SCHOOLS DELEGATED,19-Mar-18,102593,St Cyres Comprehensive School,946.59,Revenue,
DIRECT LEARNING AND SKILLS,SCHOOLS DELEGATED,19-Mar-18,102593,St Cyres Comprehensive School,1158,Revenue,
DIRECT LEARNING AND SKILLS,SCHOOLS DELEGATED,19-Mar-18,102593,St Cyres Comprehensive School,2151,Revenue,
DIRECT LEARNING AND SKILLS,SCHOOLS DELEGATED,19-Mar-18,102593,St Cyres Comprehensive School,2813.46,Revenue,
DIRECT LEARNING AND SKILLS,SCHOOLS DELEGATED,19-Mar-18,102593,St Cyres Comprehensive School,3348.04,Revenue,
DIRECT LEARNING AND SKILLS,SCHOOLS DELEGATED,19-Mar-18,102593,David Evans & Ptn t/a Gym Systems & Servicing,6075,Revenue,
DIRECT LEARNING AND SKILLS,SCHOOLS DELEGATED,19-Mar-18,102594,Corona Energy Retail 4 Limited,543.33,Revenue,
DIRECT LEARNING AND SKILLS,ACHIEVEMENT FOR ALL,19-Mar-18,102636,Merricks Private Transport Contractors Limited,3793.5,Revenue,
DIRECT LEARNING AND SKILLS,STRATEGY COMMUNITY LEARNING & RESOURCES,19-Mar-18,130041,Adapt Business Services Limited,823.61,Revenue,
DIRECT LEARNING AND SKILLS,STRATEGY COMMUNITY LEARNING & RESOURCES,19-Mar-18,130041,Clinton Electrical Limited,761.99,Revenue,
DIRECT LEARNING AND SKILLS,ACHIEVEMENT FOR ALL,19-Mar-18,130204,Barry YMCA Hub,720,Revenue,
DIRECT LEARNING AND SKILLS,ACHIEVEMENT FOR ALL,19-Mar-18,130222,Purchase Card Direct Debit Payments,722,Revenue,
DIRECT LEARNING AND SKILLS,ACHIEVEMENT FOR ALL,19-Mar-18,130242,Barry YMCA Hub,1620,Revenue,
DIRECT LEARNING AND SKILLS,ACHIEVEMENT FOR ALL,19-Mar-18,130242,Barry YMCA Hub,972,Revenue,
DIRECT MANAGING DIRECTOR AND RESOURCES,GF HUMAN RESOURCES,19-Mar-18,140119,Acorn Recruitment Limited,1584.39,Revenue,
DIRECT MANAGING DIRECTOR AND RESOURCES,GF HUMAN RESOURCES,19-Mar-18,140119,Acorn Recruitment Limited,1545.24,Revenue,
DIRECT LEARNING AND SKILLS,GF CATERING,19-Mar-18,154401,ABM Catering for Leisure Limited,1520,Revenue,
DIRECT SOCIAL SERVICES,GF BUSINESS MANAGEMENT & INOVATION,19-Mar-18,202491,RGT Training & Consultancy,1700,Revenue,
DIRECT SOCIAL SERVICES,GF CHILDREN SERVICES,19-Mar-18,209151,Purchase Card Direct Debit Payments,1330,Revenue,
DIRECT SOCIAL SERVICES,GF CHILDREN SERVICES,19-Mar-18,209151,Purchase Card Direct Debit Payments,1599.16,Revenue,
DIRECT SOCIAL SERVICES,GF ADULT SERVICES,19-Mar-18,212781,Elliott Electrical Limited,1520,Revenue,
DIRECT SOCIAL SERVICES,GF ADULT SERVICES,19-Mar-18,215489,All Care (South Wales) Limited,533.28,Revenue,
DIRECT SOCIAL SERVICES,GF ADULT SERVICES,19-Mar-18,215489,All Care (South Wales) Limited,637.59,Revenue,
DIRECT SOCIAL SERVICES,GF ADULT SERVICES,19-Mar-18,215489,All Care (South Wales) Limited,611.47,Revenue,
DIRECT SOCIAL SERVICES,GF ADULT SERVICES,19-Mar-18,215489,All Care (South Wales) Limited,636.44,Revenue,
DIRECT SOCIAL SERVICES,GF ADULT SERVICES,19-Mar-18,215489,All Care (South Wales) Limited,737.34,Revenue,
DIRECT SOCIAL SERVICES,GF ADULT SERVICES,19-Mar-18,215489,All Care (South Wales) Limited,815.71,Revenue,
DIRECT SOCIAL SERVICES,GF ADULT SERVICES,19-Mar-18,215489,All Care (South Wales) Limited,558.99,Revenue,
DIRECT SOCIAL SERVICES,GF ADULT SERVICES,19-Mar-18,215489,All Care (South Wales) Limited,647.58,Revenue,
DIRECT SOCIAL SERVICES,GF ADULT SERVICES,19-Mar-18,215489,All Care (South Wales) Limited,523.26,Revenue,
DIRECT SOCIAL SERVICES,GF ADULT SERVICES,19-Mar-18,215489,All Care (South Wales) Limited,636.44,Revenue,
DIRECT SOCIAL SERVICES,GF ADULT SERVICES,19-Mar-18,215489,All Care (South Wales) Limited,737.34,Revenue,
DIRECT SOCIAL SERVICES,GF ADULT SERVICES,19-Mar-18,215489,All Care (South Wales) Limited,815.71,Revenue,
DIRECT SOCIAL SERVICES,GF ADULT SERVICES,19-Mar-18,215489,Care In Wales Limited T/A Care in the Vale,672.45,Revenue,
DIRECT SOCIAL SERVICES,GF ADULT SERVICES,19-Mar-18,215489,Care In Wales Limited T/A Care in the Vale,686.89,Revenue,
DIRECT SOCIAL SERVICES,GF ADULT SERVICES,19-Mar-18,215489,Care In Wales Limited T/A Care in the Vale,528.12,Revenue,
DIRECT SOCIAL SERVICES,GF ADULT SERVICES,19-Mar-18,215489,Care In Wales Limited T/A Care in the Vale,520.1,Revenue,
DIRECT SOCIAL SERVICES,GF ADULT SERVICES,19-Mar-18,215489,Care In Wales Limited T/A Care in the Vale,583.52,Revenue,
DIRECT SOCIAL SERVICES,GF ADULT SERVICES,19-Mar-18,215489,Care In Wales Limited T/A Care in the Vale,672.64,Revenue,
DIRECT SOCIAL SERVICES,GF ADULT SERVICES,19-Mar-18,215489,Care In Wales Limited T/A Care in the Vale,754.64,Revenue,
DIRECT SOCIAL SERVICES,GF ADULT SERVICES,19-Mar-18,215489,Care In Wales Limited T/A Care in the Vale,686.71,Revenue,
DIRECT SOCIAL SERVICES,GF ADULT SERVICES,19-Mar-18,215489,Care In Wales Limited T/A Care in the Vale,706.21,Revenue,
DIRECT SOCIAL SERVICES,GF ADULT SERVICES,19-Mar-18,215489,Care In Wales Limited T/A Care in the Vale,701.14,Revenue,
DIRECT SOCIAL SERVICES,GF ADULT SERVICES,19-Mar-18,215489,Care In Wales Limited T/A Care in the Vale,616.14,Revenue,
DIRECT SOCIAL SERVICES,GF ADULT SERVICES,19-Mar-18,215489,Care In Wales Limited T/A Care in the Vale,520.1,Revenue,
DIRECT SOCIAL SERVICES,GF ADULT SERVICES,19-Mar-18,215489,Care In Wales Limited T/A Care in the Vale,672.64,Revenue,
DIRECT SOCIAL SERVICES,GF ADULT SERVICES,19-Mar-18,215489,Care In Wales Limited T/A Care in the Vale,754.64,Revenue,
DIRECT SOCIAL SERVICES,GF ADULT SERVICES,19-Mar-18,215489,Care In Wales Limited T/A Care in the Vale,686.71,Revenue,
DIRECT SOCIAL SERVICES,GF ADULT SERVICES,19-Mar-18,215489,Hallows Care Limited T/A Hallows Care,682.08,Revenue,
DIRECT SOCIAL SERVICES,GF ADULT SERVICES,19-Mar-18,215489,Hallows Care Limited T/A Hallows Care,590.12,Revenue,
DIRECT SOCIAL SERVICES,GF ADULT SERVICES,19-Mar-18,215489,Hallows Care Limited T/A Hallows Care,627.2,Revenue,
DIRECT SOCIAL SERVICES,GF ADULT SERVICES,19-Mar-18,215489,Hallows Care Limited T/A Hallows Care,600.6,Revenue,
DIRECT SOCIAL SERVICES,GF ADULT SERVICES,19-Mar-18,215489,Willowmere Home Care Agency Limited,647.13,Revenue,
DIRECT SOCIAL SERVICES,GF ADULT SERVICES,19-Mar-18,215489,Willowmere Home Care Agency Limited,738.65,Revenue,
DIRECT SOCIAL SERVICES,GF ADULT SERVICES,19-Mar-18,215489,Willowmere Home Care Agency Limited,604.1,Revenue,
DIRECT SOCIAL SERVICES,GF ADULT SERVICES,19-Mar-18,215489,Willowmere Home Care Agency Limited,523.89,Revenue,
DIRECT SOCIAL SERVICES,GF ADULT SERVICES,19-Mar-18,215489,Willowmere Home Care Agency Limited,659.29,Revenue,
DIRECT SOCIAL SERVICES,GF ADULT SERVICES,19-Mar-18,215489,Willowmere Home Care Agency Limited,527.73,Revenue,
DIRECT SOCIAL SERVICES,GF ADULT SERVICES,19-Mar-18,215489,Willowmere Home Care Agency Limited,636.86,Revenue,
DIRECT SOCIAL SERVICES,GF ADULT SERVICES,19-Mar-18,215489,Willowmere Home Care Agency Limited,586.15,Revenue,
DIRECT SOCIAL SERVICES,GF ADULT SERVICES,19-Mar-18,215489,Willowmere Home Care Agency Limited,644.83,Revenue,
DIRECT SOCIAL SERVICES,GF ADULT SERVICES,19-Mar-18,215489,Willowmere Home Care Agency Limited,570.08,Revenue,
DIRECT SOCIAL SERVICES,GF ADULT SERVICES,19-Mar-18,215489,Willowmere Home Care Agency Limited,604.1,Revenue,
DIRECT SOCIAL SERVICES,GF ADULT SERVICES,19-Mar-18,215489,Willowmere Home Care Agency Limited,651.81,Revenue,
DIRECT SOCIAL SERVICES,GF ADULT SERVICES,19-Mar-18,215489,Willowmere Home Care Agency Limited,538.2,Revenue,
DIRECT SOCIAL SERVICES,GF ADULT SERVICES,19-Mar-18,215489,Willowmere Home Care Agency Limited,678.85,Revenue,
DIRECT SOCIAL SERVICES,GF ADULT SERVICES,19-Mar-18,216179,All Care (South Wales) Limited,899.99,Revenue,
DIRECT SOCIAL SERVICES,GF ADULT SERVICES,19-Mar-18,216179,All Care (South Wales) Limited,534.38,Revenue,
DIRECT SOCIAL SERVICES,GF ADULT SERVICES,19-Mar-18,216179,All Care (South Wales) Limited,762.31,Revenue,
DIRECT SOCIAL SERVICES,GF ADULT SERVICES,19-Mar-18,216179,All Care (South Wales) Limited,928.07,Revenue,
DIRECT SOCIAL SERVICES,GF ADULT SERVICES,19-Mar-18,216179,All Care (South Wales) Limited,534.38,Revenue,
DIRECT SOCIAL SERVICES,GF ADULT SERVICES,19-Mar-18,216179,All Care (South Wales) Limited,762.31,Revenue,
DIRECT SOCIAL SERVICES,GF ADULT SERVICES,19-Mar-18,216179,Hallows Care Limited T/A Hallows Care,575.6,Revenue,
DIRECT SOCIAL SERVICES,GF ADULT SERVICES,19-Mar-18,216810,Barry YMCA Hub,1244.4,Revenue,
DIRECT SOCIAL SERVICES,GF ADULT SERVICES,19-Mar-18,217909,All Care (South Wales) Limited,513.62,Revenue,
DIRECT SOCIAL SERVICES,GF ADULT SERVICES,19-Mar-18,218419,All Care (South Wales) Limited,657.58,Revenue,
DIRECT SOCIAL SERVICES,GF ADULT SERVICES,19-Mar-18,218419,All Care (South Wales) Limited,657.58,Revenue,
DIRECT SOCIAL SERVICES,GF ADULT SERVICES,19-Mar-18,218419,Care In Wales Limited T/A Care in the Vale,741,Revenue,
DIRECT SOCIAL SERVICES,GF ADULT SERVICES,19-Mar-18,218419,Care In Wales Limited T/A Care in the Vale,732.76,Revenue,
DIRECT SOCIAL SERVICES,GF ADULT SERVICES,19-Mar-18,218419,Care In Wales Limited T/A Care in the Vale,557.23,Revenue,
DIRECT SOCIAL SERVICES,GF ADULT SERVICES,19-Mar-18,218419,Care In Wales Limited T/A Care in the Vale,798,Revenue,
DIRECT SOCIAL SERVICES,GF ADULT SERVICES,19-Mar-18,218419,Care In Wales Limited T/A Care in the Vale,732.76,Revenue,
DIRECT SOCIAL SERVICES,GF ADULT SERVICES,19-Mar-18,218419,Care In Wales Limited T/A Care in the Vale,655.17,Revenue,
DIRECT SOCIAL SERVICES,GF CHILDREN SERVICES,19-Mar-18,260060,BetterCare Keys Limited,10656.87,Revenue,
DIRECT SOCIAL SERVICES,GF CHILDREN SERVICES,19-Mar-18,260060,Foster Care Associates Limited,11385,Revenue,
DIRECT SOCIAL SERVICES,GF CHILDREN SERVICES,19-Mar-18,260060,Fosteringmatters Limited,3675.36,Revenue,
DIRECT SOCIAL SERVICES,GF CHILDREN SERVICES,19-Mar-18,260235,Purchase Card Direct Debit Payments,1051.92,Revenue,
DIRECT ENVIRONMENT AND HOUSING,VEHICLES,19-Mar-18,319010,Purchase Card Direct Debit Payments,652.5,Revenue,
DIRECT ENVIRONMENT AND HOUSING,VEHICLES,19-Mar-18,319010,Purchase Card Direct Debit Payments,652.5,Revenue,
DIRECT ENVIRONMENT AND HOUSING,VEHICLES,19-Mar-18,319010,Purchase Card Direct Debit Payments,537.5,Revenue,
DIRECT ENVIRONMENT AND HOUSING,VEHICLES,19-Mar-18,319010,Purchase Card Direct Debit Payments,652.5,Revenue,
DIRECT ENVIRONMENT AND HOUSING,VEHICLES,19-Mar-18,319010,Purchase Card Direct Debit Payments,652.5,Revenue,
DIRECT ENVIRONMENT AND HOUSING,VEHICLES,19-Mar-18,319010,Purchase Card Direct Debit Payments,652.5,Revenue,
DIRECT ENVIRONMENT AND HOUSING,GF ENV AND VISIBLE,19-Mar-18,325331,Capita Property and Infrastructure Limited,22000,Revenue,
DIRECT ENVIRONMENT AND HOUSING,GF PARKS AND GROUNDS,19-Mar-18,333015,Treework Services Limited t/a Treework Environmental Practice,800,Revenue,
DIRECT ENVIRONMENT AND HOUSING,GF PARKS AND GROUNDS,19-Mar-18,333015,Treework Services Limited t/a Treework Environmental Practice,3500,Revenue,
DIRECT ENVIRONMENT AND HOUSING,GF PARKS AND GROUNDS,19-Mar-18,333015,Treework Services Limited t/a Treework Environmental Practice,1000,Revenue,
DIRECT ENVIRONMENT AND HOUSING,REGENERATION & PLANNING,19-Mar-18,352730,J Randall Roofing Contractors Limited,1400,Revenue,
DIRECT ENVIRONMENT AND HOUSING,REGENERATION & PLANNING,19-Mar-18,354727,Resources For Change Limited,14015.81,Revenue,
DIRECT ENVIRONMENT AND HOUSING,VISIBLE SERVICES,19-Mar-18,359330,Atlantic Crest Limited,1450,Revenue,
DIRECT ENVIRONMENT AND HOUSING,VISIBLE SERVICES,19-Mar-18,359330,Integrated Graphics Limited,503,Revenue,
DIRECT ENVIRONMENT AND HOUSING,VISIBLE SERVICES,19-Mar-18,359330,Barry Town Utd Ladies Football Club,3005,Revenue,
DIRECT ENVIRONMENT AND HOUSING,REGENERATION & PLANNING,19-Mar-18,359457,Newport Borough Brass Band,1050,Revenue,
DIRECT ENVIRONMENT AND HOUSING,GF LEGAL AND DEMOCRATIC,19-Mar-18,400063,Telefonica UK Limited t/a O2,13523.87,Revenue,
DIRECT ENVIRONMENT AND HOUSING,REGULATORY SHARED SERVICES,19-Mar-18,403148,Gerald Gouriet,4500,Revenue,
DIRECT ENVIRONMENT AND HOUSING,REGULATORY SHARED SERVICES,19-Mar-18,403211,Cardiff County Council,2750.05,Revenue,
DIRECT ENVIRONMENT AND HOUSING,REGULATORY SHARED SERVICES,19-Mar-18,403330,Total Storage Systems Limited,2212.5,Revenue,
DIRECT ENVIRONMENT AND HOUSING,HOUSING,19-Mar-18,407120,Burner Efficiency Services Limited,1100,Revenue,
DIRECT MANAGING DIRECTOR AND RESOURCES,GF RESOURCES,19-Mar-18,420212,Purchase Card Direct Debit Payments,980,Revenue,
DIRECT MANAGING DIRECTOR AND RESOURCES,GF RESOURCES,19-Mar-18,420220,Purchase Card Direct Debit Payments,706.55,Revenue,
DIRECT MANAGING DIRECTOR AND RESOURCES,GF RESOURCES,19-Mar-18,421230,Purchase Card Direct Debit Payments,934,Revenue,
DIRECT MANAGING DIRECTOR AND RESOURCES,GF RESOURCES,19-Mar-18,422120,BBM Control Systems Limited,-2864,Revenue,
DIRECT MANAGING DIRECTOR AND RESOURCES,GF RESOURCES,19-Mar-18,422120,Forever Fuels Limited,2590.98,Revenue,
DIRECT MANAGING DIRECTOR AND RESOURCES,GF CORPORATE POLICY MAKING,19-Mar-18,460203,Purchase Card Direct Debit Payments,1000,Revenue,
DIRECT LEARNING AND SKILLS,SCHOOLS DELEGATED,20-Mar-18,101006,Corona Energy Retail 4 Limited,643.89,Revenue,
DIRECT LEARNING AND SKILLS,SCHOOLS DELEGATED,20-Mar-18,101006,EDF Energy Plc,814.05,Revenue,
DIRECT LEARNING AND SKILLS,SCHOOLS DELEGATED,20-Mar-18,101013,Glen Cleaning Company Limited,1146.7,Revenue,
DIRECT LEARNING AND SKILLS,SCHOOLS DELEGATED,20-Mar-18,101013,One Team Logic Limited,758,Revenue,
DIRECT LEARNING AND SKILLS,SCHOOLS DELEGATED,20-Mar-18,101013,Ruth Miskin Literacy Limited,500,Revenue,
DIRECT LEARNING AND SKILLS,SCHOOLS DELEGATED,20-Mar-18,101013,Xerox (UK) Limited,728.22,Revenue,
DIRECT LEARNING AND SKILLS,SCHOOLS DELEGATED,20-Mar-18,101047,3P Learning Limited,1620,Revenue,
DIRECT LEARNING AND SKILLS,SCHOOLS DELEGATED,20-Mar-18,101047,Ricoh UK Limited,1631.01,Revenue,
DIRECT LEARNING AND SKILLS,SCHOOLS DELEGATED,20-Mar-18,101047,SIG Trading Limited,2767.68,Revenue,
DIRECT LEARNING AND SKILLS,SCHOOLS DELEGATED,20-Mar-18,101047,The Consortium for Purchasing and Distribution Limited,544.54,Revenue,
DIRECT LEARNING AND SKILLS,SCHOOLS DELEGATED,20-Mar-18,101063,Academics Limited,842.2,Revenue,
